Body,BodyName,ServiceLabel,ServiceDivisionLabel,ExpenditureCategory,DetailedExpenditureType,DetailedExpenditureCode,DatePaid,TransactionNumber,NetAmount,CapitalOrRevenue,SupplierName
http://statistics.data.gov.uk/doc/local-authority/00DA,Leeds City Council,Adult Social Care,Roseville Enterprises,Supplies and Services,Operational Furniture And Equipment,203,16-Aug-13,1308-00001,500,R,A D G Engineering Ltd
http://statistics.data.gov.uk/doc/local-authority/00DA,Leeds City Council,Childrens Services,Safeguarding Targeted & Specialist,Third Party Payments,Adoptions - Allowances,560,08-Aug-13,1308-00002,717,R,REDACTED PERSONAL DATA
http://statistics.data.gov.uk/doc/local-authority/00DA,Leeds City Council,Childrens Services,Safeguarding Targeted & Specialist,Third Party Payments,Adoptions - Allowances,560,29-Aug-13,1308-00003,688.45,R,REDACTED PERSONAL DATA
http://statistics.data.gov.uk/doc/local-authority/00DA,Leeds City Council,Central & Corporate,Commercial Services Trading Services,Supplies and Services,Operational Materials,205,19-Aug-13,1308-00004,1524,R,A J H  Pump Supply & Repair Ltd
http://statistics.data.gov.uk/doc/local-authority/00DA,Leeds City Council,Central & Corporate,Commercial Services Trading Services,Supplies and Services,Other Hired And Contracted Services,265,30-Aug-13,1308-00005,580,R,A J H  Pump Supply & Repair Ltd
http://statistics.data.gov.uk/doc/local-authority/00DA,Leeds City Council,Central & Corporate,Commercial Services Trading Services,Supplies and Services,Other Hired And Contracted Services,265,30-Aug-13,1308-00006,680,R,A J H  Pump Supply & Repair Ltd
http://statistics.data.gov.uk/doc/local-authority/00DA,Leeds City Council,City Development,Economic Development,Supplies and Services,Resaleable Materials,204,30-Aug-13,1308-00007,648,R,A J Promotions
http://statistics.data.gov.uk/doc/local-authority/00DA,Leeds City Council,City Development,Economic Development,Supplies and Services,Resaleable Materials,204,30-Aug-13,1308-00008,944.3,R,A J Promotions
http://statistics.data.gov.uk/doc/local-authority/00DA,Leeds City Council,City Development,Economic Development,Supplies and Services,Resaleable Materials,204,20-Aug-13,1308-00009,2480,R,A J Promotions
http://statistics.data.gov.uk/doc/local-authority/00DA,Leeds City Council,Environment & Housing,Parks & Countryside,Supplies and Services,Resaleable Materials,204,30-Aug-13,1308-00010,585,R,A J Promotions
http://statistics.data.gov.uk/doc/local-authority/00DA,Leeds City Council,Childrens Services,Safeguarding Targeted & Specialist,Third Party Payments,General External Residential Placements,507,14-Aug-13,1308-00011,-2000,R,A Lowrie Care Service Limited
http://statistics.data.gov.uk/doc/local-authority/00DA,Leeds City Council,Childrens Services,Safeguarding Targeted & Specialist,Third Party Payments,General External Residential Placements,507,14-Aug-13,1308-00012,13000,R,A Lowrie Care Service Limited
http://statistics.data.gov.uk/doc/local-authority/00DA,Leeds City Council,Childrens Services,Safeguarding Targeted & Specialist,Third Party Payments,General External Residential Placements,507,14-Aug-13,1308-00013,14000,R,A Lowrie Care Service Limited
http://statistics.data.gov.uk/doc/local-authority/00DA,East - North East ,East - North East,Business Improvement,Transfer Payments,Fines And Compensation Orders,623,08-Aug-13,1308-00014,2000,R,REDACTED PERSONAL DATA
http://statistics.data.gov.uk/doc/local-authority/00DA,Leeds City Council,Childrens Services,Safeguarding Targeted & Specialist,Third Party Payments,Adoptions - Allowances,560,08-Aug-13,1308-00015,500,R,REDACTED PERSONAL DATA
http://statistics.data.gov.uk/doc/local-authority/00DA,Leeds City Council,Environment & Housing,Parks & Countryside,Supplies and Services,Other Hired And Contracted Services,265,15-Aug-13,1308-00016,1305.6,R,A Nicholls
http://statistics.data.gov.uk/doc/local-authority/00DA,Leeds City Council,Adult Social Care,Services For Older People Under 65 P/Dis,Transfer Payments,Direct Payments,626,28-Aug-13,1308-00017,1006.92,R,REDACTED PERSONAL DATA
http://statistics.data.gov.uk/doc/local-authority/00DA,Leeds City Council,Childrens Services,Safeguarding Targeted & Specialist,Third Party Payments,Residence Order,557,08-Aug-13,1308-00018,1300,R,A Walding
http://statistics.data.gov.uk/doc/local-authority/00DA,Leeds City Council,Adult Social Care,Services For Older People Under 65 P/Dis,Transfer Payments,Direct Payments,626,28-Aug-13,1308-00019,1384.16,R,REDACTED PERSONAL DATA
http://statistics.data.gov.uk/doc/local-authority/00DA,Leeds City Council,City Development,Asset Management Services,Employees,Tuition & Course Fees,73,28-Aug-13,1308-00020,665,R,Aaa Training Co Ltd
http://statistics.data.gov.uk/doc/local-authority/00DA,Leeds City Council,City Development,Asset Management Services,Employees,Tuition & Course Fees,73,30-Aug-13,1308-00021,765,R,Aaa Training Co Ltd
http://statistics.data.gov.uk/doc/local-authority/00DA,Leeds City Council,Adult Social Care,Services For Older People Under 65 P/Dis,Transfer Payments,Personalised Budgets,627,28-Aug-13,1308-00022,822.4,R,REDACTED PERSONAL DATA
http://statistics.data.gov.uk/doc/local-authority/00DA,Leeds City Council as Accountable Body,Social Services Pooled Budgets,Leeds Community Equip Store Pooled Budgt,Supplies and Services,Other Equipment,203,06-Aug-13,1308-00023,-910,R,Aat (Gb) Ltd
http://statistics.data.gov.uk/doc/local-authority/00DA,Leeds City Council as Accountable Body,Social Services Pooled Budgets,Leeds Community Equip Store Pooled Budgt,Supplies and Services,Other Equipment,203,06-Aug-13,1308-00024,739,R,Aat (Gb) Ltd
http://statistics.data.gov.uk/doc/local-authority/00DA,Leeds City Council as Accountable Body,Social Services Pooled Budgets,Leeds Community Equip Store Pooled Budgt,Supplies and Services,Other Equipment,203,23-Aug-13,1308-00025,820,R,Aat (Gb) Ltd
http://statistics.data.gov.uk/doc/local-authority/00DA,Leeds City Council,Adult Social Care,Services For Older People - 65 And Over,Third Party Payments,Residential Care Dementia,571,28-Aug-13,1308-00026,1142.2,R,Abbey Lea Residential Care Home
http://statistics.data.gov.uk/doc/local-authority/00DA,Leeds City Council,Adult Social Care,Services For Older People - 65 And Over,Third Party Payments,Residential,580,28-Aug-13,1308-00027,1060.16,R,Abbeydale Residential Home
http://statistics.data.gov.uk/doc/local-authority/00DA,Leeds City Council,Adult Social Care,Services For Older People - 65 And Over,Third Party Payments,Nursing Home,570,28-Aug-13,1308-00028,13776.72,R,Aberford Hall
http://statistics.data.gov.uk/doc/local-authority/00DA,Leeds City Council,Adult Social Care,Services For Older People - 65 And Over,Third Party Payments,Residential,580,28-Aug-13,1308-00029,4474.24,R,Aberford Hall
http://statistics.data.gov.uk/doc/local-authority/00DA,Leeds City Council as Accountable Body,Social Services Pooled Budgets,Jcs For People With Learning Disabilitie,Transfer Payments,Personal Budgets,627,28-Aug-13,1308-00030,1835.48,R,REDACTED PERSONAL DATA
http://statistics.data.gov.uk/doc/local-authority/00DA,Leeds City Council as Accountable Body,Social Services Pooled Budgets,Jcs For People With Learning Disabilitie,Transfer Payments,Personal Budgets,627,30-Aug-13,1308-00031,4191.32,R,REDACTED PERSONAL DATA
http://statistics.data.gov.uk/doc/local-authority/00DA,East - North East            ,East - North East,Construction Services  ,Supplies and Services,Other Hired And Contracted Services,265,04-Jul-13,1308-00032,2115.01,R,Able Bathing
http://statistics.data.gov.uk/doc/local-authority/00DA,East - North East            ,East - North East,Construction Services  ,Supplies and Services,Other Hired And Contracted Services,265,29-Jul-13,1308-00033,2467.75,R,Able Bathing
http://statistics.data.gov.uk/doc/local-authority/00DA,East - North East            ,East - North East,Construction Services  ,Supplies and Services,Other Hired And Contracted Services,265,08-Jul-13,1308-00034,2619.13,R,Able Bathing
http://statistics.data.gov.uk/doc/local-authority/00DA,East - North East            ,East - North East,Construction Services  ,Supplies and Services,Other Hired And Contracted Services,265,11-Jul-13,1308-00035,3315.24,R,Able Bathing
http://statistics.data.gov.uk/doc/local-authority/00DA,East - North East            ,East - North East,Construction Services  ,Supplies and Services,Other Hired And Contracted Services,265,08-Jul-13,1308-00036,3338.77,R,Able Bathing
http://statistics.data.gov.uk/doc/local-authority/00DA,Leeds City Council,Childrens Services,Safeguarding Targeted & Specialist,Third Party Payments,Fostering - Placement Support,550,30-Aug-13,1308-00037,5323.67,R,Able Bathing & Building Contractors Ltd
http://statistics.data.gov.uk/doc/local-authority/00DA,Leeds City Council,Childrens Services,Safeguarding Targeted & Specialist,Third Party Payments,Fostering - Placement Support,550,16-Aug-13,1308-00038,8333.33,R,Able Bathing & Building Contractors Ltd
http://statistics.data.gov.uk/doc/local-authority/00DA,Leeds City Council,Childrens Services,Safeguarding Targeted & Specialist,Third Party Payments,Fostering - Placement Support,550,14-Aug-13,1308-00039,12500,R,Able Bathing & Building Contractors Ltd
http://statistics.data.gov.uk/doc/local-authority/00DA,Leeds City Council,Environment & Housing,Environmental Health,Capital,Construction,3,09-Aug-13,1308-00040,1500,C,Able Bathing & Building Contractors Ltd
http://statistics.data.gov.uk/doc/local-authority/00DA,Leeds City Council,Environment & Housing,Environmental Health,Capital,Construction,3,23-Aug-13,1308-00041,2890,C,Able Bathing & Building Contractors Ltd
http://statistics.data.gov.uk/doc/local-authority/00DA,Leeds City Council,Environment & Housing,Environmental Health,Capital,Construction,3,23-Aug-13,1308-00042,4130.21,C,Able Bathing & Building Contractors Ltd
http://statistics.data.gov.uk/doc/local-authority/00DA,Leeds City Council,Environment & Housing,Environmental Health,Capital,Construction,3,27-Aug-13,1308-00043,4150,C,Able Bathing & Building Contractors Ltd
http://statistics.data.gov.uk/doc/local-authority/00DA,Leeds City Council,Environment & Housing,Environmental Health,Capital,Construction,3,23-Aug-13,1308-00044,4150,C,Able Bathing & Building Contractors Ltd
http://statistics.data.gov.uk/doc/local-authority/00DA,Leeds City Council,Environment & Housing,Environmental Health,Capital,Construction,3,05-Aug-13,1308-00045,4150,C,Able Bathing & Building Contractors Ltd
http://statistics.data.gov.uk/doc/local-authority/00DA,Leeds City Council,Environment & Housing,Environmental Health,Capital,Construction,3,23-Aug-13,1308-00046,4150,C,Able Bathing & Building Contractors Ltd
http://statistics.data.gov.uk/doc/local-authority/00DA,Leeds City Council,Environment & Housing,Environmental Health,Capital,Construction,3,23-Aug-13,1308-00047,4150,C,Able Bathing & Building Contractors Ltd
http://statistics.data.gov.uk/doc/local-authority/00DA,Leeds City Council,Environment & Housing,Environmental Health,Capital,Construction,3,27-Aug-13,1308-00048,4150,C,Able Bathing & Building Contractors Ltd
http://statistics.data.gov.uk/doc/local-authority/00DA,Leeds City Council,Environment & Housing,Environmental Health,Capital,Construction,3,27-Aug-13,1308-00049,4250,C,Able Bathing & Building Contractors Ltd
http://statistics.data.gov.uk/doc/local-authority/00DA,Leeds City Council,Environment & Housing,Environmental Health,Capital,Construction,3,07-Aug-13,1308-00050,10000,C,Able Bathing & Building Contractors Ltd
http://statistics.data.gov.uk/doc/local-authority/00DA,Leeds City Council,Environment & Housing,Environmental Health,Capital,Construction,3,23-Aug-13,1308-00051,10500,C,Able Bathing & Building Contractors Ltd
http://statistics.data.gov.uk/doc/local-authority/00DA,Leeds City Council,Childrens Services,Learning Skills & Universal,Third Party Payments,Services Rendered By Other Organisations,511,01-Aug-13,1308-00052,14812.9,R,Academic Appointments Ltd
http://statistics.data.gov.uk/doc/local-authority/00DA,Leeds City Council,Childrens Services,Learning Skills & Universal,Third Party Payments,Services Rendered By Other Organisations,511,23-Aug-13,1308-00053,17597.42,R,Academic Appointments Ltd
http://statistics.data.gov.uk/doc/local-authority/00DA,Leeds City Council,Childrens Services,Safeguarding Targeted & Specialist,Employees,Agency Staff,8,09-Aug-13,1308-00054,5201.46,R,Academic Appointments Ltd
http://statistics.data.gov.uk/doc/local-authority/00DA,Leeds City Council,Childrens Services,Safeguarding Targeted & Specialist,Employees,Agency Staff,8,16-Aug-13,1308-00055,6367.4,R,Academic Appointments Ltd
http://statistics.data.gov.uk/doc/local-authority/00DA,Leeds City Council,Childrens Services,Safeguarding Targeted & Specialist,Employees,Agency Staff,8,02-Aug-13,1308-00056,7404.6,R,Academic Appointments Ltd
http://statistics.data.gov.uk/doc/local-authority/00DA,Leeds City Council,Childrens Services,Safeguarding Targeted & Specialist,Third Party Payments,SEN Placements,566,22-Aug-13,1308-00057,600.6,R,Academic Appointments Ltd
http://statistics.data.gov.uk/doc/local-authority/00DA,Leeds City Council,Childrens Services,Safeguarding Targeted & Specialist,Third Party Payments,SEN Placements,566,09-Aug-13,1308-00058,640.64,R,Academic Appointments Ltd
http://statistics.data.gov.uk/doc/local-authority/00DA,Leeds City Council,Adult Social Care,Services For Adults Under 65 Learn/Dis,Premises,Rents,141,05-Aug-13,1308-00059,579.25,R,Accent Foundation
http://statistics.data.gov.uk/doc/local-authority/00DA,East - North East ,East - North East,Technical Services,Premises,General Maintenance,104,28-Aug-13,1308-00060,1348.1,R,Access Locksmiths (Leeds) Limited
http://statistics.data.gov.uk/doc/local-authority/00DA,Leeds City Council,Central & Corporate,Commercial Services Trading Services,Supplies and Services,Operational Materials,205,20-Aug-13,1308-00061,905.4,R,Access Locksmiths (Leeds) Limited
http://statistics.data.gov.uk/doc/local-authority/00DA,Leeds City Council,Central & Corporate,Commercial Services Trading Services,Supplies and Services,Operational Materials,205,01-Aug-13,1308-00062,1128.48,R,Access Locksmiths (Leeds) Limited
http://statistics.data.gov.uk/doc/local-authority/00DA,Leeds City Council,Central & Corporate,Commercial Services Trading Services,Supplies and Services,Operational Materials,205,29-Aug-13,1308-00063,448.5,R,Access Opening Systems Limited
http://statistics.data.gov.uk/doc/local-authority/00DA,Leeds City Council,Central & Corporate,Commercial Services Trading Services,Supplies and Services,Operational Materials,205,02-Aug-13,1308-00064,2305,R,Access Opening Systems Limited
http://statistics.data.gov.uk/doc/local-authority/00DA,Leeds City Council,Environment & Housing,Environmental Action (West North West),Supplies and Services,Other Hired And Contracted Services,265,27-Aug-13,1308-00065,1960,R,Accesscctv
http://statistics.data.gov.uk/doc/local-authority/00DA,Leeds City Council,City Development,Libraries  Arts & Heritage,Supplies and Services,Operational Furniture And Equipment,203,23-Aug-13,1308-00066,585.6,R,Acclimatise Ltd
http://statistics.data.gov.uk/doc/local-authority/00DA,Leeds City Council,City Development,Libraries  Arts & Heritage  ,Supplies and Services,Operational Furniture And Equipment,203,22-Jul-13,1308-00067,1228.77,R,Acclimatise Ltd
http://statistics.data.gov.uk/doc/local-authority/00DA,Leeds City Council,Central & Corporate,Commercial Services General Fund,Transport,Private Hire,360,29-Aug-13,1308-00068,696,R,Ace Taxis Wakefield Ltd
http://statistics.data.gov.uk/doc/local-authority/00DA,Leeds City Council,Central & Corporate,Commercial Services General Fund,Transport,Private Hire,360,09-Aug-13,1308-00069,744,R,Ace Taxis Wakefield Ltd
http://statistics.data.gov.uk/doc/local-authority/00DA,Leeds City Council,Central & Corporate,Commercial Services General Fund,Transport,Private Hire,360,02-Aug-13,1308-00070,960,R,Ace Taxis Wakefield Ltd
http://statistics.data.gov.uk/doc/local-authority/00DA,Leeds City Council,Childrens Services,Safeguarding Targeted & Specialist,Third Party Payments,SEN Placements,566,14-Aug-13,1308-00071,15731.98,R,Ackworth School
http://statistics.data.gov.uk/doc/local-authority/00DA,Leeds City Council,City Development,Libraries  Arts & Heritage,Supplies and Services,Operational Furniture And Equipment,203,29-Aug-13,1308-00072,659,R,Acl Refrigeration & Air Conditioning Ltd
http://statistics.data.gov.uk/doc/local-authority/00DA,Leeds City Council,City Development,Libraries  Arts & Heritage,Supplies and Services,Operational Furniture And Equipment,203,30-Aug-13,1308-00073,590,R,Acorn Event Structures
http://statistics.data.gov.uk/doc/local-authority/00DA,Leeds City Council,City Development,Libraries  Arts & Heritage,Supplies and Services,Operational Furniture And Equipment,203,21-Aug-13,1308-00074,29740,R,Acorn Event Structures
http://statistics.data.gov.uk/doc/local-authority/00DA,Leeds City Council,Adult Social Care,Other Adult Services,Third Party Payments,Residential - Drugs & Alcohol,583,29-Aug-13,1308-00075,12870,R,Acorn Services
http://statistics.data.gov.uk/doc/local-authority/00DA,Leeds City Council,Adult Social Care,Services For Adults Under 65 Mental/Dis,Third Party Payments,Residential,580,28-Aug-13,1308-00076,3032.36,R,Acre Green
http://statistics.data.gov.uk/doc/local-authority/00DA,Leeds City Council,Adult Social Care,Services For Older People - 65 And Over,Third Party Payments,Nursing Home,570,28-Aug-13,1308-00077,26372.66,R,Acre Green
http://statistics.data.gov.uk/doc/local-authority/00DA,Leeds City Council,Adult Social Care,Services For Older People - 65 And Over,Third Party Payments,Nursing Care Dementia,574,28-Aug-13,1308-00078,1824.68,R,Acre Green
http://statistics.data.gov.uk/doc/local-authority/00DA,Leeds City Council,Adult Social Care,Services For Older People - 65 And Over,Third Party Payments,Residential,580,28-Aug-13,1308-00079,16097.91,R,Acre Green
http://statistics.data.gov.uk/doc/local-authority/00DA,Leeds City Council,Adult Social Care,Services For Older People Under 65 P/Dis,Third Party Payments,Nursing Home,570,28-Aug-13,1308-00080,1633.48,R,Acre Green
http://statistics.data.gov.uk/doc/local-authority/00DA,Leeds City Council,Adult Social Care,Services For Adults Under 65 Mental/Dis,Third Party Payments,Payments To Voluntary Organisations,561,30-Aug-13,1308-00081,133806.5,R,Action For Blind People
http://statistics.data.gov.uk/doc/local-authority/00DA,Leeds City Council,Childrens Services,Safeguarding Targeted & Specialist,Third Party Payments,Independent Fostering Agencies,509,02-Aug-13,1308-00082,4774,R,Action For Children
http://statistics.data.gov.uk/doc/local-authority/00DA,Leeds City Council,Childrens Services,Safeguarding Targeted & Specialist,Third Party Payments,Independent Fostering Agencies,509,02-Aug-13,1308-00083,5026.34,R,Action For Children
http://statistics.data.gov.uk/doc/local-authority/00DA,Leeds City Council,Childrens Services,Safeguarding Targeted & Specialist,Third Party Payments,Services Rendered By Voluntary Sector,505,23-Aug-13,1308-00084,212463,R,Action For Children Services Ltd
http://statistics.data.gov.uk/doc/local-authority/00DA,Leeds City Council,Childrens Services,Safeguarding Targeted & Specialist,Third Party Payments,Independent Fostering Agencies,509,02-Aug-13,1308-00085,7865.01,R,Action For Children Services Ltd
http://statistics.data.gov.uk/doc/local-authority/00DA,Leeds City Council,Adult Social Care,Services For Older People Under 65 P/Dis,Transfer Payments,Personalised Budgets,627,28-Aug-13,1308-00086,707.08,R,REDACTED PERSONAL DATA
http://statistics.data.gov.uk/doc/local-authority/00DA,Leeds City Council as Accountable Body,Social Services Pooled Budgets,Jcs For People With Learning Disabilitie,Transfer Payments,Asylum Seekers,626,28-Aug-13,1308-00087,1570.68,R,REDACTED PERSONAL DATA
http://statistics.data.gov.uk/doc/local-authority/00DA,Leeds City Council,Adult Social Care,Services For Older People Under 65 P/Dis,Transfer Payments,Personalised Budgets,627,28-Aug-13,1308-00088,864,R,REDACTED PERSONAL DATA
http://statistics.data.gov.uk/doc/local-authority/00DA,Leeds City Council,Adult Social Care,Services For Adults Under 65 Mental/Dis,Transfer Payments,Direct Payments,626,28-Aug-13,1308-00089,444.4,R,REDACTED PERSONAL DATA
http://statistics.data.gov.uk/doc/local-authority/00DA,Leeds City Council,Adult Social Care,Services For Older People Under 65 P/Dis,Transfer Payments,Direct Payments,626,28-Aug-13,1308-00090,877.2,R,REDACTED PERSONAL DATA
http://statistics.data.gov.uk/doc/local-authority/00DA,Leeds City Council,City Development,Libraries  Arts & Heritage,Supplies and Services,Non-Recurring Grants,227,13-Aug-13,1308-00091,1000,R,Adam Hughes
http://statistics.data.gov.uk/doc/local-authority/00DA,Leeds City Council as Accountable Body,Social Services Pooled Budgets,Jcs For People With Learning Disabilitie,Transfer Payments,Asylum Seekers,626,28-Aug-13,1308-00092,859.6,R,REDACTED PERSONAL DATA
http://statistics.data.gov.uk/doc/local-authority/00DA,Leeds City Council,Childrens Services,Partnership Development & Leadership,Supplies and Services,Conference Meetings,253,23-Aug-13,1308-00093,780,R,Adcs
http://statistics.data.gov.uk/doc/local-authority/00DA,Leeds City Council,Central & Corporate,Executive Support,Supplies and Services,Other Hired And Contracted Services,265,15-Aug-13,1308-00094,1000,R,Add Specialists
http://statistics.data.gov.uk/doc/local-authority/00DA,Leeds City Council,Environment & Housing,Parks & Countryside,Supplies and Services,Other Hired And Contracted Services,265,12-Aug-13,1308-00095,8008,R,Addlestone Moumouris Orme Sixsmith
http://statistics.data.gov.uk/doc/local-authority/00DA,Leeds City Council,Adult Social Care,Services For Older People Under 65 P/Dis,Transfer Payments,Personalised Budgets,627,28-Aug-13,1308-00096,1866.32,R,REDACTED PERSONAL DATA
http://statistics.data.gov.uk/doc/local-authority/00DA,Leeds City Council,Adult Social Care,Services For Older People - 65 And Over,Third Party Payments,Residential Care Dementia,571,28-Aug-13,1308-00097,1251.76,R,Aden House
http://statistics.data.gov.uk/doc/local-authority/00DA,Leeds City Council,City Development,Libraries  Arts & Heritage,Supplies and Services,Operational Furniture And Equipment,203,29-Aug-13,1308-00098,18568,R,Adi Uk Ltd
http://statistics.data.gov.uk/doc/local-authority/00DA,Leeds City Council,Childrens Services,Safeguarding Targeted & Specialist,Third Party Payments,Rent,552,22-Aug-13,1308-00099,725,R,Adm Residential
http://statistics.data.gov.uk/doc/local-authority/00DA,Leeds City Council,Childrens Services,Safeguarding Targeted & Specialist,Third Party Payments,Interagency Adoptions,559,01-Aug-13,1308-00100,1194.42,R,Adoption Matters Northwest
http://statistics.data.gov.uk/doc/local-authority/00DA,Leeds City Council,Childrens Services,Safeguarding Targeted & Specialist,Third Party Payments,Adoptions - Allowances,560,16-Aug-13,1308-00101,659,R,Adoption Matters Northwest
http://statistics.data.gov.uk/doc/local-authority/00DA,Leeds City Council,Childrens Services,Safeguarding Targeted & Specialist,Third Party Payments,Adoptions - Allowances,560,09-Aug-13,1308-00102,650,R,Adoption Uk
http://statistics.data.gov.uk/doc/local-authority/00DA,Leeds City Council,Childrens Services,Safeguarding Targeted & Specialist,Third Party Payments,Payments To Voluntary Organisations,561,21-Aug-13,1308-00103,3075,R,Adoption Uk
http://statistics.data.gov.uk/doc/local-authority/00DA,Leeds City Council,Central & Corporate,Commercial Services Trading Services,Supplies and Services,Other Hired And Contracted Services,265,30-Aug-13,1308-00104,442,R,Adrian Freeman T/A Beacon
http://statistics.data.gov.uk/doc/local-authority/00DA,Leeds City Council,Central & Corporate,Commercial Services Trading Services,Supplies and Services,Other Hired And Contracted Services,265,21-Aug-13,1308-00105,725,R,Adrian Freeman T/A Beacon
http://statistics.data.gov.uk/doc/local-authority/00DA,Leeds City Council,Central & Corporate,Commercial Services Trading Services,Supplies and Services,Other Hired And Contracted Services,265,12-Aug-13,1308-00106,1553.5,R,Adrian Freeman T/A Beacon
http://statistics.data.gov.uk/doc/local-authority/00DA,Leeds City Council,Central & Corporate,Commercial Services Trading Services,Supplies and Services,Other Hired And Contracted Services,265,13-Aug-13,1308-00107,4895,R,Adrian Freeman T/A Beacon
http://statistics.data.gov.uk/doc/local-authority/00DA,Leeds City Council,City Development,Libraries  Arts & Heritage,Supplies and Services,Other Hired And Contracted Services,265,16-Aug-13,1308-00108,525,R,Adrian Freeman T/A Beacon
http://statistics.data.gov.uk/doc/local-authority/00DA,Leeds City Council as Accountable Body,Social Services Pooled Budgets,Jcs For People With Learning Disabilitie,Third Party Payments,Residential,580,22-Aug-13,1308-00109,2769,R,Adrian House
http://statistics.data.gov.uk/doc/local-authority/00DA,Leeds City Council as Accountable Body,Social Services Pooled Budgets,Jcs For People With Learning Disabilitie,Third Party Payments,Residential,580,01-Aug-13,1308-00110,8305.92,R,Adrian House
http://statistics.data.gov.uk/doc/local-authority/00DA,Leeds City Council,Adult Social Care,Other Adult Services,Third Party Payments,Payments To Voluntary Organisations,561,02-Aug-13,1308-00111,18656.25,R,Ads
http://statistics.data.gov.uk/doc/local-authority/00DA,Leeds City Council,City Development,Asset Management Services,Premises,Maintenance Of Buildings,101,08-Aug-13,1308-00112,1154.61,R,Adt Fire And Security Plc
http://statistics.data.gov.uk/doc/local-authority/00DA,Leeds City Council,City Development,Asset Management Services,Premises,Maintenance Of Buildings,101,08-Aug-13,1308-00113,1175,R,Adt Fire And Security Plc
http://statistics.data.gov.uk/doc/local-authority/00DA,Leeds City Council,City Development,Asset Management Services,Premises,Maintenance Of Buildings,101,14-Aug-13,1308-00114,4376.63,R,Adt Fire And Security Plc
http://statistics.data.gov.uk/doc/local-authority/00DA,East - North East ,East - North East,Construction Services,Supplies and Services,Other Hired And Contracted Services,265,14-Aug-13,1308-00115,731.5,R,Adult Placement Services
http://statistics.data.gov.uk/doc/local-authority/00DA,East - North East ,East - North East,Construction Services,Supplies and Services,Other Hired And Contracted Services,265,14-Aug-13,1308-00116,741,R,Adult Placement Services
http://statistics.data.gov.uk/doc/local-authority/00DA,East - North East ,East - North East,Construction Services,Supplies and Services,Other Hired And Contracted Services,265,14-Aug-13,1308-00117,874,R,Adult Placement Services
http://statistics.data.gov.uk/doc/local-authority/00DA,East - North East ,East - North East,Construction Services,Supplies and Services,Other Hired And Contracted Services,265,14-Aug-13,1308-00118,5272.5,R,Adult Placement Services
http://statistics.data.gov.uk/doc/local-authority/00DA,Leeds City Council as Accountable Body,Social Services Pooled Budgets,Jcs For People With Learning Disabilitie,Third Party Payments,Home Care,568,01-Aug-13,1308-00119,769.49,R,Adult Placement Services
http://statistics.data.gov.uk/doc/local-authority/00DA,Leeds City Council as Accountable Body,Social Services Pooled Budgets,Jcs For People With Learning Disabilitie,Third Party Payments,Home Care,568,14-Aug-13,1308-00120,1332.2,R,Adult Placement Services
http://statistics.data.gov.uk/doc/local-authority/00DA,Leeds City Council,Adult Social Care,Services For Adults Under 65 Mental/Dis,Third Party Payments,Nursing Home,570,28-Aug-13,1308-00121,1549.8,R,Adult Supported Living Ltd
http://statistics.data.gov.uk/doc/local-authority/00DA,Leeds City Council,Childrens Services,Safeguarding Targeted & Specialist,Support Services,Legal Disbursements,411,02-Aug-13,1308-00122,442.12,R,Advanced Child Care Assessments Ltd
http://statistics.data.gov.uk/doc/local-authority/00DA,Leeds City Council,Childrens Services,Safeguarding Targeted & Specialist,Third Party Payments,Independent Fostering Agencies,509,02-Aug-13,1308-00123,605.12,R,Advanced Childcare Limited
http://statistics.data.gov.uk/doc/local-authority/00DA,Leeds City Council,Childrens Services,Safeguarding Targeted & Specialist,Third Party Payments,Independent Fostering Agencies,509,28-Aug-13,1308-00124,2770.16,R,Advanced Childcare Limited
http://statistics.data.gov.uk/doc/local-authority/00DA,Leeds City Council,Childrens Services,Safeguarding Targeted & Specialist,Third Party Payments,Independent Fostering Agencies,509,28-Aug-13,1308-00125,2989.33,R,Advanced Childcare Limited
http://statistics.data.gov.uk/doc/local-authority/00DA,Leeds City Council,Childrens Services,Safeguarding Targeted & Specialist,Third Party Payments,Independent Fostering Agencies,509,28-Aug-13,1308-00126,2989.33,R,Advanced Childcare Limited
http://statistics.data.gov.uk/doc/local-authority/00DA,Leeds City Council,Childrens Services,Safeguarding Targeted & Specialist,Third Party Payments,Independent Fostering Agencies,509,28-Aug-13,1308-00127,3077.99,R,Advanced Childcare Limited
http://statistics.data.gov.uk/doc/local-authority/00DA,Leeds City Council,Childrens Services,Safeguarding Targeted & Specialist,Third Party Payments,Independent Fostering Agencies,509,02-Aug-13,1308-00128,3155.49,R,Advanced Childcare Limited
http://statistics.data.gov.uk/doc/local-authority/00DA,Leeds City Council,Childrens Services,Safeguarding Targeted & Specialist,Third Party Payments,Independent Fostering Agencies,509,28-Aug-13,1308-00129,3321.34,R,Advanced Childcare Limited
http://statistics.data.gov.uk/doc/local-authority/00DA,Leeds City Council,Childrens Services,Safeguarding Targeted & Specialist,Third Party Payments,Independent Fostering Agencies,509,28-Aug-13,1308-00130,3321.34,R,Advanced Childcare Limited
http://statistics.data.gov.uk/doc/local-authority/00DA,Leeds City Council,Childrens Services,Safeguarding Targeted & Specialist,Third Party Payments,Independent Fostering Agencies,509,28-Aug-13,1308-00131,3321.34,R,Advanced Childcare Limited
http://statistics.data.gov.uk/doc/local-authority/00DA,Leeds City Council as Accountable Body,Social Services Pooled Budgets,Jcs For People With Learning Disabilitie,Third Party Payments,Home Care,568,28-Aug-13,1308-00132,646,R,Advantage Healthcare Group Ltd
http://statistics.data.gov.uk/doc/local-authority/00DA,Leeds City Council as Accountable Body,Social Services Pooled Budgets,Jcs For People With Learning Disabilitie,Third Party Payments,Home Care,568,01-Aug-13,1308-00133,1548.31,R,Advantage Healthcare Group Ltd
http://statistics.data.gov.uk/doc/local-authority/00DA,Leeds City Council as Accountable Body,Social Services Pooled Budgets,Jcs For People With Learning Disabilitie,Third Party Payments,Home Care,568,21-Aug-13,1308-00134,1882.36,R,Advantage Healthcare Group Ltd
http://statistics.data.gov.uk/doc/local-authority/00DA,Leeds City Council as Accountable Body,Social Services Pooled Budgets,Jcs For People With Learning Disabilitie,Third Party Payments,Home Care,568,05-Aug-13,1308-00135,2176.83,R,Advantage Healthcare Group Ltd
http://statistics.data.gov.uk/doc/local-authority/00DA,Leeds City Council as Accountable Body,Social Services Pooled Budgets,Jcs For People With Learning Disabilitie,Third Party Payments,Home Care,568,15-Aug-13,1308-00136,2800.25,R,Advantage Healthcare Group Ltd
http://statistics.data.gov.uk/doc/local-authority/00DA,Leeds City Council as Accountable Body,Social Services Pooled Budgets,Jcs For People With Learning Disabilitie,Third Party Payments,Home Care,568,23-Aug-13,1308-00137,3092.76,R,Advantage Healthcare Group Ltd
http://statistics.data.gov.uk/doc/local-authority/00DA,Leeds City Council as Accountable Body,Social Services Pooled Budgets,Jcs For People With Learning Disabilitie,Third Party Payments,Home Care,568,28-Aug-13,1308-00138,3138.84,R,Advantage Healthcare Group Ltd
http://statistics.data.gov.uk/doc/local-authority/00DA,Leeds City Council as Accountable Body,Social Services Pooled Budgets,Jcs For People With Learning Disabilitie,Third Party Payments,Home Care,568,13-Aug-13,1308-00139,3190.04,R,Advantage Healthcare Group Ltd
http://statistics.data.gov.uk/doc/local-authority/00DA,Leeds City Council as Accountable Body,Social Services Pooled Budgets,Jcs For People With Learning Disabilitie,Third Party Payments,Home Care,568,21-Aug-13,1308-00140,3202.64,R,Advantage Healthcare Group Ltd
http://statistics.data.gov.uk/doc/local-authority/00DA,Leeds City Council as Accountable Body,Social Services Pooled Budgets,Jcs For People With Learning Disabilitie,Third Party Payments,Residential,580,28-Aug-13,1308-00141,20332.4,R,Advitam Ltd
http://statistics.data.gov.uk/doc/local-authority/00DA,Leeds City Council,Central & Corporate,Executive Support,Supplies and Services,'Well Being' Large Grants Projects,230,13-Aug-13,1308-00142,2700,R,Advocate Uk Young People And Families
http://statistics.data.gov.uk/doc/local-authority/00DA,Leeds City Council,Adult Social Care,Social Services Support Services,Third Party Payments,Payments To Voluntary Organisations,561,16-Aug-13,1308-00143,90446.46,R,Advonet
http://statistics.data.gov.uk/doc/local-authority/00DA,Leeds City Council,Adult Social Care,Services For Adults Under 65 Mental/Dis,Third Party Payments,Home Care,568,30-Aug-13,1308-00144,740.52,R,Affinity Trust
http://statistics.data.gov.uk/doc/local-authority/00DA,Leeds City Council,Adult Social Care,Services For Older People - 65 And Over,Third Party Payments,Home Care,568,20-Aug-13,1308-00145,-1009.2,R,Affinity Trust
http://statistics.data.gov.uk/doc/local-authority/00DA,Leeds City Council,Adult Social Care,Services For Older People - 65 And Over,Third Party Payments,Home Care,568,08-Aug-13,1308-00146,1076.48,R,Affinity Trust
http://statistics.data.gov.uk/doc/local-authority/00DA,Leeds City Council,Adult Social Care,Services For Older People - 65 And Over,Third Party Payments,Home Care,568,19-Aug-13,1308-00147,1345.6,R,Affinity Trust
http://statistics.data.gov.uk/doc/local-authority/00DA,Leeds City Council,Adult Social Care,Services For Older People Under 65 P/Dis,Third Party Payments,Home Care,568,08-Aug-13,1308-00148,777.84,R,Affinity Trust
http://statistics.data.gov.uk/doc/local-authority/00DA,Leeds City Council,Adult Social Care,Services For Older People Under 65 P/Dis,Third Party Payments,Home Care,568,08-Aug-13,1308-00149,946.62,R,Affinity Trust
http://statistics.data.gov.uk/doc/local-authority/00DA,Leeds City Council,Adult Social Care,Services For Older People Under 65 P/Dis,Third Party Payments,Home Care,568,08-Aug-13,1308-00150,1545.64,R,Affinity Trust
http://statistics.data.gov.uk/doc/local-authority/00DA,Leeds City Council,Adult Social Care,Services For Older People Under 65 P/Dis,Third Party Payments,Home Care,568,08-Aug-13,1308-00151,1717.4,R,Affinity Trust
http://statistics.data.gov.uk/doc/local-authority/00DA,Leeds City Council,Adult Social Care,Services For Older People Under 65 P/Dis,Third Party Payments,Home Care,568,08-Aug-13,1308-00152,4480,R,Affinity Trust
http://statistics.data.gov.uk/doc/local-authority/00DA,Leeds City Council as Accountable Body,Social Services Pooled Budgets,Jcs For People With Learning Disabilitie,Third Party Payments,Day Centre,564,08-Aug-13,1308-00153,1053.36,R,Affinity Trust
http://statistics.data.gov.uk/doc/local-authority/00DA,Leeds City Council as Accountable Body,Social Services Pooled Budgets,Jcs For People With Learning Disabilitie,Third Party Payments,Day Centre,564,14-Aug-13,1308-00154,1145.92,R,Affinity Trust
http://statistics.data.gov.uk/doc/local-authority/00DA,Leeds City Council as Accountable Body,Social Services Pooled Budgets,Jcs For People With Learning Disabilitie,Third Party Payments,Day Centre,564,08-Aug-13,1308-00155,1172.09,R,Affinity Trust
http://statistics.data.gov.uk/doc/local-authority/00DA,Leeds City Council as Accountable Body,Social Services Pooled Budgets,Jcs For People With Learning Disabilitie,Third Party Payments,Day Centre,564,08-Aug-13,1308-00156,2229.08,R,Affinity Trust
http://statistics.data.gov.uk/doc/local-authority/00DA,Leeds City Council as Accountable Body,Social Services Pooled Budgets,Jcs For People With Learning Disabilitie,Third Party Payments,Day Centre,564,08-Aug-13,1308-00157,3597.76,R,Affinity Trust
http://statistics.data.gov.uk/doc/local-authority/00DA,Leeds City Council as Accountable Body,Social Services Pooled Budgets,Jcs For People With Learning Disabilitie,Third Party Payments,Day Centre,564,23-Aug-13,1308-00158,21773.33,R,Affinity Trust
http://statistics.data.gov.uk/doc/local-authority/00DA,Leeds City Council as Accountable Body,Social Services Pooled Budgets,Jcs For People With Learning Disabilitie,Third Party Payments,Day Centre,564,23-Aug-13,1308-00159,22198.61,R,Affinity Trust
http://statistics.data.gov.uk/doc/local-authority/00DA,Leeds City Council as Accountable Body,Social Services Pooled Budgets,Jcs For People With Learning Disabilitie,Third Party Payments,Home Care,568,08-Aug-13,1308-00160,454.95,R,Affinity Trust
http://statistics.data.gov.uk/doc/local-authority/00DA,Leeds City Council as Accountable Body,Social Services Pooled Budgets,Jcs For People With Learning Disabilitie,Third Party Payments,Home Care,568,09-Aug-13,1308-00161,511.36,R,Affinity Trust
http://statistics.data.gov.uk/doc/local-authority/00DA,Leeds City Council as Accountable Body,Social Services Pooled Budgets,Jcs For People With Learning Disabilitie,Third Party Payments,Home Care,568,13-Aug-13,1308-00162,564.3,R,Affinity Trust
http://statistics.data.gov.uk/doc/local-authority/00DA,Leeds City Council as Accountable Body,Social Services Pooled Budgets,Jcs For People With Learning Disabilitie,Third Party Payments,Home Care,568,15-Aug-13,1308-00163,594,R,Affinity Trust
http://statistics.data.gov.uk/doc/local-authority/00DA,Leeds City Council as Accountable Body,Social Services Pooled Budgets,Jcs For People With Learning Disabilitie,Third Party Payments,Home Care,568,08-Aug-13,1308-00164,603.36,R,Affinity Trust
http://statistics.data.gov.uk/doc/local-authority/00DA,Leeds City Council as Accountable Body,Social Services Pooled Budgets,Jcs For People With Learning Disabilitie,Third Party Payments,Home Care,568,08-Aug-13,1308-00165,703.92,R,Affinity Trust
http://statistics.data.gov.uk/doc/local-authority/00DA,Leeds City Council as Accountable Body,Social Services Pooled Budgets,Jcs For People With Learning Disabilitie,Third Party Payments,Home Care,568,15-Aug-13,1308-00166,703.92,R,Affinity Trust
http://statistics.data.gov.uk/doc/local-authority/00DA,Leeds City Council as Accountable Body,Social Services Pooled Budgets,Jcs For People With Learning Disabilitie,Third Party Payments,Home Care,568,20-Aug-13,1308-00167,776.58,R,Affinity Trust
http://statistics.data.gov.uk/doc/local-authority/00DA,Leeds City Council as Accountable Body,Social Services Pooled Budgets,Jcs For People With Learning Disabilitie,Third Party Payments,Home Care,568,09-Aug-13,1308-00168,791.01,R,Affinity Trust
http://statistics.data.gov.uk/doc/local-authority/00DA,Leeds City Council as Accountable Body,Social Services Pooled Budgets,Jcs For People With Learning Disabilitie,Third Party Payments,Home Care,568,20-Aug-13,1308-00169,804.48,R,Affinity Trust
http://statistics.data.gov.uk/doc/local-authority/00DA,Leeds City Council as Accountable Body,Social Services Pooled Budgets,Jcs For People With Learning Disabilitie,Third Party Payments,Home Care,568,09-Aug-13,1308-00170,807.36,R,Affinity Trust
http://statistics.data.gov.uk/doc/local-authority/00DA,Leeds City Council as Accountable Body,Social Services Pooled Budgets,Jcs For People With Learning Disabilitie,Third Party Payments,Home Care,568,09-Aug-13,1308-00171,816,R,Affinity Trust
http://statistics.data.gov.uk/doc/local-authority/00DA,Leeds City Council as Accountable Body,Social Services Pooled Budgets,Jcs For People With Learning Disabilitie,Third Party Payments,Home Care,568,09-Aug-13,1308-00172,902.6,R,Affinity Trust
http://statistics.data.gov.uk/doc/local-authority/00DA,Leeds City Council as Accountable Body,Social Services Pooled Budgets,Jcs For People With Learning Disabilitie,Third Party Payments,Home Care,568,08-Aug-13,1308-00173,905.04,R,Affinity Trust
http://statistics.data.gov.uk/doc/local-authority/00DA,Leeds City Council as Accountable Body,Social Services Pooled Budgets,Jcs For People With Learning Disabilitie,Third Party Payments,Home Care,568,08-Aug-13,1308-00174,923.84,R,Affinity Trust
http://statistics.data.gov.uk/doc/local-authority/00DA,Leeds City Council as Accountable Body,Social Services Pooled Budgets,Jcs For People With Learning Disabilitie,Third Party Payments,Home Care,568,30-Aug-13,1308-00175,1005.6,R,Affinity Trust
http://statistics.data.gov.uk/doc/local-authority/00DA,Leeds City Council as Accountable Body,Social Services Pooled Budgets,Jcs For People With Learning Disabilitie,Third Party Payments,Home Care,568,13-Aug-13,1308-00176,1035.44,R,Affinity Trust
http://statistics.data.gov.uk/doc/local-authority/00DA,Leeds City Council as Accountable Body,Social Services Pooled Budgets,Jcs For People With Learning Disabilitie,Third Party Payments,Home Care,568,08-Aug-13,1308-00177,1035.44,R,Affinity Trust
http://statistics.data.gov.uk/doc/local-authority/00DA,Leeds City Council as Accountable Body,Social Services Pooled Budgets,Jcs For People With Learning Disabilitie,Third Party Payments,Home Care,568,09-Aug-13,1308-00178,1075.92,R,Affinity Trust
http://statistics.data.gov.uk/doc/local-authority/00DA,Leeds City Council as Accountable Body,Social Services Pooled Budgets,Jcs For People With Learning Disabilitie,Third Party Payments,Home Care,568,08-Aug-13,1308-00179,1114.54,R,Affinity Trust
http://statistics.data.gov.uk/doc/local-authority/00DA,Leeds City Council as Accountable Body,Social Services Pooled Budgets,Jcs For People With Learning Disabilitie,Third Party Payments,Home Care,568,13-Aug-13,1308-00180,1176.98,R,Affinity Trust
http://statistics.data.gov.uk/doc/local-authority/00DA,Leeds City Council as Accountable Body,Social Services Pooled Budgets,Jcs For People With Learning Disabilitie,Third Party Payments,Home Care,568,08-Aug-13,1308-00181,1266.72,R,Affinity Trust
http://statistics.data.gov.uk/doc/local-authority/00DA,Leeds City Council as Accountable Body,Social Services Pooled Budgets,Jcs For People With Learning Disabilitie,Third Party Payments,Home Care,568,09-Aug-13,1308-00182,1342.32,R,Affinity Trust
http://statistics.data.gov.uk/doc/local-authority/00DA,Leeds City Council as Accountable Body,Social Services Pooled Budgets,Jcs For People With Learning Disabilitie,Third Party Payments,Home Care,568,09-Aug-13,1308-00183,1345.6,R,Affinity Trust
http://statistics.data.gov.uk/doc/local-authority/00DA,Leeds City Council as Accountable Body,Social Services Pooled Budgets,Jcs For People With Learning Disabilitie,Third Party Payments,Home Care,568,08-Aug-13,1308-00184,1386,R,Affinity Trust
http://statistics.data.gov.uk/doc/local-authority/00DA,Leeds City Council as Accountable Body,Social Services Pooled Budgets,Jcs For People With Learning Disabilitie,Third Party Payments,Home Care,568,09-Aug-13,1308-00185,1521.72,R,Affinity Trust
http://statistics.data.gov.uk/doc/local-authority/00DA,Leeds City Council as Accountable Body,Social Services Pooled Budgets,Jcs For People With Learning Disabilitie,Third Party Payments,Home Care,568,09-Aug-13,1308-00186,1534.5,R,Affinity Trust
http://statistics.data.gov.uk/doc/local-authority/00DA,Leeds City Council as Accountable Body,Social Services Pooled Budgets,Jcs For People With Learning Disabilitie,Third Party Payments,Home Care,568,08-Aug-13,1308-00187,1539.32,R,Affinity Trust
http://statistics.data.gov.uk/doc/local-authority/00DA,Leeds City Council as Accountable Body,Social Services Pooled Budgets,Jcs For People With Learning Disabilitie,Third Party Payments,Home Care,568,09-Aug-13,1308-00188,1661.92,R,Affinity Trust
http://statistics.data.gov.uk/doc/local-authority/00DA,Leeds City Council as Accountable Body,Social Services Pooled Budgets,Jcs For People With Learning Disabilitie,Third Party Payments,Home Care,568,15-Aug-13,1308-00189,1683,R,Affinity Trust
http://statistics.data.gov.uk/doc/local-authority/00DA,Leeds City Council as Accountable Body,Social Services Pooled Budgets,Jcs For People With Learning Disabilitie,Third Party Payments,Home Care,568,15-Aug-13,1308-00190,1810.08,R,Affinity Trust
http://statistics.data.gov.uk/doc/local-authority/00DA,Leeds City Council as Accountable Body,Social Services Pooled Budgets,Jcs For People With Learning Disabilitie,Third Party Payments,Home Care,568,07-Aug-13,1308-00191,1877.12,R,Affinity Trust
http://statistics.data.gov.uk/doc/local-authority/00DA,Leeds City Council as Accountable Body,Social Services Pooled Budgets,Jcs For People With Learning Disabilitie,Third Party Payments,Home Care,568,15-Aug-13,1308-00192,1910.64,R,Affinity Trust
http://statistics.data.gov.uk/doc/local-authority/00DA,Leeds City Council as Accountable Body,Social Services Pooled Budgets,Jcs For People With Learning Disabilitie,Third Party Payments,Home Care,568,08-Aug-13,1308-00193,1910.64,R,Affinity Trust
http://statistics.data.gov.uk/doc/local-authority/00DA,Leeds City Council as Accountable Body,Social Services Pooled Budgets,Jcs For People With Learning Disabilitie,Third Party Payments,Home Care,568,08-Aug-13,1308-00194,2159.92,R,Affinity Trust
http://statistics.data.gov.uk/doc/local-authority/00DA,Leeds City Council as Accountable Body,Social Services Pooled Budgets,Jcs For People With Learning Disabilitie,Third Party Payments,Home Care,568,15-Aug-13,1308-00195,2681.6,R,Affinity Trust
http://statistics.data.gov.uk/doc/local-authority/00DA,Leeds City Council as Accountable Body,Social Services Pooled Budgets,Jcs For People With Learning Disabilitie,Third Party Payments,Home Care,568,12-Aug-13,1308-00196,3467.84,R,Affinity Trust
http://statistics.data.gov.uk/doc/local-authority/00DA,Leeds City Council as Accountable Body,Social Services Pooled Budgets,Jcs For People With Learning Disabilitie,Third Party Payments,Home Care,568,28-Aug-13,1308-00197,3532.8,R,Affinity Trust
http://statistics.data.gov.uk/doc/local-authority/00DA,Leeds City Council as Accountable Body,Social Services Pooled Budgets,Jcs For People With Learning Disabilitie,Third Party Payments,Home Care,568,23-Aug-13,1308-00198,3848.08,R,Affinity Trust
http://statistics.data.gov.uk/doc/local-authority/00DA,Leeds City Council as Accountable Body,Social Services Pooled Budgets,Jcs For People With Learning Disabilitie,Third Party Payments,Home Care,568,23-Aug-13,1308-00199,6193.32,R,Affinity Trust
http://statistics.data.gov.uk/doc/local-authority/00DA,Leeds City Council as Accountable Body,Social Services Pooled Budgets,Jcs For People With Learning Disabilitie,Third Party Payments,Sheltered Accommodation,569,28-Aug-13,1308-00200,177041.4,R,Affinity Trust North Divisional Office
http://statistics.data.gov.uk/doc/local-authority/00DA,Leeds City Council,City Development,Recreation  ,Transport,Hire of Movable Plant & Machinery,315,11-Jul-13,1308-00201,1140,R,Afi Uplift Ltd
http://statistics.data.gov.uk/doc/local-authority/00DA,Leeds City Council,City Development,Recreation  ,Transport,Hire of Movable Plant & Machinery,315,11-Jul-13,1308-00202,1140,R,Afi Uplift Ltd
http://statistics.data.gov.uk/doc/local-authority/00DA,Leeds City Council,City Development,Recreation  ,Transport,Hire of Movable Plant & Machinery,315,11-Jul-13,1308-00203,1140,R,Afi Uplift Ltd
http://statistics.data.gov.uk/doc/local-authority/00DA,Leeds City Council,City Development,Recreation  ,Transport,Hire of Movable Plant & Machinery,315,11-Jul-13,1308-00204,1140,R,Afi Uplift Ltd
http://statistics.data.gov.uk/doc/local-authority/00DA,Leeds City Council,City Development,Recreation  ,Transport,Hire of Movable Plant & Machinery,315,11-Jul-13,1308-00205,1140,R,Afi Uplift Ltd
http://statistics.data.gov.uk/doc/local-authority/00DA,Leeds City Council,City Development,Recreation  ,Transport,Outside Repairs (Non CVM),344,11-Jul-13,1308-00206,820.08,R,Afi Uplift Ltd
http://statistics.data.gov.uk/doc/local-authority/00DA,Leeds City Council,Environment & Housing,Statutory Housing,Supplies and Services,Other Hired And Contracted Services,265,22-Aug-13,1308-00207,650,R,Afk Estates
http://statistics.data.gov.uk/doc/local-authority/00DA,Leeds City Council,Childrens Services,Safeguarding Targeted & Specialist,Third Party Payments,Interagency Adoptions,559,29-Aug-13,1308-00208,1500,R,After Adoption
http://statistics.data.gov.uk/doc/local-authority/00DA,Leeds City Council,Childrens Services,Safeguarding Targeted & Specialist,Third Party Payments,Payments To Voluntary Organisations,561,21-Aug-13,1308-00209,17500,R,After Adoption Yorkshire
http://statistics.data.gov.uk/doc/local-authority/00DA,Leeds City Council,Central & Corporate,Commercial Services Trading Services,Supplies and Services,Other Hired And Contracted Services,265,23-Aug-13,1308-00210,13500,R,Age Uk Leeds
http://statistics.data.gov.uk/doc/local-authority/00DA,Leeds City Council,Environment & Housing,Strategy & Commissioning,Third Party Payments,Supporting Ppl - Block Gross Chargeable,514,09-Aug-13,1308-00211,3957.68,R,Age Uk Leeds
http://statistics.data.gov.uk/doc/local-authority/00DA,Leeds City Council,Adult Social Care,Services For Older People Under 65 P/Dis,Third Party Payments,Residential,580,28-Aug-13,1308-00212,5612.16,R,Agricola House
http://statistics.data.gov.uk/doc/local-authority/00DA,Leeds City Council,Adult Social Care,Services For Older People Under 65 P/Dis,Transfer Payments,Personalised Budgets,627,28-Aug-13,1308-00213,531.2,R,REDACTED PERSONAL DATA
http://statistics.data.gov.uk/doc/local-authority/00DA,Leeds City Council as Accountable Body,Social Services Pooled Budgets,Leeds Community Equip Store Pooled Budgt,Supplies and Services,Other Equipment,203,02-Aug-13,1308-00214,860,R,Aidapt Bathrooms Ltd
http://statistics.data.gov.uk/doc/local-authority/00DA,Leeds City Council as Accountable Body,Social Services Pooled Budgets,Leeds Community Equip Store Pooled Budgt,Supplies and Services,Other Equipment,203,29-Aug-13,1308-00215,1038,R,Aidapt Bathrooms Ltd
http://statistics.data.gov.uk/doc/local-authority/00DA,Leeds City Council as Accountable Body,Social Services Pooled Budgets,Leeds Community Equip Store Pooled Budgt,Supplies and Services,Other Equipment,203,08-Aug-13,1308-00216,1038,R,Aidapt Bathrooms Ltd
http://statistics.data.gov.uk/doc/local-authority/00DA,Leeds City Council as Accountable Body,Social Services Pooled Budgets,Leeds Community Equip Store Pooled Budgt,Supplies and Services,Other Equipment,203,16-Aug-13,1308-00217,1555,R,Aidapt Bathrooms Ltd
http://statistics.data.gov.uk/doc/local-authority/00DA,Leeds City Council as Accountable Body,Social Services Pooled Budgets,Leeds Community Equip Store Pooled Budgt,Supplies and Services,Other Equipment,203,16-Aug-13,1308-00218,1824,R,Aidapt Bathrooms Ltd
http://statistics.data.gov.uk/doc/local-authority/00DA,Leeds City Council as Accountable Body,Social Services Pooled Budgets,Leeds Community Equip Store Pooled Budgt,Supplies and Services,Other Equipment,203,09-Aug-13,1308-00219,1825,R,Aidapt Bathrooms Ltd
http://statistics.data.gov.uk/doc/local-authority/00DA,Leeds City Council as Accountable Body,Social Services Pooled Budgets,Leeds Community Equip Store Pooled Budgt,Supplies and Services,Other Equipment,203,30-Aug-13,1308-00220,2200,R,Aidapt Bathrooms Ltd
http://statistics.data.gov.uk/doc/local-authority/00DA,Leeds City Council as Accountable Body,Social Services Pooled Budgets,Leeds Community Equip Store Pooled Budgt,Supplies and Services,Other Equipment,203,08-Aug-13,1308-00221,2275.6,R,Aidapt Bathrooms Ltd
http://statistics.data.gov.uk/doc/local-authority/00DA,Leeds City Council as Accountable Body,Social Services Pooled Budgets,Jcs For People With Learning Disabilitie,Transfer Payments,Personal Budgets,627,28-Aug-13,1308-00222,2839.32,R,REDACTED PERSONAL DATA
http://statistics.data.gov.uk/doc/local-authority/00DA,Leeds City Council,Childrens Services,Safeguarding Targeted & Specialist,Supplies and Services,Operational Furniture And Equipment,203,09-Aug-13,1308-00223,484.3,R,Aidservice Ltd
http://statistics.data.gov.uk/doc/local-authority/00DA,Leeds City Council as Accountable Body,Social Services Pooled Budgets,Jcs For People With Learning Disabilitie,Supplies and Services,Other Equipment,203,15-Aug-13,1308-00224,427.3,R,Aidservice Ltd
http://statistics.data.gov.uk/doc/local-authority/00DA,Leeds City Council as Accountable Body,Social Services Pooled Budgets,Jcs For People With Learning Disabilitie,Supplies and Services,Other Equipment,203,09-Aug-13,1308-00225,562.3,R,Aidservice Ltd
http://statistics.data.gov.uk/doc/local-authority/00DA,Leeds City Council,Childrens Services,Safeguarding Targeted & Specialist,Employees,Tuition & Course Fees,73,23-Aug-13,1308-00226,520,R,Aim Project
http://statistics.data.gov.uk/doc/local-authority/00DA,Leeds City Council,Environment & Housing,Parks & Countryside,Supplies and Services,Other Hired And Contracted Services,265,08-Aug-13,1308-00227,1950,R,Ainsty Timber Marketing Ltd
http://statistics.data.gov.uk/doc/local-authority/00DA,Leeds City Council,Adult Social Care,Services For Adults Under 65 Mental/Dis,Third Party Payments,Residential,580,28-Aug-13,1308-00228,6028.4,R,Aire House
http://statistics.data.gov.uk/doc/local-authority/00DA,Leeds City Council as Accountable Body,Social Services Pooled Budgets,Jcs For People With Learning Disabilitie,Third Party Payments,Residential,580,28-Aug-13,1308-00229,9106.64,R,Aire House
http://statistics.data.gov.uk/doc/local-authority/00DA,Leeds City Council,Adult Social Care,Services For Older People - 65 And Over,Third Party Payments,Residential Care Dementia,571,28-Aug-13,1308-00230,45128.9,R,Aire View Residential Home
http://statistics.data.gov.uk/doc/local-authority/00DA,Leeds City Council,Adult Social Care,Services For Older People - 65 And Over,Third Party Payments,Residential,580,28-Aug-13,1308-00231,14981.29,R,Aire View Residential Home
http://statistics.data.gov.uk/doc/local-authority/00DA,Leeds City Council,Central & Corporate,Executive Support,Supplies and Services,'Well Being' Large Grants Projects,230,22-Aug-13,1308-00232,445.25,R,Aireborough Summer Activities Scheme
http://statistics.data.gov.uk/doc/local-authority/00DA,Leeds City Council,Central & Corporate,Executive Support,Supplies and Services,'Well Being' Large Grants Projects,230,22-Aug-13,1308-00233,5265,R,Aireborough Summer Activities Scheme
http://statistics.data.gov.uk/doc/local-authority/00DA,Leeds City Council,Adult Social Care,Services For Older People - 65 And Over,Third Party Payments,Residential,580,28-Aug-13,1308-00234,24743.9,R,Airedale (Goldsborough)
http://statistics.data.gov.uk/doc/local-authority/00DA,Leeds City Council,Adult Social Care,Services For Older People - 65 And Over,Third Party Payments,Home Care,568,28-Aug-13,1308-00235,3837.38,R,Aj Social Care
http://statistics.data.gov.uk/doc/local-authority/00DA,Leeds City Council,Adult Social Care,Services For Older People - 65 And Over,Third Party Payments,Home Care,568,23-Aug-13,1308-00236,8248.71,R,Aj Social Care
http://statistics.data.gov.uk/doc/local-authority/00DA,Leeds City Council,Adult Social Care,Services For Older People Under 65 P/Dis,Third Party Payments,Home Care,568,28-Aug-13,1308-00237,567,R,Aj Social Care
http://statistics.data.gov.uk/doc/local-authority/00DA,Leeds City Council,Adult Social Care,Services For Older People Under 65 P/Dis,Third Party Payments,Home Care,568,23-Aug-13,1308-00238,2525.82,R,Aj Social Care
http://statistics.data.gov.uk/doc/local-authority/00DA,East - North East ,East - North East,Construction Services,Supplies and Services,Other Materials,205,27-Aug-13,1308-00239,1700,R,Ajm Fixings & Power Tools Ltd
http://statistics.data.gov.uk/doc/local-authority/00DA,Leeds City Council,Central & Corporate,Commercial Services Trading Services,Supplies and Services,Operational Materials,205,09-Aug-13,1308-00240,501,R,Ajm Fixings & Power Tools Ltd
http://statistics.data.gov.uk/doc/local-authority/00DA,Leeds City Council,Adult Social Care,Services For Older People - 65 And Over,Third Party Payments,Nursing Home,570,01-Aug-13,1308-00241,1298.84,R,Akari Care Ltd
http://statistics.data.gov.uk/doc/local-authority/00DA,Leeds City Council,Adult Social Care,Services For Older People - 65 And Over,Third Party Payments,Nursing Home,570,29-Aug-13,1308-00242,1298.84,R,Akari Care Ltd
http://statistics.data.gov.uk/doc/local-authority/00DA,Leeds City Council as Accountable Body,Social Services Pooled Budgets,Jcs For People With Learning Disabilitie,Transfer Payments,Personal Budgets,627,28-Aug-13,1308-00243,711.96,R,REDACTED PERSONAL DATA
http://statistics.data.gov.uk/doc/local-authority/00DA,Leeds City Council,Adult Social Care,Services For Older People - 65 And Over,Third Party Payments,Payments To Voluntary Organisations,561,28-Aug-13,1308-00244,6000,R,Al Khidmat Centre
http://statistics.data.gov.uk/doc/local-authority/00DA,Leeds City Council,Adult Social Care,Services For Older People Under 65 P/Dis,Transfer Payments,Personalised Budgets,627,28-Aug-13,1308-00245,2036.72,R,REDACTED PERSONAL DATA
http://statistics.data.gov.uk/doc/local-authority/00DA,Leeds City Council,Adult Social Care,Services For Older People - 65 And Over,Transfer Payments,Direct Payments,626,28-Aug-13,1308-00246,2916.88,R,REDACTED PERSONAL DATA
http://statistics.data.gov.uk/doc/local-authority/00DA,Leeds City Council,Childrens Services,Learning Skills & Universal,Supplies and Services,Operational Furniture And Equipment,203,02-Aug-13,1308-00247,600,R,Alex Baird & Sons Ltd
http://statistics.data.gov.uk/doc/local-authority/00DA,Leeds City Council as Accountable Body,Social Services Pooled Budgets,Jcs For People With Learning Disabilitie,Transfer Payments,Asylum Seekers,626,28-Aug-13,1308-00248,1144.8,R,REDACTED PERSONAL DATA
http://statistics.data.gov.uk/doc/local-authority/00DA,Leeds City Council,Adult Social Care,Services For Older People Under 65 P/Dis,Transfer Payments,Direct Payments,626,28-Aug-13,1308-00249,1241.39,R,REDACTED PERSONAL DATA
http://statistics.data.gov.uk/doc/local-authority/00DA,Leeds City Council,Childrens Services,Safeguarding Targeted & Specialist,Support Services,Legal Disbursements,411,23-Aug-13,1308-00250,8975.5,R,Alex Taylor
http://statistics.data.gov.uk/doc/local-authority/00DA,Leeds City Council,Adult Social Care,Services For Older People - 65 And Over,Third Party Payments,Nursing Home,570,01-Aug-13,1308-00251,1614.76,R,Alexander Court Care Home
http://statistics.data.gov.uk/doc/local-authority/00DA,Leeds City Council,Adult Social Care,Services For Older People - 65 And Over,Third Party Payments,Nursing Home,570,29-Aug-13,1308-00252,1614.76,R,Alexander Court Care Home
http://statistics.data.gov.uk/doc/local-authority/00DA,Leeds City Council,Adult Social Care,Services For Older People - 65 And Over,Third Party Payments,Nursing Care Dementia,574,29-Aug-13,1308-00253,1165.67,R,Alexander Court Care Home
http://statistics.data.gov.uk/doc/local-authority/00DA,Leeds City Council,Adult Social Care,Services For Older People Under 65 P/Dis,Transfer Payments,Personalised Budgets,627,28-Aug-13,1308-00254,706.24,R,REDACTED PERSONAL DATA
http://statistics.data.gov.uk/doc/local-authority/00DA,Leeds City Council,Adult Social Care,Services For Adults Under 65 Mental/Dis,Transfer Payments,Personalised Budgets,627,28-Aug-13,1308-00255,640,R,REDACTED PERSONAL DATA
http://statistics.data.gov.uk/doc/local-authority/00DA,Leeds City Council,Adult Social Care,Services For Adults Under 65 Mental/Dis,Third Party Payments,Residential,580,28-Aug-13,1308-00256,9724,R,Alexander Residential Home
http://statistics.data.gov.uk/doc/local-authority/00DA,Leeds City Council,Adult Social Care,Services For Older People - 65 And Over,Third Party Payments,Residential Care Dementia,571,28-Aug-13,1308-00257,6795.96,R,Alexander Residential Home
http://statistics.data.gov.uk/doc/local-authority/00DA,Leeds City Council,Adult Social Care,Services For Older People - 65 And Over,Third Party Payments,Residential,580,28-Aug-13,1308-00258,17519.96,R,Alexander Residential Home
http://statistics.data.gov.uk/doc/local-authority/00DA,Leeds City Council as Accountable Body,Social Services Pooled Budgets,Jcs For People With Learning Disabilitie,Third Party Payments,Residential,580,28-Aug-13,1308-00259,1230,R,Alexander Residential Home
http://statistics.data.gov.uk/doc/local-authority/00DA,Leeds City Council as Accountable Body,Social Services Pooled Budgets,Jcs For People With Learning Disabilitie,Transfer Payments,Personal Budgets,627,28-Aug-13,1308-00260,536.48,R,REDACTED PERSONAL DATA
http://statistics.data.gov.uk/doc/local-authority/00DA,Leeds City Council,Adult Social Care,Services For Older People - 65 And Over,Third Party Payments,Residential,580,28-Aug-13,1308-00261,893.8,R,Alexandra Court
http://statistics.data.gov.uk/doc/local-authority/00DA,Leeds City Council,Environment & Housing,Environmental Action (South),Supplies and Services,Bought In Professional Services,277,19-Aug-13,1308-00262,492.7,R,Alfies Boarding Kennels
http://statistics.data.gov.uk/doc/local-authority/00DA,Leeds City Council,Environment & Housing,Environmental Action (South),Supplies and Services,Bought In Professional Services,277,19-Aug-13,1308-00263,700,R,Alfies Boarding Kennels
http://statistics.data.gov.uk/doc/local-authority/00DA,Leeds City Council,Adult Social Care,Adult Social Care,Capital,Other Costs,7,30-Aug-13,1308-00264,6932,C,Alfred Bagnall & Sons (Leeds) Ltd
http://statistics.data.gov.uk/doc/local-authority/00DA,Leeds City Council,City Development,Asset Management Services,Premises,Maintenance Of Buildings,101,14-Aug-13,1308-00265,854.4,R,Alfred Bagnall & Sons (Leeds) Ltd
http://statistics.data.gov.uk/doc/local-authority/00DA,Leeds City Council,City Development,Asset Management Services,Premises,Maintenance Of Buildings,101,21-Aug-13,1308-00266,2437.5,R,Alfred Bagnall & Sons (Leeds) Ltd
http://statistics.data.gov.uk/doc/local-authority/00DA,Leeds City Council,City Development,Asset Management Services,Premises,Maintenance Of Buildings,101,14-Aug-13,1308-00267,4955.44,R,Alfred Bagnall & Sons (Leeds) Ltd
http://statistics.data.gov.uk/doc/local-authority/00DA,Leeds City Council,City Development,Asset Management Services,Premises,Maintenance Of Buildings,101,21-Aug-13,1308-00268,34932,R,Alfred Bagnall & Sons (Leeds) Ltd
http://statistics.data.gov.uk/doc/local-authority/00DA,Leeds City Council,Adult Social Care,Services For Older People Under 65 P/Dis,Transfer Payments,Personalised Budgets,627,28-Aug-13,1308-00269,525.36,R,REDACTED PERSONAL DATA
http://statistics.data.gov.uk/doc/local-authority/00DA,Leeds City Council,Adult Social Care,Services For Older People - 65 And Over,Transfer Payments,Personalised Budgets,627,28-Aug-13,1308-00270,489.24,R,REDACTED PERSONAL DATA
http://statistics.data.gov.uk/doc/local-authority/00DA,Leeds City Council as Accountable Body,Social Services Pooled Budgets,Jcs For People With Learning Disabilitie,Transfer Payments,Personal Budgets,627,28-Aug-13,1308-00271,947.96,R,REDACTED PERSONAL DATA
http://statistics.data.gov.uk/doc/local-authority/00DA,Leeds City Council,City Development,Libraries  Arts & Heritage,Supplies and Services,Bought In Professional Services,277,01-Aug-13,1308-00272,2461.2,R,Alison Glew
http://statistics.data.gov.uk/doc/local-authority/00DA,Leeds City Council,Adult Social Care,Services For Older People Under 65 P/Dis,Transfer Payments,Personalised Budgets,627,28-Aug-13,1308-00273,2666.4,R,REDACTED PERSONAL DATA
http://statistics.data.gov.uk/doc/local-authority/00DA,Leeds City Council,Adult Social Care,Services For Older People Under 65 P/Dis,Transfer Payments,Personalised Budgets,627,28-Aug-13,1308-00274,5307.16,R,REDACTED PERSONAL DATA
http://statistics.data.gov.uk/doc/local-authority/00DA,Leeds City Council,Adult Social Care,Services For Older People - 65 And Over,Third Party Payments,Residential,580,28-Aug-13,1308-00275,1107.4,R,Allendale Residential Home
http://statistics.data.gov.uk/doc/local-authority/00DA,Leeds City Council as Accountable Body,Social Services Pooled Budgets,Jcs For People With Learning Disabilitie,Third Party Payments,Residential,580,28-Aug-13,1308-00276,15616.36,R,Allerton Avenue
http://statistics.data.gov.uk/doc/local-authority/00DA,Leeds City Council,Central & Corporate,Benefits,Supplies and Services,Bank Charges,263,06-Aug-13,1308-00277,1470.81,R,Alliance & Leicester Commercial Bank
http://statistics.data.gov.uk/doc/local-authority/00DA,Leeds City Council,Adult Social Care,Other Generic Services,Third Party Payments,Home Care,568,28-Aug-13,1308-00278,6264,R,Allied Healthcare Group Ltd
http://statistics.data.gov.uk/doc/local-authority/00DA,Leeds City Council,Adult Social Care,Other Generic Services,Third Party Payments,Home Care,568,28-Aug-13,1308-00279,6958.79,R,Allied Healthcare Group Ltd
http://statistics.data.gov.uk/doc/local-authority/00DA,Leeds City Council,Adult Social Care,Other Generic Services,Third Party Payments,Home Care,568,28-Aug-13,1308-00280,14843.15,R,Allied Healthcare Group Ltd
http://statistics.data.gov.uk/doc/local-authority/00DA,Leeds City Council,Adult Social Care,Other Generic Services,Third Party Payments,Home Care,568,28-Aug-13,1308-00281,16674.74,R,Allied Healthcare Group Ltd
http://statistics.data.gov.uk/doc/local-authority/00DA,Leeds City Council,Adult Social Care,Services For Older People - 65 And Over,Supplies and Services,Contingency-Supplies & Services,268,15-Aug-13,1308-00282,2837.17,R,Allied Healthcare Group Ltd
http://statistics.data.gov.uk/doc/local-authority/00DA,Leeds City Council,Adult Social Care,Services For Older People - 65 And Over,Third Party Payments,Home Care,568,22-Aug-13,1308-00283,438.1,R,Allied Healthcare Group Ltd
http://statistics.data.gov.uk/doc/local-authority/00DA,Leeds City Council,Adult Social Care,Services For Older People - 65 And Over,Third Party Payments,Home Care,568,08-Aug-13,1308-00284,439.45,R,Allied Healthcare Group Ltd
http://statistics.data.gov.uk/doc/local-authority/00DA,Leeds City Council,Adult Social Care,Services For Older People - 65 And Over,Third Party Payments,Home Care,568,22-Aug-13,1308-00285,632.4,R,Allied Healthcare Group Ltd
http://statistics.data.gov.uk/doc/local-authority/00DA,Leeds City Council,Adult Social Care,Services For Older People - 65 And Over,Third Party Payments,Home Care,568,08-Aug-13,1308-00286,810.2,R,Allied Healthcare Group Ltd
http://statistics.data.gov.uk/doc/local-authority/00DA,Leeds City Council,Adult Social Care,Services For Older People - 65 And Over,Third Party Payments,Home Care,568,08-Aug-13,1308-00287,846.09,R,Allied Healthcare Group Ltd
http://statistics.data.gov.uk/doc/local-authority/00DA,Leeds City Council,Adult Social Care,Services For Older People - 65 And Over,Third Party Payments,Home Care,568,08-Aug-13,1308-00288,853.2,R,Allied Healthcare Group Ltd
http://statistics.data.gov.uk/doc/local-authority/00DA,Leeds City Council,Adult Social Care,Services For Older People - 65 And Over,Third Party Payments,Home Care,568,08-Aug-13,1308-00289,854.3,R,Allied Healthcare Group Ltd
http://statistics.data.gov.uk/doc/local-authority/00DA,Leeds City Council,Adult Social Care,Services For Older People - 65 And Over,Third Party Payments,Home Care,568,08-Aug-13,1308-00290,854.3,R,Allied Healthcare Group Ltd
http://statistics.data.gov.uk/doc/local-authority/00DA,Leeds City Council,Adult Social Care,Services For Older People - 65 And Over,Third Party Payments,Home Care,568,08-Aug-13,1308-00291,857.36,R,Allied Healthcare Group Ltd
http://statistics.data.gov.uk/doc/local-authority/00DA,Leeds City Council,Adult Social Care,Services For Older People - 65 And Over,Third Party Payments,Home Care,568,08-Aug-13,1308-00292,857.52,R,Allied Healthcare Group Ltd
http://statistics.data.gov.uk/doc/local-authority/00DA,Leeds City Council,Adult Social Care,Services For Older People - 65 And Over,Third Party Payments,Home Care,568,08-Aug-13,1308-00293,857.52,R,Allied Healthcare Group Ltd
http://statistics.data.gov.uk/doc/local-authority/00DA,Leeds City Council,Adult Social Care,Services For Older People - 65 And Over,Third Party Payments,Home Care,568,23-Aug-13,1308-00294,913.22,R,Allied Healthcare Group Ltd
http://statistics.data.gov.uk/doc/local-authority/00DA,Leeds City Council,Adult Social Care,Services For Older People - 65 And Over,Third Party Payments,Home Care,568,28-Aug-13,1308-00295,1090.32,R,Allied Healthcare Group Ltd
http://statistics.data.gov.uk/doc/local-authority/00DA,Leeds City Council,Adult Social Care,Services For Older People - 65 And Over,Third Party Payments,Home Care,568,08-Aug-13,1308-00296,1640.84,R,Allied Healthcare Group Ltd
http://statistics.data.gov.uk/doc/local-authority/00DA,Leeds City Council,Adult Social Care,Services For Older People - 65 And Over,Third Party Payments,Home Care,568,16-Aug-13,1308-00297,2254.61,R,Allied Healthcare Group Ltd
http://statistics.data.gov.uk/doc/local-authority/00DA,Leeds City Council,Adult Social Care,Services For Older People - 65 And Over,Third Party Payments,Home Care,568,15-Aug-13,1308-00298,2503.65,R,Allied Healthcare Group Ltd
http://statistics.data.gov.uk/doc/local-authority/00DA,Leeds City Council,Adult Social Care,Services For Older People - 65 And Over,Third Party Payments,Home Care,568,28-Aug-13,1308-00299,2711.69,R,Allied Healthcare Group Ltd
http://statistics.data.gov.uk/doc/local-authority/00DA,Leeds City Council,Adult Social Care,Services For Older People - 65 And Over,Third Party Payments,Home Care,568,28-Aug-13,1308-00300,4327.32,R,Allied Healthcare Group Ltd
http://statistics.data.gov.uk/doc/local-authority/00DA,Leeds City Council,Adult Social Care,Services For Older People - 65 And Over,Third Party Payments,Home Care,568,15-Aug-13,1308-00301,4376.81,R,Allied Healthcare Group Ltd
http://statistics.data.gov.uk/doc/local-authority/00DA,Leeds City Council,Adult Social Care,Services For Older People - 65 And Over,Third Party Payments,Home Care,568,28-Aug-13,1308-00302,4513.4,R,Allied Healthcare Group Ltd
http://statistics.data.gov.uk/doc/local-authority/00DA,Leeds City Council,Adult Social Care,Services For Older People - 65 And Over,Third Party Payments,Home Care,568,29-Aug-13,1308-00303,5592.36,R,Allied Healthcare Group Ltd
http://statistics.data.gov.uk/doc/local-authority/00DA,Leeds City Council,Adult Social Care,Services For Older People - 65 And Over,Third Party Payments,Home Care,568,16-Aug-13,1308-00304,8434.67,R,Allied Healthcare Group Ltd
http://statistics.data.gov.uk/doc/local-authority/00DA,Leeds City Council,Adult Social Care,Services For Older People - 65 And Over,Third Party Payments,Home Care,568,05-Aug-13,1308-00305,8610.07,R,Allied Healthcare Group Ltd
http://statistics.data.gov.uk/doc/local-authority/00DA,Leeds City Council,Adult Social Care,Services For Older People - 65 And Over,Third Party Payments,Home Care,568,28-Aug-13,1308-00306,9838.6,R,Allied Healthcare Group Ltd
http://statistics.data.gov.uk/doc/local-authority/00DA,Leeds City Council,Adult Social Care,Services For Older People - 65 And Over,Third Party Payments,Home Care,568,28-Aug-13,1308-00307,17409.09,R,Allied Healthcare Group Ltd
http://statistics.data.gov.uk/doc/local-authority/00DA,Leeds City Council,Adult Social Care,Services For Older People Under 65 P/Dis,Third Party Payments,Home Care,568,29-Aug-13,1308-00308,-2320.4,R,Allied Healthcare Group Ltd
http://statistics.data.gov.uk/doc/local-authority/00DA,Leeds City Council,Adult Social Care,Services For Older People Under 65 P/Dis,Third Party Payments,Home Care,568,22-Aug-13,1308-00309,838.7,R,Allied Healthcare Group Ltd
http://statistics.data.gov.uk/doc/local-authority/00DA,Leeds City Council,Adult Social Care,Services For Older People Under 65 P/Dis,Third Party Payments,Home Care,568,28-Aug-13,1308-00310,914.17,R,Allied Healthcare Group Ltd
http://statistics.data.gov.uk/doc/local-authority/00DA,Leeds City Council,Adult Social Care,Services For Older People Under 65 P/Dis,Third Party Payments,Home Care,568,15-Aug-13,1308-00311,967.95,R,Allied Healthcare Group Ltd
http://statistics.data.gov.uk/doc/local-authority/00DA,Leeds City Council,Adult Social Care,Services For Older People Under 65 P/Dis,Third Party Payments,Home Care,568,16-Aug-13,1308-00312,1205.04,R,Allied Healthcare Group Ltd
http://statistics.data.gov.uk/doc/local-authority/00DA,Leeds City Council,Adult Social Care,Services For Older People Under 65 P/Dis,Third Party Payments,Home Care,568,05-Aug-13,1308-00313,1236.85,R,Allied Healthcare Group Ltd
http://statistics.data.gov.uk/doc/local-authority/00DA,Leeds City Council,Adult Social Care,Services For Older People Under 65 P/Dis,Third Party Payments,Home Care,568,16-Aug-13,1308-00314,1239.81,R,Allied Healthcare Group Ltd
http://statistics.data.gov.uk/doc/local-authority/00DA,Leeds City Council,Adult Social Care,Services For Older People Under 65 P/Dis,Third Party Payments,Home Care,568,22-Aug-13,1308-00315,1295.4,R,Allied Healthcare Group Ltd
http://statistics.data.gov.uk/doc/local-authority/00DA,Leeds City Council,Adult Social Care,Services For Older People Under 65 P/Dis,Third Party Payments,Home Care,568,08-Aug-13,1308-00316,1324.32,R,Allied Healthcare Group Ltd
http://statistics.data.gov.uk/doc/local-authority/00DA,Leeds City Council,Adult Social Care,Services For Older People Under 65 P/Dis,Third Party Payments,Home Care,568,28-Aug-13,1308-00317,1376.04,R,Allied Healthcare Group Ltd
http://statistics.data.gov.uk/doc/local-authority/00DA,Leeds City Council,Adult Social Care,Services For Older People Under 65 P/Dis,Third Party Payments,Home Care,568,22-Aug-13,1308-00318,1428,R,Allied Healthcare Group Ltd
http://statistics.data.gov.uk/doc/local-authority/00DA,Leeds City Council,Adult Social Care,Services For Older People Under 65 P/Dis,Third Party Payments,Home Care,568,22-Aug-13,1308-00319,5668.22,R,Allied Healthcare Group Ltd
http://statistics.data.gov.uk/doc/local-authority/00DA,Leeds City Council,Childrens Services,Safeguarding Targeted & Specialist,Third Party Payments,Section 17,551,20-Aug-13,1308-00320,608,R,Allied Healthcare Group Ltd
http://statistics.data.gov.uk/doc/local-authority/00DA,Leeds City Council,Childrens Services,Safeguarding Targeted & Specialist,Third Party Payments,Section 17,551,28-Aug-13,1308-00321,622.25,R,Allied Healthcare Group Ltd
http://statistics.data.gov.uk/doc/local-authority/00DA,Leeds City Council,Childrens Services,Safeguarding Targeted & Specialist,Third Party Payments,Section 17,551,06-Aug-13,1308-00322,760,R,Allied Healthcare Group Ltd
http://statistics.data.gov.uk/doc/local-authority/00DA,Leeds City Council,Childrens Services,Safeguarding Targeted & Specialist,Third Party Payments,Section 17,551,20-Aug-13,1308-00323,835.52,R,Allied Healthcare Group Ltd
http://statistics.data.gov.uk/doc/local-authority/00DA,Leeds City Council as Accountable Body,Social Services Pooled Budgets,Jcs For People With Learning Disabilitie,Third Party Payments,Home Care,568,15-Aug-13,1308-00324,426.72,R,Allied Healthcare Group Ltd
http://statistics.data.gov.uk/doc/local-authority/00DA,Leeds City Council as Accountable Body,Social Services Pooled Budgets,Jcs For People With Learning Disabilitie,Third Party Payments,Home Care,568,08-Aug-13,1308-00325,451.82,R,Allied Healthcare Group Ltd
http://statistics.data.gov.uk/doc/local-authority/00DA,Leeds City Council as Accountable Body,Social Services Pooled Budgets,Jcs For People With Learning Disabilitie,Third Party Payments,Home Care,568,20-Aug-13,1308-00326,552.21,R,Allied Healthcare Group Ltd
http://statistics.data.gov.uk/doc/local-authority/00DA,Leeds City Council as Accountable Body,Social Services Pooled Budgets,Jcs For People With Learning Disabilitie,Third Party Payments,Home Care,568,02-Aug-13,1308-00327,1973.84,R,Allied Healthcare Group Ltd
http://statistics.data.gov.uk/doc/local-authority/00DA,Leeds City Council as Accountable Body,Social Services Pooled Budgets,Jcs For People With Learning Disabilitie,Third Party Payments,Home Care,568,28-Aug-13,1308-00328,2613.17,R,Allied Healthcare Group Ltd
http://statistics.data.gov.uk/doc/local-authority/00DA,Leeds City Council as Accountable Body,Social Services Pooled Budgets,Jcs For People With Learning Disabilitie,Third Party Payments,Home Care,568,08-Aug-13,1308-00329,3039,R,Allied Healthcare Group Ltd
http://statistics.data.gov.uk/doc/local-authority/00DA,Leeds City Council as Accountable Body,Social Services Pooled Budgets,Jcs For People With Learning Disabilitie,Third Party Payments,Home Care,568,15-Aug-13,1308-00330,3190.51,R,Allied Healthcare Group Ltd
http://statistics.data.gov.uk/doc/local-authority/00DA,Leeds City Council as Accountable Body,Social Services Pooled Budgets,Jcs For People With Learning Disabilitie,Third Party Payments,Home Care,568,01-Aug-13,1308-00331,3329.25,R,Allied Healthcare Group Ltd
http://statistics.data.gov.uk/doc/local-authority/00DA,Leeds City Council as Accountable Body,Social Services Pooled Budgets,Jcs For People With Learning Disabilitie,Third Party Payments,Home Care,568,06-Aug-13,1308-00332,3376.66,R,Allied Healthcare Group Ltd
http://statistics.data.gov.uk/doc/local-authority/00DA,Leeds City Council as Accountable Body,Social Services Pooled Budgets,Jcs For People With Learning Disabilitie,Third Party Payments,Home Care,568,01-Aug-13,1308-00333,3749.72,R,Allied Healthcare Group Ltd
http://statistics.data.gov.uk/doc/local-authority/00DA,Leeds City Council as Accountable Body,Social Services Pooled Budgets,Jcs For People With Learning Disabilitie,Third Party Payments,Home Care,568,20-Aug-13,1308-00334,3766.1,R,Allied Healthcare Group Ltd
http://statistics.data.gov.uk/doc/local-authority/00DA,Leeds City Council as Accountable Body,Social Services Pooled Budgets,Jcs For People With Learning Disabilitie,Third Party Payments,Home Care,568,08-Aug-13,1308-00335,3803.62,R,Allied Healthcare Group Ltd
http://statistics.data.gov.uk/doc/local-authority/00DA,Leeds City Council as Accountable Body,Social Services Pooled Budgets,Jcs For People With Learning Disabilitie,Third Party Payments,Home Care,568,15-Aug-13,1308-00336,3815.68,R,Allied Healthcare Group Ltd
http://statistics.data.gov.uk/doc/local-authority/00DA,Leeds City Council,Central & Corporate,Public Health,Third Party Payments,Public Health Commissioned Services,526,15-Aug-13,1308-00337,427.45,R,Allied Pharmacy Ltd
http://statistics.data.gov.uk/doc/local-authority/00DA,Leeds City Council,City Development,Libraries  Arts & Heritage,Supplies and Services,Art Galleries Total Stores,3,09-Aug-13,1308-00338,697.5,R,Allison Wiffen
http://statistics.data.gov.uk/doc/local-authority/00DA,Leeds City Council,Childrens Services,Learning Skills & Universal,Transport,Fuel (Non LCC Supplies),321,07-Aug-13,1308-00339,3344.03,R,Allstar Business Solutions Ltd
http://statistics.data.gov.uk/doc/local-authority/00DA,Leeds City Council,City Development,Highways,Transport,Fuel (Non LCC Supplies),321,07-Aug-13,1308-00340,459.95,R,Allstar Business Solutions Ltd
http://statistics.data.gov.uk/doc/local-authority/00DA,Leeds City Council,Central & Corporate,Commercial Services Trading Services,Supplies and Services,Other Hired And Contracted Services,265,02-Aug-13,1308-00341,553.34,R,Alternative Windows (Leeds) Ltd
http://statistics.data.gov.uk/doc/local-authority/00DA,Leeds City Council,Central & Corporate,Commercial Services Trading Services,Supplies and Services,Operational Materials,205,29-Aug-13,1308-00342,1584,R,Alumasc Interior Building Products Ltd
http://statistics.data.gov.uk/doc/local-authority/00DA,Leeds City Council,City Development,Planning & Sustainable Development,Supplies and Services,Non-Recurring Grants,227,29-Aug-13,1308-00343,13800,R,Alwoodley Community Association
http://statistics.data.gov.uk/doc/local-authority/00DA,Leeds City Council,Adult Social Care,Services For Older People - 65 And Over,Third Party Payments,Nursing Home,570,28-Aug-13,1308-00344,1355.08,R,Alwoodley Nursing Home
http://statistics.data.gov.uk/doc/local-authority/00DA,Leeds City Council,Adult Social Care,Services For Older People - 65 And Over,Third Party Payments,Residential,580,28-Aug-13,1308-00345,1155.04,R,Alwoodley Nursing Home
http://statistics.data.gov.uk/doc/local-authority/00DA,Leeds City Council,Adult Social Care,Other Generic Services,Third Party Payments,Payments To Voluntary Organisations,561,29-Aug-13,1308-00346,35862.5,R,Alzheimers Society
http://statistics.data.gov.uk/doc/local-authority/00DA,Leeds City Council,Adult Social Care,Social Services Support Services,Third Party Payments,Payments To Voluntary Organisations,561,16-Aug-13,1308-00347,73125,R,Alzheimers Society
http://statistics.data.gov.uk/doc/local-authority/00DA,Leeds City Council as Accountable Body,Social Services Pooled Budgets,Jcs For People With Learning Disabilitie,Transfer Payments,Personal Budgets,627,28-Aug-13,1308-00348,1073.2,R,REDACTED PERSONAL DATA
http://statistics.data.gov.uk/doc/local-authority/00DA,Leeds City Council,Adult Social Care,Services For Adults Under 65 Mental/Dis,Transfer Payments,Personalised Budgets,627,28-Aug-13,1308-00349,2082.56,R,REDACTED PERSONAL DATA
http://statistics.data.gov.uk/doc/local-authority/00DA,Leeds City Council,Adult Social Care,Services For Older People Under 65 P/Dis,Transfer Payments,Personalised Budgets,627,28-Aug-13,1308-00350,1387.72,R,REDACTED PERSONAL DATA
http://statistics.data.gov.uk/doc/local-authority/00DA,Leeds City Council,City Development,Libraries  Arts & Heritage,Supplies and Services,Art Galleries Total Stores,3,30-Aug-13,1308-00351,545,R,Amanda Ross
http://statistics.data.gov.uk/doc/local-authority/00DA,Leeds City Council,Adult Social Care,Services For Older People Under 65 P/Dis,Transfer Payments,Direct Payments,626,28-Aug-13,1308-00352,761.44,R,REDACTED PERSONAL DATA
http://statistics.data.gov.uk/doc/local-authority/00DA,Leeds City Council,Central & Corporate Functions,Corporate Services Support Services  ,Transport,Public Transport Expenses,310,18-Jul-13,1308-00353,1581.84,R,Amber Cars
http://statistics.data.gov.uk/doc/local-authority/00DA,Leeds City Council,Childrens Services,Safeguarding Targeted & Specialist,Third Party Payments,General External Residential Placements,507,09-Aug-13,1308-00354,16554,R,Amberleigh Care Ltd
http://statistics.data.gov.uk/doc/local-authority/00DA,Leeds City Council,Central & Corporate,Commercial Services Trading Services,Supplies and Services,Operational Materials,205,07-Aug-13,1308-00355,1368.7,R,Ambi-Rad Limited
http://statistics.data.gov.uk/doc/local-authority/00DA,Leeds City Council,City Development,Libraries  Arts & Heritage,Supplies and Services,Operational Materials,205,28-Aug-13,1308-00356,896.66,R,Ambius
http://statistics.data.gov.uk/doc/local-authority/00DA,Leeds City Council,Adult Social Care,Services For Older People - 65 And Over,Third Party Payments,Residential,580,28-Aug-13,1308-00357,2139.44,R,Amelia House Care Home
http://statistics.data.gov.uk/doc/local-authority/00DA,Leeds City Council,Adult Social Care,Services For Older People - 65 And Over,Transfer Payments,Direct Payments,626,28-Aug-13,1308-00358,1165.32,R,REDACTED PERSONAL DATA
http://statistics.data.gov.uk/doc/local-authority/00DA,Leeds City Council,Adult Social Care,Services For Older People - 65 And Over,Transfer Payments,Personalised Budgets,627,28-Aug-13,1308-00359,-806.08,R,REDACTED PERSONAL DATA
http://statistics.data.gov.uk/doc/local-authority/00DA,Leeds City Council,Adult Social Care,Services For Older People - 65 And Over,Transfer Payments,Personalised Budgets,627,28-Aug-13,1308-00360,1469.48,R,REDACTED PERSONAL DATA
http://statistics.data.gov.uk/doc/local-authority/00DA,Leeds City Council as Accountable Body,Social Services Pooled Budgets,Jcs For People With Learning Disabilitie,Transfer Payments,Personal Budgets,627,28-Aug-13,1308-00361,1217.08,R,REDACTED PERSONAL DATA
http://statistics.data.gov.uk/doc/local-authority/00DA,Leeds City Council as Accountable Body,Social Services Pooled Budgets,Jcs For People With Learning Disabilitie,Transfer Payments,Personal Budgets,627,05-Aug-13,1308-00362,3009.85,R,REDACTED PERSONAL DATA
http://statistics.data.gov.uk/doc/local-authority/00DA,Leeds City Council,Central & Corporate,Benefits,Supplies and Services,Other Hired And Contracted Services,265,23-Aug-13,1308-00363,479.25,R,Ams
http://statistics.data.gov.uk/doc/local-authority/00DA,Leeds City Council as Accountable Body,Social Services Pooled Budgets,Jcs For People With Learning Disabilitie,Transfer Payments,Personal Budgets,627,28-Aug-13,1308-00364,549.48,R,REDACTED PERSONAL DATA
http://statistics.data.gov.uk/doc/local-authority/00DA,Leeds City Council,Adult Social Care,Services For Adults Under 65 Mental/Dis,Transfer Payments,Personalised Budgets,627,28-Aug-13,1308-00365,532.72,R,REDACTED PERSONAL DATA
http://statistics.data.gov.uk/doc/local-authority/00DA,Leeds City Council,Adult Social Care,Services For Older People Under 65 P/Dis,Transfer Payments,Direct Payments,626,28-Aug-13,1308-00366,1124.72,R,REDACTED PERSONAL DATA
http://statistics.data.gov.uk/doc/local-authority/00DA,Leeds City Council,Adult Social Care,Services For Older People - 65 And Over,Third Party Payments,Payments To Voluntary Organisations,561,29-Aug-13,1308-00367,9167.48,R,Anchor Trust
http://statistics.data.gov.uk/doc/local-authority/00DA,Leeds City Council,Adult Social Care,Services For Older People - 65 And Over,Third Party Payments,Payments To Voluntary Organisations,561,02-Aug-13,1308-00368,9167.48,R,Anchor Trust
http://statistics.data.gov.uk/doc/local-authority/00DA,Leeds City Council,Adult Social Care,Services For Older People - 65 And Over,Third Party Payments,Payments To Voluntary Organisations,561,09-Aug-13,1308-00369,56212.91,R,Anchor Trust
http://statistics.data.gov.uk/doc/local-authority/00DA,Leeds City Council,Adult Social Care,Services For Older People - 65 And Over,Third Party Payments,Nursing Home,570,28-Aug-13,1308-00370,37129.41,R,Anchor Trust
http://statistics.data.gov.uk/doc/local-authority/00DA,Leeds City Council,Adult Social Care,Services For Older People - 65 And Over,Third Party Payments,Residential Care Dementia,571,28-Aug-13,1308-00371,7744.34,R,Anchor Trust
http://statistics.data.gov.uk/doc/local-authority/00DA,Leeds City Council,Adult Social Care,Services For Older People - 65 And Over,Third Party Payments,Nursing Care Dementia,574,28-Aug-13,1308-00372,1140.04,R,Anchor Trust
http://statistics.data.gov.uk/doc/local-authority/00DA,Leeds City Council,Adult Social Care,Services For Older People - 65 And Over,Third Party Payments,Nursing Care Dementia,574,28-Aug-13,1308-00373,3186,R,Anchor Trust
http://statistics.data.gov.uk/doc/local-authority/00DA,Leeds City Council,Adult Social Care,Services For Older People - 65 And Over,Third Party Payments,Residential,580,28-Aug-13,1308-00374,4255.18,R,Anchor Trust
http://statistics.data.gov.uk/doc/local-authority/00DA,Leeds City Council,Adult Social Care,Services For Older People - 65 And Over,Third Party Payments,Residential,580,28-Aug-13,1308-00375,4891.56,R,Anchor Trust
http://statistics.data.gov.uk/doc/local-authority/00DA,Leeds City Council,Adult Social Care,Services For Older People - 65 And Over,Third Party Payments,Residential,580,28-Aug-13,1308-00376,5945.06,R,Anchor Trust
http://statistics.data.gov.uk/doc/local-authority/00DA,Leeds City Council,Adult Social Care,Services For Older People Under 65 P/Dis,Third Party Payments,Nursing Home,570,28-Aug-13,1308-00377,4220.8,R,Anchor Trust
http://statistics.data.gov.uk/doc/local-authority/00DA,Leeds City Council,Adult Social Care,Services For Older People Under 65 P/Dis,Third Party Payments,Nursing Home,570,01-Aug-13,1308-00378,12934.52,R,Anchor Trust
http://statistics.data.gov.uk/doc/local-authority/00DA,Leeds City Council,Environment & Housing,Strategy & Commissioning,Third Party Payments,Supporting Ppl - Block Gross Chargeable,514,09-Aug-13,1308-00379,5738.04,R,Anchor Trust
http://statistics.data.gov.uk/doc/local-authority/00DA,Leeds City Council as Accountable Body,Social Services Pooled Budgets,Jcs For People With Learning Disabilitie,Third Party Payments,Nursing Home,570,08-Aug-13,1308-00380,5576.78,R,Anchor Trust
http://statistics.data.gov.uk/doc/local-authority/00DA,Leeds City Council as Accountable Body,Social Services Pooled Budgets,Jcs For People With Learning Disabilitie,Third Party Payments,Residential,580,09-Aug-13,1308-00381,649.32,R,Anchor Trust
http://statistics.data.gov.uk/doc/local-authority/00DA,Leeds City Council,Adult Social Care,Services For Older People - 65 And Over,Third Party Payments,Residential Care Dementia,571,28-Aug-13,1308-00382,13814.62,R,Anchor Trust Simon Marks Court
http://statistics.data.gov.uk/doc/local-authority/00DA,Leeds City Council,Adult Social Care,Services For Older People - 65 And Over,Third Party Payments,Residential,580,28-Aug-13,1308-00383,16779.93,R,Anchor Trust Simon Marks Court
http://statistics.data.gov.uk/doc/local-authority/00DA,Leeds City Council,Adult Social Care,Services For Older People Under 65 P/Dis,Transfer Payments,Personalised Budgets,627,28-Aug-13,1308-00384,603.6,R,REDACTED PERSONAL DATA
http://statistics.data.gov.uk/doc/local-authority/00DA,Leeds City Council,Adult Social Care,Services For Older People Under 65 P/Dis,Transfer Payments,Direct Payments,626,28-Aug-13,1308-00385,5217.68,R,REDACTED PERSONAL DATA
http://statistics.data.gov.uk/doc/local-authority/00DA,Leeds City Council,Adult Social Care,Services For Adults Under 65 Mental/Dis,Transfer Payments,Personalised Budgets,627,28-Aug-13,1308-00386,1059.16,R,REDACTED PERSONAL DATA
http://statistics.data.gov.uk/doc/local-authority/00DA,Leeds City Council as Accountable Body,Social Services Pooled Budgets,Jcs For People With Learning Disabilitie,Transfer Payments,Personal Budgets,627,28-Aug-13,1308-00387,690.32,R,REDACTED PERSONAL DATA
http://statistics.data.gov.uk/doc/local-authority/00DA,Leeds City Council as Accountable Body,Social Services Pooled Budgets,Jcs For People With Learning Disabilitie,Transfer Payments,Personal Budgets,627,28-Aug-13,1308-00388,837.4,R,REDACTED PERSONAL DATA
http://statistics.data.gov.uk/doc/local-authority/00DA,Leeds City Council,Adult Social Care,Services For Older People Under 65 P/Dis,Transfer Payments,Direct Payments,626,28-Aug-13,1308-00389,6475.22,R,REDACTED PERSONAL DATA
http://statistics.data.gov.uk/doc/local-authority/00DA,Leeds City Council,Adult Social Care,Services For Older People Under 65 P/Dis,Transfer Payments,Personalised Budgets,627,28-Aug-13,1308-00390,1000,R,REDACTED PERSONAL DATA
http://statistics.data.gov.uk/doc/local-authority/00DA,Leeds City Council as Accountable Body,Social Services Pooled Budgets,Jcs For People With Learning Disabilitie,Transfer Payments,Asylum Seekers,626,28-Aug-13,1308-00391,527.76,R,REDACTED PERSONAL DATA
http://statistics.data.gov.uk/doc/local-authority/00DA,East - North East ,East - North East,Construction Services,Supplies and Services,Other Hired And Contracted Services,265,07-Aug-13,1308-00392,449.6,R,Andrew Miller Builders
http://statistics.data.gov.uk/doc/local-authority/00DA,East - North East ,East - North East,Construction Services,Supplies and Services,Other Hired And Contracted Services,265,14-Aug-13,1308-00393,3102.7,R,Andrew Miller Builders
http://statistics.data.gov.uk/doc/local-authority/00DA,East - North East ,East - North East,Construction Services,Supplies and Services,Other Hired And Contracted Services,265,15-Aug-13,1308-00394,3445.9,R,Andrew Miller Builders
http://statistics.data.gov.uk/doc/local-authority/00DA,Leeds City Council,Adult Social Care,Services For Older People Under 65 P/Dis,Transfer Payments,Personalised Budgets,627,28-Aug-13,1308-00395,505.6,R,REDACTED PERSONAL DATA
http://statistics.data.gov.uk/doc/local-authority/00DA,Leeds City Council,Adult Social Care,Services For Older People Under 65 P/Dis,Transfer Payments,Direct Payments,626,28-Aug-13,1308-00396,2021.52,R,REDACTED PERSONAL DATA
http://statistics.data.gov.uk/doc/local-authority/00DA,Leeds City Council,City Development,Recreation,Supplies and Services,Other Hired And Contracted Services,265,02-Aug-13,1308-00397,500,R,Andrew Shepherd
http://statistics.data.gov.uk/doc/local-authority/00DA,Leeds City Council,Adult Social Care,Services For Older People Under 65 P/Dis,Transfer Payments,Personalised Budgets,627,28-Aug-13,1308-00398,655.68,R,REDACTED PERSONAL DATA
http://statistics.data.gov.uk/doc/local-authority/00DA,Leeds City Council as Accountable Body,Social Services Pooled Budgets,Jcs For People With Learning Disabilitie,Transfer Payments,Asylum Seekers,626,28-Aug-13,1308-00399,866.12,R,REDACTED PERSONAL DATA
http://statistics.data.gov.uk/doc/local-authority/00DA,Leeds City Council,Adult Social Care,Services For Older People Under 65 P/Dis,Transfer Payments,Personalised Budgets,627,28-Aug-13,1308-00400,2108.56,R,REDACTED PERSONAL DATA
http://statistics.data.gov.uk/doc/local-authority/00DA,Leeds City Council,Childrens Services,Learning Skills & Universal,Supplies and Services,Bought In Professional Services,277,02-Aug-13,1308-00401,2200,R,Andy Craven-Griffiths
http://statistics.data.gov.uk/doc/local-authority/00DA,Leeds City Council as Accountable Body,Social Services Pooled Budgets,Jcs For People With Learning Disabilitie,Transfer Payments,Asylum Seekers,626,28-Aug-13,1308-00402,433.6,R,REDACTED PERSONAL DATA
http://statistics.data.gov.uk/doc/local-authority/00DA,Leeds City Council,Adult Social Care,Services For Older People Under 65 P/Dis,Transfer Payments,Personalised Budgets,627,28-Aug-13,1308-00403,567,R,REDACTED PERSONAL DATA
http://statistics.data.gov.uk/doc/local-authority/00DA,Leeds City Council,Adult Social Care,Services For Older People Under 65 P/Dis,Transfer Payments,Personalised Budgets,627,28-Aug-13,1308-00404,438.56,R,REDACTED PERSONAL DATA
http://statistics.data.gov.uk/doc/local-authority/00DA,Leeds City Council as Accountable Body,Social Services Pooled Budgets,Jcs For People With Learning Disabilitie,Transfer Payments,Asylum Seekers,626,28-Aug-13,1308-00405,687.48,R,REDACTED PERSONAL DATA
http://statistics.data.gov.uk/doc/local-authority/00DA,Leeds City Council,Adult Social Care,Services For Older People Under 65 P/Dis,Transfer Payments,Personalised Budgets,627,28-Aug-13,1308-00406,531.68,R,REDACTED PERSONAL DATA
http://statistics.data.gov.uk/doc/local-authority/00DA,Leeds City Council,Adult Social Care,Services For Adults Under 65 Mental/Dis,Third Party Payments,Home Care,568,28-Aug-13,1308-00407,963,R,Angels Home Care Services
http://statistics.data.gov.uk/doc/local-authority/00DA,Leeds City Council,Adult Social Care,Services For Adults Under 65 Mental/Dis,Third Party Payments,Home Care,568,16-Aug-13,1308-00408,993,R,Angels Home Care Services
http://statistics.data.gov.uk/doc/local-authority/00DA,Leeds City Council,Adult Social Care,Services For Older People - 65 And Over,Third Party Payments,Home Care,568,16-Aug-13,1308-00409,462,R,Angels Home Care Services
http://statistics.data.gov.uk/doc/local-authority/00DA,Leeds City Council,Adult Social Care,Services For Older People - 65 And Over,Third Party Payments,Home Care,568,16-Aug-13,1308-00410,695.2,R,Angels Home Care Services
http://statistics.data.gov.uk/doc/local-authority/00DA,Leeds City Council,Adult Social Care,Services For Older People - 65 And Over,Third Party Payments,Home Care,568,16-Aug-13,1308-00411,1328.4,R,Angels Home Care Services
http://statistics.data.gov.uk/doc/local-authority/00DA,Leeds City Council,Adult Social Care,Services For Older People - 65 And Over,Third Party Payments,Home Care,568,16-Aug-13,1308-00412,1689.36,R,Angels Home Care Services
http://statistics.data.gov.uk/doc/local-authority/00DA,Leeds City Council,Adult Social Care,Services For Older People - 65 And Over,Third Party Payments,Home Care,568,16-Aug-13,1308-00413,2093,R,Angels Home Care Services
http://statistics.data.gov.uk/doc/local-authority/00DA,Leeds City Council,Adult Social Care,Services For Older People - 65 And Over,Third Party Payments,Home Care,568,16-Aug-13,1308-00414,3175.21,R,Angels Home Care Services
http://statistics.data.gov.uk/doc/local-authority/00DA,Leeds City Council,Adult Social Care,Services For Older People - 65 And Over,Third Party Payments,Home Care,568,16-Aug-13,1308-00415,3468.83,R,Angels Home Care Services
http://statistics.data.gov.uk/doc/local-authority/00DA,Leeds City Council,Adult Social Care,Services For Older People Under 65 P/Dis,Third Party Payments,Home Care,568,16-Aug-13,1308-00416,1631,R,Angels Home Care Services
http://statistics.data.gov.uk/doc/local-authority/00DA,Leeds City Council,Adult Social Care,Services For Older People Under 65 P/Dis,Transfer Payments,Personalised Budgets,627,28-Aug-13,1308-00417,438.64,R,REDACTED PERSONAL DATA
http://statistics.data.gov.uk/doc/local-authority/00DA,Leeds City Council,City Development,Libraries  Arts & Heritage,Supplies and Services,Publication And Promotion,267,15-Aug-13,1308-00418,1500,R,Anita Morris Associates Ltd
http://statistics.data.gov.uk/doc/local-authority/00DA,Leeds City Council,Adult Social Care,Services For Older People Under 65 P/Dis,Transfer Payments,Direct Payments,626,28-Aug-13,1308-00419,642.24,R,REDACTED PERSONAL DATA
http://statistics.data.gov.uk/doc/local-authority/00DA,Leeds City Council,Adult Social Care,Services For Older People Under 65 P/Dis,Transfer Payments,Direct Payments,626,28-Aug-13,1308-00420,804.88,R,REDACTED PERSONAL DATA
http://statistics.data.gov.uk/doc/local-authority/00DA,Leeds City Council,Adult Social Care,Services For Older People - 65 And Over,Transfer Payments,Direct Payments,626,28-Aug-13,1308-00421,643.32,R,REDACTED PERSONAL DATA
http://statistics.data.gov.uk/doc/local-authority/00DA,Leeds City Council,Childrens Services,Safeguarding Targeted & Specialist,Employees,Agency Staff,8,02-Aug-13,1308-00422,493.24,R,Ann Ward-Jarvis
http://statistics.data.gov.uk/doc/local-authority/00DA,Leeds City Council,Adult Social Care,Services For Older People Under 65 P/Dis,Transfer Payments,Direct Payments,626,28-Aug-13,1308-00423,1160,R,REDACTED PERSONAL DATA
http://statistics.data.gov.uk/doc/local-authority/00DA,Leeds City Council,Adult Social Care,Services For Adults Under 65 Mental/Dis,Transfer Payments,Direct Payments,626,28-Aug-13,1308-00424,702.4,R,REDACTED PERSONAL DATA
http://statistics.data.gov.uk/doc/local-authority/00DA,Leeds City Council,Central & Corporate,Customer Services,Supplies and Services,Other Hired And Contracted Services,265,02-Aug-13,1308-00425,560.32,R,Anna West
http://statistics.data.gov.uk/doc/local-authority/00DA,Leeds City Council,Adult Social Care,Services For Older People Under 65 P/Dis,Transfer Payments,Personalised Budgets,627,28-Aug-13,1308-00426,1252.24,R,REDACTED PERSONAL DATA
http://statistics.data.gov.uk/doc/local-authority/00DA,Leeds City Council,Adult Social Care,Services For Older People - 65 And Over,Transfer Payments,Personalised Budgets,627,28-Aug-13,1308-00427,460.8,R,REDACTED PERSONAL DATA
http://statistics.data.gov.uk/doc/local-authority/00DA,Leeds City Council,Adult Social Care,Services For Older People - 65 And Over,Transfer Payments,Personalised Budgets,627,28-Aug-13,1308-00428,443.56,R,REDACTED PERSONAL DATA
http://statistics.data.gov.uk/doc/local-authority/00DA,Leeds City Council,Adult Social Care,Services For Older People - 65 And Over,Transfer Payments,Personalised Budgets,627,28-Aug-13,1308-00429,551.64,R,REDACTED PERSONAL DATA
http://statistics.data.gov.uk/doc/local-authority/00DA,Leeds City Council,Adult Social Care,Services For Older People - 65 And Over,Transfer Payments,Personalised Budgets,627,28-Aug-13,1308-00430,2021.44,R,REDACTED PERSONAL DATA
http://statistics.data.gov.uk/doc/local-authority/00DA,Leeds City Council,Adult Social Care,Services For Older People Under 65 P/Dis,Transfer Payments,Direct Payments,626,28-Aug-13,1308-00431,547.2,R,REDACTED PERSONAL DATA
http://statistics.data.gov.uk/doc/local-authority/00DA,Leeds City Council as Accountable Body,Social Services Pooled Budgets,Jcs For People With Learning Disabilitie,Transfer Payments,Personal Budgets,627,28-Aug-13,1308-00432,1072.88,R,REDACTED PERSONAL DATA
http://statistics.data.gov.uk/doc/local-authority/00DA,Leeds City Council,Adult Social Care,Services For Older People Under 65 P/Dis,Transfer Payments,Personalised Budgets,627,28-Aug-13,1308-00433,585,R,REDACTED PERSONAL DATA
http://statistics.data.gov.uk/doc/local-authority/00DA,Leeds City Council,Adult Social Care,Services For Older People Under 65 P/Dis,Transfer Payments,Personalised Budgets,627,28-Aug-13,1308-00434,1563.72,R,REDACTED PERSONAL DATA
http://statistics.data.gov.uk/doc/local-authority/00DA,Leeds City Council,City Development,Libraries  Arts & Heritage,Supplies and Services,Other Hired And Contracted Services,265,30-Aug-13,1308-00435,450,R,Anything Audio Ltd
http://statistics.data.gov.uk/doc/local-authority/00DA,Leeds City Council,City Development,Libraries  Arts & Heritage,Supplies and Services,Other Hired And Contracted Services,265,02-Aug-13,1308-00436,795,R,Anything Audio Ltd
http://statistics.data.gov.uk/doc/local-authority/00DA,Leeds City Council,City Development,Libraries  Arts & Heritage,Supplies and Services,Bought In Professional Services,277,21-Aug-13,1308-00437,500,R,Anything Audio Ltd
http://statistics.data.gov.uk/doc/local-authority/00DA,Leeds City Council,City Development,Libraries  Arts & Heritage,Supplies and Services,Bought In Professional Services,277,13-Aug-13,1308-00438,500,R,Anything Audio Ltd
http://statistics.data.gov.uk/doc/local-authority/00DA,Leeds City Council,City Development,Planning & Sustainable Development,Supplies and Services,Other Hired And Contracted Services,265,13-Aug-13,1308-00439,562.5,R,Anything Audio Ltd
http://statistics.data.gov.uk/doc/local-authority/00DA,West - North West   ,West - North West,Corporate Services,Supplies and Services,Audit Fees,261,19-Aug-13,1308-00440,1410,R,Aon Hewitt Limited
http://statistics.data.gov.uk/doc/local-authority/00DA,Leeds City Council,Central & Corporate Functions,Commercial Services Trading Services  ,Supplies and Services,Food & Drink,231,01-Jul-13,1308-00441,1136.52,R,Apetito Limited
http://statistics.data.gov.uk/doc/local-authority/00DA,Leeds City Council,Central & Corporate Functions,Commercial Services Trading Services  ,Supplies and Services,Food & Drink,231,05-Jul-13,1308-00442,1155.91,R,Apetito Limited
http://statistics.data.gov.uk/doc/local-authority/00DA,Leeds City Council,Central & Corporate Functions,Commercial Services Trading Services  ,Supplies and Services,Food & Drink,231,24-Jul-13,1308-00443,1283.94,R,Apetito Limited
http://statistics.data.gov.uk/doc/local-authority/00DA,Leeds City Council,Central & Corporate Functions,Commercial Services Trading Services  ,Supplies and Services,Food & Drink,231,12-Jul-13,1308-00444,1576.37,R,Apetito Limited
http://statistics.data.gov.uk/doc/local-authority/00DA,Leeds City Council,Central & Corporate Functions,Commercial Services Trading Services  ,Supplies and Services,Food & Drink,231,17-Jul-13,1308-00445,1616.01,R,Apetito Limited
http://statistics.data.gov.uk/doc/local-authority/00DA,Leeds City Council,Central & Corporate Functions,Commercial Services Trading Services  ,Supplies and Services,Food & Drink,231,19-Jul-13,1308-00446,1644.9,R,Apetito Limited
http://statistics.data.gov.uk/doc/local-authority/00DA,Leeds City Council,Central & Corporate Functions,Commercial Services Trading Services  ,Supplies and Services,Food & Drink,231,26-Jul-13,1308-00447,1679.21,R,Apetito Limited
http://statistics.data.gov.uk/doc/local-authority/00DA,Leeds City Council,Central & Corporate Functions,Commercial Services Trading Services  ,Supplies and Services,Food & Drink,231,08-Jul-13,1308-00448,1913.72,R,Apetito Limited
http://statistics.data.gov.uk/doc/local-authority/00DA,Leeds City Council,Central & Corporate Functions,Commercial Services Trading Services  ,Supplies and Services,Food & Drink,231,29-Jul-13,1308-00449,2232.05,R,Apetito Limited
http://statistics.data.gov.uk/doc/local-authority/00DA,Leeds City Council,Central & Corporate Functions,Commercial Services Trading Services  ,Supplies and Services,Food & Drink,231,05-Jul-13,1308-00450,2581.59,R,Apetito Limited
http://statistics.data.gov.uk/doc/local-authority/00DA,Leeds City Council,Adult Social Care,Services For Older People - 65 And Over,Supplies and Services,Food & Drink,231,01-Aug-13,1308-00451,662.4,R,Apetito Ltd
http://statistics.data.gov.uk/doc/local-authority/00DA,Leeds City Council,Adult Social Care,Services For Older People - 65 And Over,Supplies and Services,Food & Drink,231,15-Aug-13,1308-00452,708.39,R,Apetito Ltd
http://statistics.data.gov.uk/doc/local-authority/00DA,Leeds City Council,Central & Corporate,Commercial Services Trading Services,Supplies and Services,Crockery  Cutlery & Utensils,221,01-Aug-13,1308-00453,-2827.28,R,Apetito Ltd
http://statistics.data.gov.uk/doc/local-authority/00DA,Leeds City Council,Central & Corporate,Commercial Services Trading Services,Transport,External  Hire- ( Fleet Management),313,01-Aug-13,1308-00454,513.31,R,Apetito Ltd
http://statistics.data.gov.uk/doc/local-authority/00DA,Leeds City Council as Accountable Body,Social Services Pooled Budgets,Jcs For People With Learning Disabilitie,Third Party Payments,Residential,580,28-Aug-13,1308-00455,21200.68,R,Applewalk Homes
http://statistics.data.gov.uk/doc/local-authority/00DA,Leeds City Council as Accountable Body,Social Services Pooled Budgets,Leeds Community Equip Store Pooled Budgt,Supplies and Services,Other Equipment,203,09-Aug-13,1308-00456,539.6,R,Aqua Joy Bathlifts Ltd
http://statistics.data.gov.uk/doc/local-authority/00DA,Leeds City Council as Accountable Body,Social Services Pooled Budgets,Leeds Community Equip Store Pooled Budgt,Supplies and Services,Other Equipment,203,21-Aug-13,1308-00457,539.6,R,Aqua Joy Bathlifts Ltd
http://statistics.data.gov.uk/doc/local-authority/00DA,Leeds City Council as Accountable Body,Social Services Pooled Budgets,Leeds Community Equip Store Pooled Budgt,Supplies and Services,Other Equipment,203,02-Aug-13,1308-00458,539.6,R,Aqua Joy Bathlifts Ltd
http://statistics.data.gov.uk/doc/local-authority/00DA,Leeds City Council as Accountable Body,Social Services Pooled Budgets,Leeds Community Equip Store Pooled Budgt,Supplies and Services,Other Equipment,203,16-Aug-13,1308-00459,539.6,R,Aqua Joy Bathlifts Ltd
http://statistics.data.gov.uk/doc/local-authority/00DA,Leeds City Council as Accountable Body,Social Services Pooled Budgets,Leeds Community Equip Store Pooled Budgt,Supplies and Services,Other Equipment,203,29-Aug-13,1308-00460,684,R,Aqua Joy Bathlifts Ltd
http://statistics.data.gov.uk/doc/local-authority/00DA,Leeds City Council,Environment & Housing,Parks & Countryside,Supplies and Services,Operational Materials,205,02-Aug-13,1308-00461,424.25,R,Aquatrust Water & Ventilation Ltd
http://statistics.data.gov.uk/doc/local-authority/00DA,Leeds City Council as Accountable Body,Social Services Pooled Budgets,Jcs For People With Learning Disabilitie,Third Party Payments,Home Care,568,29-Aug-13,1308-00462,466.18,R,Arabella Health Staffing Ltd
http://statistics.data.gov.uk/doc/local-authority/00DA,Leeds City Council as Accountable Body,Social Services Pooled Budgets,Jcs For People With Learning Disabilitie,Third Party Payments,Home Care,568,21-Aug-13,1308-00463,466.18,R,Arabella Health Staffing Ltd
http://statistics.data.gov.uk/doc/local-authority/00DA,Leeds City Council as Accountable Body,Social Services Pooled Budgets,Jcs For People With Learning Disabilitie,Third Party Payments,Home Care,568,09-Aug-13,1308-00464,466.18,R,Arabella Health Staffing Ltd
http://statistics.data.gov.uk/doc/local-authority/00DA,Leeds City Council as Accountable Body,Social Services Pooled Budgets,Jcs For People With Learning Disabilitie,Third Party Payments,Home Care,568,09-Aug-13,1308-00465,466.18,R,Arabella Health Staffing Ltd
http://statistics.data.gov.uk/doc/local-authority/00DA,Leeds City Council as Accountable Body,Social Services Pooled Budgets,Jcs For People With Learning Disabilitie,Third Party Payments,Home Care,568,06-Aug-13,1308-00466,466.18,R,Arabella Health Staffing Ltd
http://statistics.data.gov.uk/doc/local-authority/00DA,Leeds City Council as Accountable Body,Social Services Pooled Budgets,Jcs For People With Learning Disabilitie,Third Party Payments,Home Care,568,09-Aug-13,1308-00467,527.67,R,Arabella Health Staffing Ltd
http://statistics.data.gov.uk/doc/local-authority/00DA,Leeds City Council as Accountable Body,Social Services Pooled Budgets,Jcs For People With Learning Disabilitie,Third Party Payments,Home Care,568,09-Aug-13,1308-00468,588.94,R,Arabella Health Staffing Ltd
http://statistics.data.gov.uk/doc/local-authority/00DA,Leeds City Council as Accountable Body,Social Services Pooled Budgets,Jcs For People With Learning Disabilitie,Third Party Payments,Home Care,568,09-Aug-13,1308-00469,811.44,R,Arabella Health Staffing Ltd
http://statistics.data.gov.uk/doc/local-authority/00DA,Leeds City Council as Accountable Body,Social Services Pooled Budgets,Jcs For People With Learning Disabilitie,Third Party Payments,Home Care,568,29-Aug-13,1308-00470,1116.61,R,Arabella Health Staffing Ltd
http://statistics.data.gov.uk/doc/local-authority/00DA,Leeds City Council,Adult Social Care,Services For Older People Under 65 P/Dis,Transfer Payments,Personalised Budgets,627,28-Aug-13,1308-00471,1000,R,REDACTED PERSONAL DATA
http://statistics.data.gov.uk/doc/local-authority/00DA,East - North East ,East - North East,Construction Services,Supplies and Services,Clothing & Uniforms,241,02-Aug-13,1308-00472,789.73,R,Arco Ltd
http://statistics.data.gov.uk/doc/local-authority/00DA,Leeds City Council,Central & Corporate,Commercial Services Trading Services,Supplies and Services,Operational Materials,205,22-Aug-13,1308-00473,668.25,R,Arco Ltd
http://statistics.data.gov.uk/doc/local-authority/00DA,Leeds City Council,Central & Corporate,Commercial Services Trading Services,Supplies and Services,Clothing & Uniforms,241,02-Aug-13,1308-00474,425.92,R,Arco Ltd
http://statistics.data.gov.uk/doc/local-authority/00DA,Leeds City Council,Central & Corporate,Commercial Services Trading Services,Supplies and Services,Clothing & Uniforms,241,02-Aug-13,1308-00475,509.85,R,Arco Ltd
http://statistics.data.gov.uk/doc/local-authority/00DA,Leeds City Council,Central & Corporate,Commercial Services Trading Services,Supplies and Services,Clothing & Uniforms,241,02-Aug-13,1308-00476,626.6,R,Arco Ltd
http://statistics.data.gov.uk/doc/local-authority/00DA,Leeds City Council,City Development,Libraries  Arts & Heritage,Supplies and Services,Operational Furniture And Equipment,203,16-Aug-13,1308-00477,506.72,R,Arco Ltd
http://statistics.data.gov.uk/doc/local-authority/00DA,Leeds City Council,City Development,Libraries  Arts & Heritage  ,Premises,Cleaning Maintenance & Toiletries,127,09-Jul-13,1308-00478,634.68,R,Arco Ltd
http://statistics.data.gov.uk/doc/local-authority/00DA,Leeds City Council,Environment & Housing,Environmental Action (South),Supplies and Services,Clothing & Uniforms,241,16-Aug-13,1308-00479,420.99,R,Arco Ltd
http://statistics.data.gov.uk/doc/local-authority/00DA,Leeds City Council,Environment & Housing,Parks & Countryside,Supplies and Services,Clothing & Uniforms,241,06-Aug-13,1308-00480,-606.36,R,Arco Ltd
http://statistics.data.gov.uk/doc/local-authority/00DA,Leeds City Council,Environment & Housing,Parks & Countryside,Supplies and Services,Clothing & Uniforms,241,20-Aug-13,1308-00481,606.36,R,Arco Ltd
http://statistics.data.gov.uk/doc/local-authority/00DA,Leeds City Council,Environment & Housing,Streetscene Environmental Services,Supplies and Services,Clothing & Uniforms,241,06-Aug-13,1308-00482,780,R,Arco Ltd
http://statistics.data.gov.uk/doc/local-authority/00DA,Leeds City Council,Environment & Housing,Streetscene Environmental Services,Supplies and Services,Clothing & Uniforms,241,15-Aug-13,1308-00483,820,R,Arco Ltd
http://statistics.data.gov.uk/doc/local-authority/00DA,Leeds City Council,Environment & Housing,Streetscene Environmental Services,Supplies and Services,Clothing & Uniforms,241,15-Aug-13,1308-00484,910,R,Arco Ltd
http://statistics.data.gov.uk/doc/local-authority/00DA,Leeds City Council,Environment & Housing,Streetscene Environmental Services,Supplies and Services,Clothing & Uniforms,241,06-Aug-13,1308-00485,1170,R,Arco Ltd
http://statistics.data.gov.uk/doc/local-authority/00DA,Leeds City Council,Environment & Housing,Streetscene Environmental Services,Supplies and Services,Clothing & Uniforms,241,23-Aug-13,1308-00486,1560,R,Arco Ltd
http://statistics.data.gov.uk/doc/local-authority/00DA,Leeds City Council,Environment & Housing,Streetscene Environmental Services,Supplies and Services,Clothing & Uniforms,241,30-Aug-13,1308-00487,1950,R,Arco Ltd
http://statistics.data.gov.uk/doc/local-authority/00DA,Leeds City Council,Environment & Housing,Streetscene Environmental Services,Supplies and Services,Clothing & Uniforms,241,27-Aug-13,1308-00488,2784.68,R,Arco Ltd
http://statistics.data.gov.uk/doc/local-authority/00DA,Aire Valley Homes Leeds    ,Aire Valley Homes Leeds,Aire Valley Homes Leeds,Supplies and Services,Stationery & External Printing,210,09-Aug-13,1308-00489,600,R,Arena Partnership Limited
http://statistics.data.gov.uk/doc/local-authority/00DA,Aire Valley Homes Leeds    ,Aire Valley Homes Leeds,Aire Valley Homes Leeds,Supplies and Services,Information Technology (Computers),214,20-Aug-13,1308-00490,600,R,Arena Partnership Limited
http://statistics.data.gov.uk/doc/local-authority/00DA,Leeds City Council,Adult Social Care,Services For Older People - 65 And Over,Third Party Payments,Home Care,568,02-Aug-13,1308-00491,1256.93,R,Ark Home Healthcare Ltd
http://statistics.data.gov.uk/doc/local-authority/00DA,Leeds City Council,Adult Social Care,Services For Older People - 65 And Over,Third Party Payments,Home Care,568,02-Aug-13,1308-00492,2431.43,R,Ark Home Healthcare Ltd
http://statistics.data.gov.uk/doc/local-authority/00DA,Leeds City Council,Adult Social Care,Services For Older People - 65 And Over,Third Party Payments,Home Care,568,30-Aug-13,1308-00493,2471.69,R,Ark Home Healthcare Ltd
http://statistics.data.gov.uk/doc/local-authority/00DA,Leeds City Council,Adult Social Care,Services For Older People - 65 And Over,Third Party Payments,Home Care,568,30-Aug-13,1308-00494,2539.08,R,Ark Home Healthcare Ltd
http://statistics.data.gov.uk/doc/local-authority/00DA,Leeds City Council,Adult Social Care,Services For Older People - 65 And Over,Third Party Payments,Home Care,568,30-Aug-13,1308-00495,6740.35,R,Ark Home Healthcare Ltd
http://statistics.data.gov.uk/doc/local-authority/00DA,Leeds City Council,Adult Social Care,Services For Older People - 65 And Over,Third Party Payments,Home Care,568,02-Aug-13,1308-00496,6797.3,R,Ark Home Healthcare Ltd
http://statistics.data.gov.uk/doc/local-authority/00DA,Leeds City Council,Adult Social Care,Services For Older People - 65 And Over,Third Party Payments,Home Care,568,02-Aug-13,1308-00497,7316.11,R,Ark Home Healthcare Ltd
http://statistics.data.gov.uk/doc/local-authority/00DA,Leeds City Council,Adult Social Care,Services For Older People - 65 And Over,Third Party Payments,Home Care,568,30-Aug-13,1308-00498,7708.35,R,Ark Home Healthcare Ltd
http://statistics.data.gov.uk/doc/local-authority/00DA,Leeds City Council,Adult Social Care,Services For Older People - 65 And Over,Third Party Payments,Home Care,568,30-Aug-13,1308-00499,7727.04,R,Ark Home Healthcare Ltd
http://statistics.data.gov.uk/doc/local-authority/00DA,Leeds City Council,Adult Social Care,Services For Older People - 65 And Over,Third Party Payments,Home Care,568,02-Aug-13,1308-00500,8109.1,R,Ark Home Healthcare Ltd
http://statistics.data.gov.uk/doc/local-authority/00DA,Leeds City Council,Adult Social Care,Services For Older People - 65 And Over,Third Party Payments,Home Care,568,02-Aug-13,1308-00501,11518.24,R,Ark Home Healthcare Ltd
http://statistics.data.gov.uk/doc/local-authority/00DA,Leeds City Council,Adult Social Care,Services For Older People - 65 And Over,Third Party Payments,Home Care,568,30-Aug-13,1308-00502,11911.91,R,Ark Home Healthcare Ltd
http://statistics.data.gov.uk/doc/local-authority/00DA,Leeds City Council,Adult Social Care,Services For Older People - 65 And Over,Third Party Payments,Home Care,568,02-Aug-13,1308-00503,11985.03,R,Ark Home Healthcare Ltd
http://statistics.data.gov.uk/doc/local-authority/00DA,Leeds City Council,Adult Social Care,Services For Older People - 65 And Over,Third Party Payments,Home Care,568,30-Aug-13,1308-00504,12884.46,R,Ark Home Healthcare Ltd
http://statistics.data.gov.uk/doc/local-authority/00DA,Leeds City Council,Adult Social Care,Services For Older People - 65 And Over,Third Party Payments,Home Care,568,30-Aug-13,1308-00505,19652.1,R,Ark Home Healthcare Ltd
http://statistics.data.gov.uk/doc/local-authority/00DA,Leeds City Council,Adult Social Care,Services For Older People - 65 And Over,Third Party Payments,Home Care,568,02-Aug-13,1308-00506,19839.51,R,Ark Home Healthcare Ltd
http://statistics.data.gov.uk/doc/local-authority/00DA,Leeds City Council,Adult Social Care,Services For Older People Under 65 P/Dis,Third Party Payments,Home Care,568,02-Aug-13,1308-00507,463.99,R,Ark Home Healthcare Ltd
http://statistics.data.gov.uk/doc/local-authority/00DA,Leeds City Council,Adult Social Care,Services For Older People Under 65 P/Dis,Third Party Payments,Home Care,568,30-Aug-13,1308-00508,496.86,R,Ark Home Healthcare Ltd
http://statistics.data.gov.uk/doc/local-authority/00DA,Leeds City Council,Adult Social Care,Services For Older People Under 65 P/Dis,Third Party Payments,Home Care,568,02-Aug-13,1308-00509,1359.9,R,Ark Home Healthcare Ltd
http://statistics.data.gov.uk/doc/local-authority/00DA,Leeds City Council,Adult Social Care,Services For Older People Under 65 P/Dis,Third Party Payments,Home Care,568,02-Aug-13,1308-00510,1481.03,R,Ark Home Healthcare Ltd
http://statistics.data.gov.uk/doc/local-authority/00DA,Leeds City Council,Adult Social Care,Services For Older People Under 65 P/Dis,Third Party Payments,Home Care,568,30-Aug-13,1308-00511,1487.76,R,Ark Home Healthcare Ltd
http://statistics.data.gov.uk/doc/local-authority/00DA,Leeds City Council,Adult Social Care,Services For Older People Under 65 P/Dis,Third Party Payments,Home Care,568,30-Aug-13,1308-00512,1492.62,R,Ark Home Healthcare Ltd
http://statistics.data.gov.uk/doc/local-authority/00DA,Leeds City Council,Adult Social Care,Services For Older People Under 65 P/Dis,Third Party Payments,Home Care,568,30-Aug-13,1308-00513,2223.14,R,Ark Home Healthcare Ltd
http://statistics.data.gov.uk/doc/local-authority/00DA,Leeds City Council,Adult Social Care,Services For Older People Under 65 P/Dis,Third Party Payments,Home Care,568,02-Aug-13,1308-00514,2869.7,R,Ark Home Healthcare Ltd
http://statistics.data.gov.uk/doc/local-authority/00DA,Leeds City Council,Adult Social Care,Services For Older People Under 65 P/Dis,Third Party Payments,Home Care,568,30-Aug-13,1308-00515,3299.71,R,Ark Home Healthcare Ltd
http://statistics.data.gov.uk/doc/local-authority/00DA,Leeds City Council,Adult Social Care,Services For Older People Under 65 P/Dis,Third Party Payments,Home Care,568,02-Aug-13,1308-00516,3675.62,R,Ark Home Healthcare Ltd
http://statistics.data.gov.uk/doc/local-authority/00DA,Leeds City Council,Adult Social Care,Services For Older People Under 65 P/Dis,Third Party Payments,Home Care,568,30-Aug-13,1308-00517,3759.83,R,Ark Home Healthcare Ltd
http://statistics.data.gov.uk/doc/local-authority/00DA,Leeds City Council,Adult Social Care,Services For Older People Under 65 P/Dis,Third Party Payments,Home Care,568,02-Aug-13,1308-00518,3905.67,R,Ark Home Healthcare Ltd
http://statistics.data.gov.uk/doc/local-authority/00DA,Leeds City Council as Accountable Body,Social Services Pooled Budgets,Jcs For People With Learning Disabilitie,Third Party Payments,Home Care,568,08-Aug-13,1308-00519,2490.62,R,Ark Home Healthcare Ltd
http://statistics.data.gov.uk/doc/local-authority/00DA,Leeds City Council,City Development,Highways,Transport,Plant Hire - By Directorate,305,15-Aug-13,1308-00520,2000,R,Armcon Limited
http://statistics.data.gov.uk/doc/local-authority/00DA,Leeds City Council,City Development,Highways,Transport,Repairs to  External Hire Vehicles,343,07-Aug-13,1308-00521,1056.56,R,Armcon Limited
http://statistics.data.gov.uk/doc/local-authority/00DA,Leeds City Council,Adult Social Care,Services For Older People Under 65 P/Dis,Transfer Payments,Direct Payments,626,28-Aug-13,1308-00522,1138.2,R,REDACTED PERSONAL DATA
http://statistics.data.gov.uk/doc/local-authority/00DA,Leeds City Council,City Development,Libraries  Arts & Heritage,Supplies and Services,Operational Materials,205,27-Aug-13,1308-00523,2026.25,R,Arqadia Limited
http://statistics.data.gov.uk/doc/local-authority/00DA,Leeds City Council,Adult Social Care,Services For Older People - 65 And Over,Third Party Payments,Nursing Home,570,01-Aug-13,1308-00524,1323.64,R,Arrigadeen Nursing Home
http://statistics.data.gov.uk/doc/local-authority/00DA,Leeds City Council,Adult Social Care,Services For Older People - 65 And Over,Third Party Payments,Nursing Home,570,29-Aug-13,1308-00525,1323.64,R,Arrigadeen Nursing Home
http://statistics.data.gov.uk/doc/local-authority/00DA,Leeds City Council,City Development,Libraries  Arts & Heritage,Supplies and Services,Bought In Professional Services,277,14-Aug-13,1308-00526,2146,R,Arterium Ltd
http://statistics.data.gov.uk/doc/local-authority/00DA,Leeds City Council,Adult Social Care,Services For Adults Under 65 Mental/Dis,Third Party Payments,Payments To Voluntary Organisations,561,13-Aug-13,1308-00527,645.51,R,Articulate Advocacy
http://statistics.data.gov.uk/doc/local-authority/00DA,Leeds City Council,Adult Social Care,Services For Adults Under 65 Mental/Dis,Third Party Payments,Payments To Voluntary Organisations,561,15-Aug-13,1308-00528,1347.25,R,Articulate Advocacy
http://statistics.data.gov.uk/doc/local-authority/00DA,Leeds City Council,Adult Social Care,Services For Adults Under 65 Mental/Dis,Third Party Payments,Payments To Voluntary Organisations,561,15-Aug-13,1308-00529,15717.34,R,Articulate Advocacy
http://statistics.data.gov.uk/doc/local-authority/00DA,Leeds City Council as Accountable Body,Social Services Pooled Budgets,Jcs For People With Learning Disabilitie,Third Party Payments,Other Agency Services,561,15-Aug-13,1308-00530,4600.8,R,Articulate Advocacy
http://statistics.data.gov.uk/doc/local-authority/00DA,Leeds City Council,City Development,Libraries  Arts & Heritage,Supplies and Services,Computer Software & Equipment,214,21-Aug-13,1308-00531,7563.72,R,Artifax Software Ltd
http://statistics.data.gov.uk/doc/local-authority/00DA,Leeds City Council,City Development,Recreation,Supplies and Services,Resaleable Materials,204,01-Aug-13,1308-00532,472,R,Asa Awards Scheme
http://statistics.data.gov.uk/doc/local-authority/00DA,Leeds City Council,Central & Corporate,Commercial Services Trading Services,Supplies and Services,Other Hired And Contracted Services,265,30-Aug-13,1308-00533,420,R,Asbestos Sample Analysis Limited
http://statistics.data.gov.uk/doc/local-authority/00DA,Leeds City Council,Central & Corporate,Commercial Services Trading Services,Supplies and Services,Other Hired And Contracted Services,265,23-Aug-13,1308-00534,427.5,R,Asbestos Sample Analysis Limited
http://statistics.data.gov.uk/doc/local-authority/00DA,Leeds City Council,Central & Corporate,Commercial Services Trading Services,Supplies and Services,Other Hired And Contracted Services,265,14-Aug-13,1308-00535,435,R,Asbestos Sample Analysis Limited
http://statistics.data.gov.uk/doc/local-authority/00DA,Leeds City Council,Central & Corporate,Commercial Services Trading Services,Supplies and Services,Other Hired And Contracted Services,265,30-Aug-13,1308-00536,435,R,Asbestos Sample Analysis Limited
http://statistics.data.gov.uk/doc/local-authority/00DA,Leeds City Council,Central & Corporate,Commercial Services Trading Services,Supplies and Services,Other Hired And Contracted Services,265,19-Aug-13,1308-00537,502.5,R,Asbestos Sample Analysis Limited
http://statistics.data.gov.uk/doc/local-authority/00DA,Leeds City Council,Central & Corporate,Commercial Services Trading Services,Supplies and Services,Other Hired And Contracted Services,265,01-Aug-13,1308-00538,570,R,Asbestos Sample Analysis Limited
http://statistics.data.gov.uk/doc/local-authority/00DA,Leeds City Council,Central & Corporate,Commercial Services Trading Services,Supplies and Services,Other Hired And Contracted Services,265,30-Aug-13,1308-00539,645,R,Asbestos Sample Analysis Limited
http://statistics.data.gov.uk/doc/local-authority/00DA,Leeds City Council,Central & Corporate,Commercial Services Trading Services,Supplies and Services,Other Hired And Contracted Services,265,19-Aug-13,1308-00540,682.5,R,Asbestos Sample Analysis Limited
http://statistics.data.gov.uk/doc/local-authority/00DA,Leeds City Council,Central & Corporate,Commercial Services Trading Services,Supplies and Services,Other Hired And Contracted Services,265,02-Aug-13,1308-00541,817.5,R,Asbestos Sample Analysis Limited
http://statistics.data.gov.uk/doc/local-authority/00DA,Leeds City Council,Central & Corporate,Commercial Services Trading Services,Supplies and Services,Other Hired And Contracted Services,265,14-Aug-13,1308-00542,2310,R,Asbestos Sample Analysis Limited
http://statistics.data.gov.uk/doc/local-authority/00DA,Leeds City Council,Central & Corporate,Support And Facilities General Fund,Supplies and Services,Operational Materials,205,08-Aug-13,1308-00543,-1448.4,R,Asd Metal Services
http://statistics.data.gov.uk/doc/local-authority/00DA,Leeds City Council,Central & Corporate,Support And Facilities General Fund,Supplies and Services,Operational Materials,205,14-Aug-13,1308-00544,785.4,R,Asd Metal Services
http://statistics.data.gov.uk/doc/local-authority/00DA,Leeds City Council,Central & Corporate,Support And Facilities General Fund,Supplies and Services,Operational Materials,205,08-Aug-13,1308-00545,1448.4,R,Asd Metal Services
http://statistics.data.gov.uk/doc/local-authority/00DA,Leeds City Council,Central & Corporate,Support And Facilities General Fund,Supplies and Services,Operational Materials,205,08-Aug-13,1308-00546,1448.4,R,Asd Metal Services
http://statistics.data.gov.uk/doc/local-authority/00DA,Leeds City Council,Central & Corporate,Public Health,Support Services,Property Management  Charges,452,09-Aug-13,1308-00547,486.13,R,Asda Stores Ltd-Pharmacy
http://statistics.data.gov.uk/doc/local-authority/00DA,Leeds City Council,Adult Social Care,Services For Older People - 65 And Over,Third Party Payments,Residential,580,28-Aug-13,1308-00548,11947.86,R,Ashcroft House Residential Home
http://statistics.data.gov.uk/doc/local-authority/00DA,Leeds City Council,Adult Social Care,Services For Older People - 65 And Over,Third Party Payments,Nursing Home,570,28-Aug-13,1308-00549,1307.32,R,Ashcroft Nursing Home
http://statistics.data.gov.uk/doc/local-authority/00DA,Leeds City Council,Adult Social Care,Services For Older People - 65 And Over,Third Party Payments,Nursing Home,570,28-Aug-13,1308-00550,1312.76,R,Ashcroft Nursing Home
http://statistics.data.gov.uk/doc/local-authority/00DA,Leeds City Council,Adult Social Care,Services For Older People - 65 And Over,Third Party Payments,Residential Care Dementia,571,28-Aug-13,1308-00551,750.84,R,Ashcroft Nursing Home
http://statistics.data.gov.uk/doc/local-authority/00DA,Leeds City Council,Adult Social Care,Services For Adults Under 65 Mental/Dis,Third Party Payments,Residential,580,28-Aug-13,1308-00552,2318.4,R,Ashfield Nursing Home
http://statistics.data.gov.uk/doc/local-authority/00DA,Leeds City Council,Adult Social Care,Services For Older People - 65 And Over,Third Party Payments,Nursing Home,570,28-Aug-13,1308-00553,5312.16,R,Ashfield Nursing Home
http://statistics.data.gov.uk/doc/local-authority/00DA,Leeds City Council,Adult Social Care,Services For Older People - 65 And Over,Third Party Payments,Residential Care Dementia,571,28-Aug-13,1308-00554,1119.36,R,Ashfield Nursing Home
http://statistics.data.gov.uk/doc/local-authority/00DA,Leeds City Council,Adult Social Care,Services For Older People - 65 And Over,Third Party Payments,Residential,580,28-Aug-13,1308-00555,1208,R,Ashfield Nursing Home
http://statistics.data.gov.uk/doc/local-authority/00DA,Leeds City Council,Adult Social Care,Services For Older People - 65 And Over,Third Party Payments,Nursing Home,570,28-Aug-13,1308-00556,1860,R,Ashley Care Ltd
http://statistics.data.gov.uk/doc/local-authority/00DA,Leeds City Council as Accountable Body,Social Services Pooled Budgets,Jcs For People With Learning Disabilitie,Transfer Payments,Personal Budgets,627,28-Aug-13,1308-00557,791.32,R,REDACTED PERSONAL DATA
http://statistics.data.gov.uk/doc/local-authority/00DA,Leeds City Council,Adult Social Care,Services For Older People Under 65 P/Dis,Transfer Payments,Personalised Budgets,627,28-Aug-13,1308-00558,634.68,R,REDACTED PERSONAL DATA
http://statistics.data.gov.uk/doc/local-authority/00DA,Leeds City Council,Central & Corporate,Commercial Services Trading Services,Supplies and Services,Other Hired And Contracted Services,265,23-Aug-13,1308-00559,510,R,Ashtead Plant Hire Company Ltd
http://statistics.data.gov.uk/doc/local-authority/00DA,Leeds City Council,Central & Corporate,Commercial Services Trading Services,Supplies and Services,Other Hired And Contracted Services,265,12-Aug-13,1308-00560,680,R,Ashtead Plant Hire Company Ltd
http://statistics.data.gov.uk/doc/local-authority/00DA,Leeds City Council,Central & Corporate,Commercial Services Trading Services,Supplies and Services,Other Hired And Contracted Services,265,02-Aug-13,1308-00561,680,R,Ashtead Plant Hire Company Ltd
http://statistics.data.gov.uk/doc/local-authority/00DA,Leeds City Council,Central & Corporate,Commercial Services Trading Services,Supplies and Services,Other Hired And Contracted Services,265,30-Aug-13,1308-00562,782,R,Ashtead Plant Hire Company Ltd
http://statistics.data.gov.uk/doc/local-authority/00DA,Leeds City Council,Central & Corporate,Commercial Services Trading Services,Supplies and Services,Other Hired And Contracted Services,265,12-Aug-13,1308-00563,782,R,Ashtead Plant Hire Company Ltd
http://statistics.data.gov.uk/doc/local-authority/00DA,Leeds City Council,City Development,Highways,Transport,Plant Hire - By Directorate,305,02-Aug-13,1308-00564,580,R,Ashtead Plant Hire Company Ltd
http://statistics.data.gov.uk/doc/local-authority/00DA,Leeds City Council,City Development,Highways,Transport,Plant Hire - By Directorate,305,02-Aug-13,1308-00565,580,R,Ashtead Plant Hire Company Ltd
http://statistics.data.gov.uk/doc/local-authority/00DA,Leeds City Council,City Development,Highways,Transport,Plant Hire - By Directorate,305,02-Aug-13,1308-00566,580,R,Ashtead Plant Hire Company Ltd
http://statistics.data.gov.uk/doc/local-authority/00DA,Leeds City Council,City Development,Highways,Transport,Plant Hire - By Directorate,305,02-Aug-13,1308-00567,580,R,Ashtead Plant Hire Company Ltd
http://statistics.data.gov.uk/doc/local-authority/00DA,Leeds City Council,City Development,Highways,Transport,Plant Hire - By Directorate,305,02-Aug-13,1308-00568,580,R,Ashtead Plant Hire Company Ltd
http://statistics.data.gov.uk/doc/local-authority/00DA,Leeds City Council,City Development,Highways,Transport,Plant Hire - By Directorate,305,02-Aug-13,1308-00569,580,R,Ashtead Plant Hire Company Ltd
http://statistics.data.gov.uk/doc/local-authority/00DA,Leeds City Council,City Development,Highways,Transport,Plant Hire - By Directorate,305,02-Aug-13,1308-00570,580,R,Ashtead Plant Hire Company Ltd
http://statistics.data.gov.uk/doc/local-authority/00DA,Leeds City Council,City Development,Highways,Transport,Plant Hire - By Directorate,305,02-Aug-13,1308-00571,580,R,Ashtead Plant Hire Company Ltd
http://statistics.data.gov.uk/doc/local-authority/00DA,Leeds City Council,City Development,Highways,Transport,Plant Hire - By Directorate,305,02-Aug-13,1308-00572,580,R,Ashtead Plant Hire Company Ltd
http://statistics.data.gov.uk/doc/local-authority/00DA,Leeds City Council,City Development,Highways,Transport,Plant Hire - By Directorate,305,02-Aug-13,1308-00573,580,R,Ashtead Plant Hire Company Ltd
http://statistics.data.gov.uk/doc/local-authority/00DA,Leeds City Council,City Development,Highways,Transport,Plant Hire - By Directorate,305,02-Aug-13,1308-00574,580,R,Ashtead Plant Hire Company Ltd
http://statistics.data.gov.uk/doc/local-authority/00DA,Leeds City Council,City Development,Highways,Transport,Plant Hire - By Directorate,305,02-Aug-13,1308-00575,580,R,Ashtead Plant Hire Company Ltd
http://statistics.data.gov.uk/doc/local-authority/00DA,Leeds City Council,City Development,Highways,Transport,Plant Hire - By Directorate,305,02-Aug-13,1308-00576,580,R,Ashtead Plant Hire Company Ltd
http://statistics.data.gov.uk/doc/local-authority/00DA,Leeds City Council,City Development,Highways,Transport,Plant Hire - By Directorate,305,02-Aug-13,1308-00577,580,R,Ashtead Plant Hire Company Ltd
http://statistics.data.gov.uk/doc/local-authority/00DA,Leeds City Council,City Development,Highways,Transport,Plant Hire - By Directorate,305,02-Aug-13,1308-00578,580,R,Ashtead Plant Hire Company Ltd
http://statistics.data.gov.uk/doc/local-authority/00DA,Leeds City Council,City Development,Highways,Transport,Plant Hire - By Directorate,305,02-Aug-13,1308-00579,580,R,Ashtead Plant Hire Company Ltd
http://statistics.data.gov.uk/doc/local-authority/00DA,Leeds City Council,City Development,Highways,Transport,Plant Hire - By Directorate,305,02-Aug-13,1308-00580,580,R,Ashtead Plant Hire Company Ltd
http://statistics.data.gov.uk/doc/local-authority/00DA,Leeds City Council,City Development,Highways,Transport,Plant Hire - By Directorate,305,02-Aug-13,1308-00581,580,R,Ashtead Plant Hire Company Ltd
http://statistics.data.gov.uk/doc/local-authority/00DA,Leeds City Council,City Development,Highways,Transport,Plant Hire - By Directorate,305,02-Aug-13,1308-00582,580,R,Ashtead Plant Hire Company Ltd
http://statistics.data.gov.uk/doc/local-authority/00DA,Leeds City Council,City Development,Highways,Transport,Plant Hire - By Directorate,305,02-Aug-13,1308-00583,580,R,Ashtead Plant Hire Company Ltd
http://statistics.data.gov.uk/doc/local-authority/00DA,Leeds City Council,City Development,Highways,Transport,Plant Hire - By Directorate,305,02-Aug-13,1308-00584,580,R,Ashtead Plant Hire Company Ltd
http://statistics.data.gov.uk/doc/local-authority/00DA,Leeds City Council,City Development,Highways,Transport,Plant Hire - By Directorate,305,02-Aug-13,1308-00585,600,R,Ashtead Plant Hire Company Ltd
http://statistics.data.gov.uk/doc/local-authority/00DA,Leeds City Council,City Development,Highways,Transport,Plant Hire - By Directorate,305,02-Aug-13,1308-00586,800,R,Ashtead Plant Hire Company Ltd
http://statistics.data.gov.uk/doc/local-authority/00DA,Leeds City Council,City Development,Libraries  Arts & Heritage,Supplies and Services,Operational Furniture And Equipment,203,30-Aug-13,1308-00587,9451.9,R,Ashtead Plant Hire Company Ltd
http://statistics.data.gov.uk/doc/local-authority/00DA,Leeds City Council,City Development,Recreation,Supplies and Services,Other Hired And Contracted Services,265,23-Aug-13,1308-00588,591.9,R,Ashtead Plant Hire Company Ltd
http://statistics.data.gov.uk/doc/local-authority/00DA,Leeds City Council,Adult Social Care,Services For Older People - 65 And Over,Third Party Payments,Residential Care Dementia,571,28-Aug-13,1308-00589,1224.52,R,Ashville Care Home
http://statistics.data.gov.uk/doc/local-authority/00DA,Leeds City Council,Adult Social Care,Services For Older People - 65 And Over,Third Party Payments,Residential Care Dementia,571,28-Aug-13,1308-00590,1243.08,R,Ashworth Grange
http://statistics.data.gov.uk/doc/local-authority/00DA,Leeds City Council,Adult Social Care,Services For Older People - 65 And Over,Third Party Payments,Residential,580,28-Aug-13,1308-00591,1201.24,R,Ashworth Grange
http://statistics.data.gov.uk/doc/local-authority/00DA,Leeds City Council,City Development,Libraries  Arts & Heritage,Supplies and Services,Books & Audio-Visual Materials,206,20-Aug-13,1308-00592,484.32,R,Askews & Holts Library Services Ltd
http://statistics.data.gov.uk/doc/local-authority/00DA,Leeds City Council,City Development,Libraries  Arts & Heritage,Supplies and Services,Books & Audio-Visual Materials,206,05-Aug-13,1308-00593,627,R,Askews & Holts Library Services Ltd
http://statistics.data.gov.uk/doc/local-authority/00DA,Leeds City Council,City Development,Libraries  Arts & Heritage,Supplies and Services,Books & Audio-Visual Materials,206,29-Aug-13,1308-00594,638.4,R,Askews & Holts Library Services Ltd
http://statistics.data.gov.uk/doc/local-authority/00DA,Leeds City Council,City Development,Libraries  Arts & Heritage,Supplies and Services,Books & Audio-Visual Materials,206,21-Aug-13,1308-00595,700.71,R,Askews & Holts Library Services Ltd
http://statistics.data.gov.uk/doc/local-authority/00DA,Leeds City Council,City Development,Libraries  Arts & Heritage,Supplies and Services,Books & Audio-Visual Materials,206,23-Aug-13,1308-00596,743.32,R,Askews & Holts Library Services Ltd
http://statistics.data.gov.uk/doc/local-authority/00DA,Leeds City Council,City Development,Libraries  Arts & Heritage,Supplies and Services,Books & Audio-Visual Materials,206,20-Aug-13,1308-00597,850.3,R,Askews & Holts Library Services Ltd
http://statistics.data.gov.uk/doc/local-authority/00DA,Leeds City Council,City Development,Libraries  Arts & Heritage,Supplies and Services,Books & Audio-Visual Materials,206,05-Aug-13,1308-00598,1260.6,R,Askews & Holts Library Services Ltd
http://statistics.data.gov.uk/doc/local-authority/00DA,Leeds City Council,City Development,Libraries  Arts & Heritage,Supplies and Services,Books & Audio-Visual Materials,206,13-Aug-13,1308-00599,1497.33,R,Askews & Holts Library Services Ltd
http://statistics.data.gov.uk/doc/local-authority/00DA,Leeds City Council,City Development,Libraries  Arts & Heritage,Supplies and Services,Books & Audio-Visual Materials,206,05-Aug-13,1308-00600,1592.91,R,Askews & Holts Library Services Ltd
http://statistics.data.gov.uk/doc/local-authority/00DA,Leeds City Council,City Development,Libraries  Arts & Heritage,Supplies and Services,Books & Audio-Visual Materials,206,13-Aug-13,1308-00601,2083.98,R,Askews & Holts Library Services Ltd
http://statistics.data.gov.uk/doc/local-authority/00DA,Leeds City Council,City Development,Libraries  Arts & Heritage,Supplies and Services,Books & Audio-Visual Materials,206,05-Aug-13,1308-00602,2209.97,R,Askews & Holts Library Services Ltd
http://statistics.data.gov.uk/doc/local-authority/00DA,Leeds City Council,City Development,Libraries  Arts & Heritage,Supplies and Services,Books & Audio-Visual Materials,206,20-Aug-13,1308-00603,3465.18,R,Askews & Holts Library Services Ltd
http://statistics.data.gov.uk/doc/local-authority/00DA,Leeds City Council,City Development,Libraries  Arts & Heritage,Supplies and Services,Books & Audio-Visual Materials,206,13-Aug-13,1308-00604,3950.32,R,Askews & Holts Library Services Ltd
http://statistics.data.gov.uk/doc/local-authority/00DA,Leeds City Council,City Development,Libraries  Arts & Heritage,Supplies and Services,Books & Audio-Visual Materials,206,05-Aug-13,1308-00605,5048.55,R,Askews & Holts Library Services Ltd
http://statistics.data.gov.uk/doc/local-authority/00DA,Leeds City Council,City Development,Libraries  Arts & Heritage,Supplies and Services,Books & Audio-Visual Materials,206,23-Aug-13,1308-00606,6678.87,R,Askews & Holts Library Services Ltd
http://statistics.data.gov.uk/doc/local-authority/00DA,Leeds City Council,City Development,Libraries  Arts & Heritage,Supplies and Services,Books & Audio-Visual Materials,206,13-Aug-13,1308-00607,8589.09,R,Askews & Holts Library Services Ltd
http://statistics.data.gov.uk/doc/local-authority/00DA,Aire Valley Homes Leeds    ,Aire Valley Homes Leeds,Aire Valley Homes Leeds,Employees,General Training,79,14-Aug-13,1308-00608,1155,R,Askham Bryan College
http://statistics.data.gov.uk/doc/local-authority/00DA,East - North East ,East - North East,Corporate Directorate,Employees,General Training,79,09-Aug-13,1308-00609,600,R,Askham Bryan College
http://statistics.data.gov.uk/doc/local-authority/00DA,West - North West   ,West - North West,Corporate Services,Employees,General Training,79,09-Aug-13,1308-00610,880,R,Askham Bryan College
http://statistics.data.gov.uk/doc/local-authority/00DA,Leeds City Council,City Development,Highways,Transport,Plant Hire - By Directorate,305,23-Aug-13,1308-00611,790,R,Asphalt Pavers
http://statistics.data.gov.uk/doc/local-authority/00DA,Leeds City Council,City Development,Highways,Transport,Plant Hire - By Directorate,305,09-Aug-13,1308-00612,790,R,Asphalt Pavers
http://statistics.data.gov.uk/doc/local-authority/00DA,Leeds City Council,City Development,Highways,Transport,Plant Hire - By Directorate,305,02-Aug-13,1308-00613,790,R,Asphalt Pavers
http://statistics.data.gov.uk/doc/local-authority/00DA,Leeds City Council,City Development,Highways,Transport,Plant Hire - By Directorate,305,28-Aug-13,1308-00614,850,R,Asphalt Pavers
http://statistics.data.gov.uk/doc/local-authority/00DA,Leeds City Council,City Development,Highways,Transport,Plant Hire - By Directorate,305,02-Aug-13,1308-00615,860,R,Asphalt Pavers
http://statistics.data.gov.uk/doc/local-authority/00DA,Leeds City Council,City Development,Highways,Transport,Plant Hire - By Directorate,305,14-Aug-13,1308-00616,990,R,Asphalt Pavers
http://statistics.data.gov.uk/doc/local-authority/00DA,Leeds City Council,City Development,Highways,Transport,Plant Hire - By Directorate,305,14-Aug-13,1308-00617,1064,R,Asphalt Pavers
http://statistics.data.gov.uk/doc/local-authority/00DA,Leeds City Council,City Development,Highways,Transport,Plant Hire - By Directorate,305,02-Aug-13,1308-00618,1064,R,Asphalt Pavers
http://statistics.data.gov.uk/doc/local-authority/00DA,Leeds City Council,City Development,Highways,Transport,Plant Hire - By Directorate,305,09-Aug-13,1308-00619,1300,R,Asphalt Pavers
http://statistics.data.gov.uk/doc/local-authority/00DA,Leeds City Council,City Development,Highways,Transport,Plant Hire - By Directorate,305,23-Aug-13,1308-00620,1391,R,Asphalt Pavers
http://statistics.data.gov.uk/doc/local-authority/00DA,Leeds City Council,City Development,Highways,Transport,Plant Hire - By Directorate,305,28-Aug-13,1308-00621,1531,R,Asphalt Pavers
http://statistics.data.gov.uk/doc/local-authority/00DA,Leeds City Council,City Development,Highways,Transport,Plant Hire - By Directorate,305,28-Aug-13,1308-00622,1810,R,Asphalt Pavers
http://statistics.data.gov.uk/doc/local-authority/00DA,Leeds City Council,City Development,Highways,Transport,Plant Hire - By Directorate,305,23-Aug-13,1308-00623,1810,R,Asphalt Pavers
http://statistics.data.gov.uk/doc/local-authority/00DA,Leeds City Council,City Development,Highways,Transport,Plant Hire - By Directorate,305,02-Aug-13,1308-00624,1915,R,Asphalt Pavers
http://statistics.data.gov.uk/doc/local-authority/00DA,Leeds City Council,City Development,Highways,Transport,Plant Hire - By Directorate,305,23-Aug-13,1308-00625,2041,R,Asphalt Pavers
http://statistics.data.gov.uk/doc/local-authority/00DA,Leeds City Council,City Development,Highways,Transport,Plant Hire - By Directorate,305,28-Aug-13,1308-00626,2921,R,Asphalt Pavers
http://statistics.data.gov.uk/doc/local-authority/00DA,Leeds City Council,City Development,Highways,Transport,Repairs to  External Hire Vehicles,343,02-Aug-13,1308-00627,-585,R,Asphalt Pavers
http://statistics.data.gov.uk/doc/local-authority/00DA,Leeds City Council,City Development,Highways,Transport,Repairs to  External Hire Vehicles,343,02-Aug-13,1308-00628,889,R,Asphalt Pavers
http://statistics.data.gov.uk/doc/local-authority/00DA,Leeds City Council as Accountable Body,Social Services Pooled Budgets,Jcs For People With Learning Disabilitie,Third Party Payments,Residential,580,08-Aug-13,1308-00629,1925,R,Aspire In The Community
http://statistics.data.gov.uk/doc/local-authority/00DA,East - North East            ,East - North East,Construction Services  ,Premises,Removal Of Workplace Waste,126,16-Jul-13,1308-00630,2337.49,R,Associated Waste Manag
http://statistics.data.gov.uk/doc/local-authority/00DA,East - North East            ,East - North East,Construction Services  ,Premises,Removal Of Workplace Waste,126,16-Jul-13,1308-00631,2626.19,R,Associated Waste Manag
http://statistics.data.gov.uk/doc/local-authority/00DA,East - North East            ,East - North East,Construction Services  ,Premises,Removal Of Workplace Waste,126,23-Jul-13,1308-00632,2746.9,R,Associated Waste Manag
http://statistics.data.gov.uk/doc/local-authority/00DA,East - North East            ,East - North East,Construction Services  ,Premises,Removal Of Workplace Waste,126,09-Jul-13,1308-00633,2834.93,R,Associated Waste Manag
http://statistics.data.gov.uk/doc/local-authority/00DA,East - North East            ,East - North East,Construction Services  ,Premises,Removal Of Workplace Waste,126,30-Jul-13,1308-00634,3415.94,R,Associated Waste Manag
http://statistics.data.gov.uk/doc/local-authority/00DA,Leeds City Council,Central & Corporate Functions,Commercial Services Trading Services  ,Supplies and Services,Waste Disposal Charges,236,17-Jul-13,1308-00635,856.69,R,Associated Waste Manag
http://statistics.data.gov.uk/doc/local-authority/00DA,Leeds City Council,Environment & Neighbourhoods,Streetscene Environmental Services  ,Supplies and Services,Waste Disposal Charges,236,30-Jul-13,1308-00636,44039.75,R,Associated Waste Manag
http://statistics.data.gov.uk/doc/local-authority/00DA,Leeds City Council,Environment & Neighbourhoods,Streetscene Environmental Services  ,Supplies and Services,Waste Disposal Charges,236,23-Jul-13,1308-00637,48345.54,R,Associated Waste Manag
http://statistics.data.gov.uk/doc/local-authority/00DA,Leeds City Council,Environment & Neighbourhoods,Streetscene Environmental Services  ,Supplies and Services,Waste Disposal Charges,236,16-Jul-13,1308-00638,53482.25,R,Associated Waste Manag
http://statistics.data.gov.uk/doc/local-authority/00DA,Leeds City Council,Environment & Neighbourhoods,Streetscene Environmental Services  ,Supplies and Services,Waste Disposal Charges,236,09-Jul-13,1308-00639,64605.13,R,Associated Waste Manag
http://statistics.data.gov.uk/doc/local-authority/00DA,Leeds City Council,Environment & Neighbourhoods,Streetscene Environmental Services  ,Supplies and Services,Waste Disposal Charges,236,30-Jul-13,1308-00640,78590.46,R,Associated Waste Manag
http://statistics.data.gov.uk/doc/local-authority/00DA,Leeds City Council,Environment & Neighbourhoods,Streetscene Environmental Services  ,Supplies and Services,Waste Disposal Charges,236,16-Jul-13,1308-00641,80706.02,R,Associated Waste Manag
http://statistics.data.gov.uk/doc/local-authority/00DA,Leeds City Council,Environment & Neighbourhoods,Streetscene Environmental Services  ,Supplies and Services,Waste Disposal Charges,236,23-Jul-13,1308-00642,83368.6,R,Associated Waste Manag
http://statistics.data.gov.uk/doc/local-authority/00DA,Leeds City Council,Environment & Neighbourhoods,Streetscene Environmental Services  ,Supplies and Services,Waste Disposal Charges,236,09-Jul-13,1308-00643,99295.8,R,Associated Waste Manag
http://statistics.data.gov.uk/doc/local-authority/00DA,Leeds City Council,Adult Social Care,Other Generic Services,Premises,Removal Of Workplace Waste,126,06-Aug-13,1308-00644,-1859.67,R,Associated Waste Management Limited
http://statistics.data.gov.uk/doc/local-authority/00DA,Leeds City Council,Adult Social Care,Other Generic Services,Premises,Removal Of Workplace Waste,126,30-Aug-13,1308-00645,454.72,R,Associated Waste Management Limited
http://statistics.data.gov.uk/doc/local-authority/00DA,Leeds City Council,Central & Corporate,Commercial Services Trading Services,Supplies and Services,Other Hired And Contracted Services,265,27-Aug-13,1308-00646,499.8,R,Associated Waste Management Limited
http://statistics.data.gov.uk/doc/local-authority/00DA,Leeds City Council,Central & Corporate,Commercial Services Trading Services,Supplies and Services,Other Hired And Contracted Services,265,28-Aug-13,1308-00647,736,R,Associated Waste Management Limited
http://statistics.data.gov.uk/doc/local-authority/00DA,Leeds City Council,Central & Corporate,Commercial Services Trading Services,Supplies and Services,Other Hired And Contracted Services,265,28-Aug-13,1308-00648,948,R,Associated Waste Management Limited
http://statistics.data.gov.uk/doc/local-authority/00DA,Leeds City Council,Central & Corporate,Support And Facilities General Fund,Premises,Removal Of Workplace Waste,126,07-Aug-13,1308-00649,695.35,R,Associated Waste Management Limited
http://statistics.data.gov.uk/doc/local-authority/00DA,Leeds City Council,Central & Corporate,Support And Facilities General Fund,Premises,Removal Of Workplace Waste,126,14-Aug-13,1308-00650,1661.23,R,Associated Waste Management Limited
http://statistics.data.gov.uk/doc/local-authority/00DA,Leeds City Council,Central & Corporate,Support And Facilities General Fund,Premises,Removal Of Workplace Waste,126,09-Aug-13,1308-00651,6936,R,Associated Waste Management Limited
http://statistics.data.gov.uk/doc/local-authority/00DA,Leeds City Council,City Development,Economic Development,Premises,Removal Of Workplace Waste,126,01-Aug-13,1308-00652,460,R,Associated Waste Management Limited
http://statistics.data.gov.uk/doc/local-authority/00DA,Leeds City Council,City Development,Economic Development,Premises,Removal Of Workplace Waste,126,30-Aug-13,1308-00653,540.94,R,Associated Waste Management Limited
http://statistics.data.gov.uk/doc/local-authority/00DA,Leeds City Council,City Development,Economic Development,Premises,Removal Of Workplace Waste,126,28-Aug-13,1308-00654,556.34,R,Associated Waste Management Limited
http://statistics.data.gov.uk/doc/local-authority/00DA,Leeds City Council,City Development,Economic Development,Premises,Removal Of Workplace Waste,126,28-Aug-13,1308-00655,581,R,Associated Waste Management Limited
http://statistics.data.gov.uk/doc/local-authority/00DA,Leeds City Council,City Development,Economic Development,Premises,Removal Of Workplace Waste,126,28-Aug-13,1308-00656,664.2,R,Associated Waste Management Limited
http://statistics.data.gov.uk/doc/local-authority/00DA,Leeds City Council,City Development,Economic Development,Premises,Removal Of Workplace Waste,126,30-Aug-13,1308-00657,718.03,R,Associated Waste Management Limited
http://statistics.data.gov.uk/doc/local-authority/00DA,Leeds City Council,City Development,Support Services,Premises,Removal Of Workplace Waste,126,23-Aug-13,1308-00658,571.43,R,Associated Waste Management Limited
http://statistics.data.gov.uk/doc/local-authority/00DA,Leeds City Council,City Development,Support Services,Premises,Removal Of Workplace Waste,126,21-Aug-13,1308-00659,627,R,Associated Waste Management Limited
http://statistics.data.gov.uk/doc/local-authority/00DA,Leeds City Council,City Development,Support Services,Premises,Removal Of Workplace Waste,126,23-Aug-13,1308-00660,3714.67,R,Associated Waste Management Limited
http://statistics.data.gov.uk/doc/local-authority/00DA,Leeds City Council,City Development,Support Services,Premises,Removal Of Workplace Waste,126,15-Aug-13,1308-00661,4555.8,R,Associated Waste Management Limited
http://statistics.data.gov.uk/doc/local-authority/00DA,Leeds City Council,Environment & Housing,Parks & Countryside,Premises,Removal Of Workplace Waste,126,06-Aug-13,1308-00662,-2198.21,R,Associated Waste Management Limited
http://statistics.data.gov.uk/doc/local-authority/00DA,Leeds City Council,Environment & Housing,Parks & Countryside,Premises,Removal Of Workplace Waste,126,23-Aug-13,1308-00663,637,R,Associated Waste Management Limited
http://statistics.data.gov.uk/doc/local-authority/00DA,Leeds City Council,Environment & Housing,Parks & Countryside,Premises,Removal Of Workplace Waste,126,23-Aug-13,1308-00664,672.28,R,Associated Waste Management Limited
http://statistics.data.gov.uk/doc/local-authority/00DA,Leeds City Council,Environment & Housing,Parks & Countryside,Premises,Removal Of Workplace Waste,126,06-Aug-13,1308-00665,829.57,R,Associated Waste Management Limited
http://statistics.data.gov.uk/doc/local-authority/00DA,Leeds City Council,Environment & Housing,Parks & Countryside,Premises,Removal Of Workplace Waste,126,08-Aug-13,1308-00666,1148.56,R,Associated Waste Management Limited
http://statistics.data.gov.uk/doc/local-authority/00DA,Leeds City Council,Environment & Housing,Parks & Countryside,Premises,Removal Of Workplace Waste,126,22-Aug-13,1308-00667,1526.84,R,Associated Waste Management Limited
http://statistics.data.gov.uk/doc/local-authority/00DA,Leeds City Council,Environment & Housing,Parks & Countryside,Premises,Removal Of Workplace Waste,126,30-Aug-13,1308-00668,1618.96,R,Associated Waste Management Limited
http://statistics.data.gov.uk/doc/local-authority/00DA,Leeds City Council,Environment & Housing,Parks & Countryside,Premises,Removal Of Workplace Waste,126,27-Aug-13,1308-00669,2104.06,R,Associated Waste Management Limited
http://statistics.data.gov.uk/doc/local-authority/00DA,Leeds City Council,Environment & Housing,Parks & Countryside,Premises,Removal Of Workplace Waste,126,27-Aug-13,1308-00670,2568.97,R,Associated Waste Management Limited
http://statistics.data.gov.uk/doc/local-authority/00DA,Leeds City Council,Environment & Housing,Streetscene Environmental Services,Supplies and Services,Waste Disposal Charges,236,01-Aug-13,1308-00671,-7130.28,R,Associated Waste Management Limited
http://statistics.data.gov.uk/doc/local-authority/00DA,Leeds City Council,Environment & Housing,Streetscene Environmental Services,Supplies and Services,Waste Disposal Charges,236,14-Aug-13,1308-00672,-912,R,Associated Waste Management Limited
http://statistics.data.gov.uk/doc/local-authority/00DA,Leeds City Council,Environment & Housing,Streetscene Environmental Services,Supplies and Services,Waste Disposal Charges,236,01-Aug-13,1308-00673,1911.95,R,Associated Waste Management Limited
http://statistics.data.gov.uk/doc/local-authority/00DA,Leeds City Council,Environment & Housing,Streetscene Environmental Services,Supplies and Services,Waste Disposal Charges,236,01-Aug-13,1308-00674,3249.76,R,Associated Waste Management Limited
http://statistics.data.gov.uk/doc/local-authority/00DA,Leeds City Council,Environment & Housing,Streetscene Environmental Services,Supplies and Services,Waste Disposal Charges,236,06-Aug-13,1308-00675,4949.64,R,Associated Waste Management Limited
http://statistics.data.gov.uk/doc/local-authority/00DA,Leeds City Council,Environment & Housing,Streetscene Environmental Services,Supplies and Services,Waste Disposal Charges,236,06-Aug-13,1308-00676,6589.65,R,Associated Waste Management Limited
http://statistics.data.gov.uk/doc/local-authority/00DA,Leeds City Council,Environment & Housing,Streetscene Environmental Services,Supplies and Services,Waste Disposal Charges,236,06-Aug-13,1308-00677,6675.23,R,Associated Waste Management Limited
http://statistics.data.gov.uk/doc/local-authority/00DA,Leeds City Council,Environment & Housing,Streetscene Environmental Services,Supplies and Services,Waste Disposal Charges,236,06-Aug-13,1308-00678,6865.07,R,Associated Waste Management Limited
http://statistics.data.gov.uk/doc/local-authority/00DA,Leeds City Council,Environment & Housing,Streetscene Environmental Services,Supplies and Services,Waste Disposal Charges,236,09-Aug-13,1308-00679,7130.28,R,Associated Waste Management Limited
http://statistics.data.gov.uk/doc/local-authority/00DA,Leeds City Council,Central & Corporate,Leeds Shared Services,Support Services,Internal charge from Resources,487,30-Aug-13,1308-00680,630,R,Association Of Educational Psychology
http://statistics.data.gov.uk/doc/local-authority/00DA,East - North East ,East - North East,Construction Services,Supplies and Services,Other Hired And Contracted Services,265,23-Aug-13,1308-00681,5397,R,Astor Bannerman Medical Ltd
http://statistics.data.gov.uk/doc/local-authority/00DA,East - North East ,East - North East,Corporate Directorate,Employees,General Training,79,05-Aug-13,1308-00682,600,R,Astra  Access Safety Training Ltd
http://statistics.data.gov.uk/doc/local-authority/00DA,Leeds City Council,Adult Social Care,Services For Older People - 65 And Over,Third Party Payments,Nursing Home,570,28-Aug-13,1308-00683,26245.27,R,Atkinson Court
http://statistics.data.gov.uk/doc/local-authority/00DA,Leeds City Council,Adult Social Care,Services For Older People - 65 And Over,Third Party Payments,Nursing Care Dementia,574,28-Aug-13,1308-00684,9315.33,R,Atkinson Court
http://statistics.data.gov.uk/doc/local-authority/00DA,Leeds City Council,Adult Social Care,Services For Older People - 65 And Over,Third Party Payments,Residential,580,28-Aug-13,1308-00685,1951.68,R,Atkinson Court
http://statistics.data.gov.uk/doc/local-authority/00DA,Leeds City Council,Central & Corporate,Commercial Services Trading Services,Supplies and Services,Other Hired And Contracted Services,265,02-Aug-13,1308-00686,2598.93,R,Atkinsons Fencing Limited
http://statistics.data.gov.uk/doc/local-authority/00DA,Leeds City Council,Adult Social Care,Services For Older People - 65 And Over,Third Party Payments,Home Care,568,28-Aug-13,1308-00687,421.14,R,Attentive Care Experts Limited
http://statistics.data.gov.uk/doc/local-authority/00DA,Leeds City Council,City Development,Libraries  Arts & Heritage,Supplies and Services,Books & Audio-Visual Materials,206,14-Aug-13,1308-00688,495.6,R,Audiogo Ltd
http://statistics.data.gov.uk/doc/local-authority/00DA,Leeds City Council,City Development,Libraries  Arts & Heritage,Supplies and Services,Books & Audio-Visual Materials,206,14-Aug-13,1308-00689,508.38,R,Audiogo Ltd
http://statistics.data.gov.uk/doc/local-authority/00DA,Leeds City Council,City Development,Libraries  Arts & Heritage,Supplies and Services,Books & Audio-Visual Materials,206,30-Aug-13,1308-00690,675.32,R,Audiogo Ltd
http://statistics.data.gov.uk/doc/local-authority/00DA,Leeds City Council,Adult Social Care,Services For Older People - 65 And Over,Transfer Payments,Personalised Budgets,627,28-Aug-13,1308-00691,941.84,R,REDACTED PERSONAL DATA
http://statistics.data.gov.uk/doc/local-authority/00DA,Leeds City Council as Accountable Body,Social Services Pooled Budgets,Jcs For People With Learning Disabilitie,Third Party Payments,Residential,580,28-Aug-13,1308-00692,8217,R,Autism Care (Uk) Ltd
http://statistics.data.gov.uk/doc/local-authority/00DA,Leeds City Council,Childrens Services,Safeguarding Targeted & Specialist,Third Party Payments,SEN Placements,566,12-Aug-13,1308-00693,4083,R,Autism International
http://statistics.data.gov.uk/doc/local-authority/00DA,Leeds City Council,Childrens Services,Safeguarding Targeted & Specialist,Third Party Payments,SEN Placements,566,09-Aug-13,1308-00694,2830.13,R,Autism Partnership Uk Ltd
http://statistics.data.gov.uk/doc/local-authority/00DA,Leeds City Council,Childrens Services,Safeguarding Targeted & Specialist,Third Party Payments,SEN Placements,566,09-Aug-13,1308-00695,4327,R,Autism Partnership Uk Ltd
http://statistics.data.gov.uk/doc/local-authority/00DA,Leeds City Council,Environment & Housing,Parks & Countryside,Supplies and Services,Food & Drink,231,08-Aug-13,1308-00696,679.69,R,Autobar Vending Services Limited
http://statistics.data.gov.uk/doc/local-authority/00DA,Leeds City Council,Environment & Housing,Parks & Countryside,Supplies and Services,Food & Drink,231,05-Aug-13,1308-00697,508.51,R,Autobar Vending Services Ltd
http://statistics.data.gov.uk/doc/local-authority/00DA,Leeds City Council,Central & Corporate,Commercial Services Trading Services,Supplies and Services,Other Hired And Contracted Services,265,28-Aug-13,1308-00698,428.87,R,Automotive Electrical (Mirfield)
http://statistics.data.gov.uk/doc/local-authority/00DA,Leeds City Council,Environment & Housing,Parks & Countryside,Supplies and Services,Other Hired And Contracted Services,265,02-Aug-13,1308-00699,494.56,R,Av Irrigation Ltd
http://statistics.data.gov.uk/doc/local-authority/00DA,Leeds City Council,Environment & Housing,Parks & Countryside,Supplies and Services,Other Hired And Contracted Services,265,16-Aug-13,1308-00700,531.39,R,Av Irrigation Ltd
http://statistics.data.gov.uk/doc/local-authority/00DA,Leeds City Council,Environment & Housing,Parks & Countryside,Supplies and Services,Other Hired And Contracted Services,265,21-Aug-13,1308-00701,2739.83,R,Av Irrigation Ltd
http://statistics.data.gov.uk/doc/local-authority/00DA,East - North East ,East - North East,Construction Services,Supplies and Services,Miscellaneous Expenditure,208,12-Aug-13,1308-00702,45194.5,R,Avanta U.K Ltd
http://statistics.data.gov.uk/doc/local-authority/00DA,Leeds City Council,Central & Corporate,Information Technology,Supplies and Services,Software - Expenditure,80,29-Aug-13,1308-00703,3700,R,Avco Systems Ltd
http://statistics.data.gov.uk/doc/local-authority/00DA,Leeds City Council as Accountable Body,Social Services Pooled Budgets,Jcs For People With Learning Disabilitie,Third Party Payments,Residential,580,09-Aug-13,1308-00704,4642.2,R,Avens Ltd
http://statistics.data.gov.uk/doc/local-authority/00DA,Leeds City Council,Adult Social Care,Services For Older People - 65 And Over,Third Party Payments,Residential Care Dementia,571,28-Aug-13,1308-00705,1133.08,R,REDACTED PERSONAL DATA
http://statistics.data.gov.uk/doc/local-authority/00DA,Leeds City Council as Accountable Body,Social Services Pooled Budgets,Jcs For People With Learning Disabilitie,Third Party Payments,Residential,580,28-Aug-13,1308-00706,4123.12,R,Avon Lodge
http://statistics.data.gov.uk/doc/local-authority/00DA,Leeds City Council,Childrens Services,Learning Skills & Universal,Supplies and Services,Books & Audio-Visual Materials,206,23-Aug-13,1308-00707,682.5,R,Award Scheme Ltd
http://statistics.data.gov.uk/doc/local-authority/00DA,West - North West   ,West - North West,Corporate Services,Premises,Cct Contract Cleaning,129,07-Aug-13,1308-00708,561.24,R,Axis Cleaning & Support Services
http://statistics.data.gov.uk/doc/local-authority/00DA,Leeds City Council as Accountable Body,Social Services Pooled Budgets,Jcs For People With Learning Disabilitie,Third Party Payments,Sheltered Accommodation,569,28-Aug-13,1308-00709,4656.36,R,Ayersome Terrace
http://statistics.data.gov.uk/doc/local-authority/00DA,Leeds City Council as Accountable Body,Social Services Pooled Budgets,Jcs For People With Learning Disabilitie,Third Party Payments,Residential,580,28-Aug-13,1308-00710,13798.28,R,Ayersome Terrace
http://statistics.data.gov.uk/doc/local-authority/00DA,Leeds City Council,Adult Social Care,Services For Older People Under 65 P/Dis,Transfer Payments,Direct Payments,626,28-Aug-13,1308-00711,636.76,R,REDACTED PERSONAL DATA
http://statistics.data.gov.uk/doc/local-authority/00DA,Leeds City Council as Accountable Body,Social Services Pooled Budgets,Jcs For People With Learning Disabilitie,Transfer Payments,Personal Budgets,627,28-Aug-13,1308-00712,487.52,R,REDACTED PERSONAL DATA
http://statistics.data.gov.uk/doc/local-authority/00DA,Leeds City Council,Environment & Housing,Environmental Health,Capital,Construction,3,23-Aug-13,1308-00713,2577.51,C,B & K Passmore
http://statistics.data.gov.uk/doc/local-authority/00DA,Leeds City Council,Environment & Housing,Environmental Health,Capital,Construction,3,07-Aug-13,1308-00714,2890,C,B & K Passmore
http://statistics.data.gov.uk/doc/local-authority/00DA,Leeds City Council,Environment & Housing,Environmental Health,Capital,Construction,3,09-Aug-13,1308-00715,4150,C,B & K Passmore
http://statistics.data.gov.uk/doc/local-authority/00DA,Leeds City Council,Environment & Housing,Environmental Health,Capital,Construction,3,23-Aug-13,1308-00716,4150,C,B & K Passmore
http://statistics.data.gov.uk/doc/local-authority/00DA,Leeds City Council,Environment & Housing,Environmental Health,Capital,Construction,3,23-Aug-13,1308-00717,4150,C,B & K Passmore
http://statistics.data.gov.uk/doc/local-authority/00DA,Leeds City Council,Environment & Housing,Environmental Health,Capital,Construction,3,05-Aug-13,1308-00718,4150,C,B & K Passmore
http://statistics.data.gov.uk/doc/local-authority/00DA,Leeds City Council,Environment & Housing,Environmental Health,Capital,Construction,3,07-Aug-13,1308-00719,4150,C,B & K Passmore
http://statistics.data.gov.uk/doc/local-authority/00DA,Leeds City Council,Environment & Housing,Environmental Health,Capital,Construction,3,05-Aug-13,1308-00720,4150,C,B & K Passmore
http://statistics.data.gov.uk/doc/local-authority/00DA,Leeds City Council,Environment & Housing,Environmental Health,Capital,Construction,3,07-Aug-13,1308-00721,4150,C,B & K Passmore
http://statistics.data.gov.uk/doc/local-authority/00DA,Leeds City Council,Environment & Housing,Environmental Health,Capital,Construction,3,07-Aug-13,1308-00722,4150,C,B & K Passmore
http://statistics.data.gov.uk/doc/local-authority/00DA,Leeds City Council,Environment & Housing,Environmental Health,Capital,Construction,3,05-Aug-13,1308-00723,4150,C,B & K Passmore
http://statistics.data.gov.uk/doc/local-authority/00DA,Leeds City Council,Environment & Housing,Environmental Health,Capital,Construction,3,23-Aug-13,1308-00724,4150,C,B & K Passmore
http://statistics.data.gov.uk/doc/local-authority/00DA,Leeds City Council,Environment & Housing,Environmental Health,Capital,Construction,3,23-Aug-13,1308-00725,7140.36,C,B & K Passmore
http://statistics.data.gov.uk/doc/local-authority/00DA,Leeds City Council,Environment & Housing,Environmental Health,Capital,Other Costs,7,09-Aug-13,1308-00726,8658.94,C,B & K Passmore
http://statistics.data.gov.uk/doc/local-authority/00DA,Leeds City Council as Accountable Body,Social Services Pooled Budgets,Jcs For People With Learning Disabilitie,Transfer Payments,Personal Budgets,627,29-Aug-13,1308-00727,30000,R,REDACTED PERSONAL DATA
http://statistics.data.gov.uk/doc/local-authority/00DA,Leeds City Council,Childrens Services,Partnership Development & Leadership,Employees,Training Costs,71,16-Aug-13,1308-00728,636,R,Baaf Registered Charity
http://statistics.data.gov.uk/doc/local-authority/00DA,Leeds City Council,Childrens Services,Safeguarding Targeted & Specialist,Third Party Payments,Fostering and adoption panel expenses,543,02-Aug-13,1308-00729,2591,R,Baaf Registered Charity
http://statistics.data.gov.uk/doc/local-authority/00DA,Leeds City Council,Childrens Services,Safeguarding Targeted & Specialist,Third Party Payments,Interagency Adoptions,559,09-Aug-13,1308-00730,699,R,Baaf Registered Charity
http://statistics.data.gov.uk/doc/local-authority/00DA,Leeds City Council,Environment & Housing,Community Safety,Supplies and Services,Other Hired And Contracted Services,265,07-Aug-13,1308-00731,895,R,Back Care Solutions Ltd
http://statistics.data.gov.uk/doc/local-authority/00DA,Leeds City Council,Central & Corporate,Support And Facilities General Fund,Supplies and Services,Other Hired And Contracted Services,265,07-Aug-13,1308-00732,451,R,Bahson Colour Print Ltd
http://statistics.data.gov.uk/doc/local-authority/00DA,Leeds City Council,Central & Corporate,Support And Facilities General Fund,Supplies and Services,Other Hired And Contracted Services,265,23-Aug-13,1308-00733,729,R,Bahson Colour Print Ltd
http://statistics.data.gov.uk/doc/local-authority/00DA,Leeds City Council,City Development,Libraries  Arts & Heritage,Supplies and Services,Art Galleries Total Stores,3,30-Aug-13,1308-00734,431.44,R,Baker & Taylor (Uk) Ltd
http://statistics.data.gov.uk/doc/local-authority/00DA,Leeds City Council,City Development,Libraries  Arts & Heritage,Supplies and Services,Art Galleries Total Stores,3,30-Aug-13,1308-00735,465.04,R,Baker & Taylor (Uk) Ltd
http://statistics.data.gov.uk/doc/local-authority/00DA,Leeds City Council,City Development,Libraries  Arts & Heritage,Supplies and Services,Art Galleries Total Stores,3,30-Aug-13,1308-00736,485.4,R,Baker & Taylor (Uk) Ltd
http://statistics.data.gov.uk/doc/local-authority/00DA,Leeds City Council,City Development,Libraries  Arts & Heritage,Supplies and Services,Art Galleries Total Stores,3,30-Aug-13,1308-00737,557.17,R,Baker & Taylor (Uk) Ltd
http://statistics.data.gov.uk/doc/local-authority/00DA,Leeds City Council,City Development,Libraries  Arts & Heritage,Supplies and Services,Art Galleries Total Stores,3,30-Aug-13,1308-00738,733.86,R,Baker & Taylor (Uk) Ltd
http://statistics.data.gov.uk/doc/local-authority/00DA,Leeds City Council,Environment & Housing,Parks & Countryside,Supplies and Services,Other Hired And Contracted Services,265,20-Aug-13,1308-00739,6340,R,Balmers Garden Machinery Ltd
http://statistics.data.gov.uk/doc/local-authority/00DA,Leeds City Council,Environment & Housing,Parks & Countryside,Transport,Plant Spares,346,09-Aug-13,1308-00740,427.44,R,Balmers Garden Machinery Ltd
http://statistics.data.gov.uk/doc/local-authority/00DA,Leeds City Council,City Development,Recreation  ,Transport,Hire of Movable Plant & Machinery,315,22-Jul-13,1308-00741,960,R,Balmers Gm Limited
http://statistics.data.gov.uk/doc/local-authority/00DA,Leeds City Council,Childrens Services,Youth Justice,Capital,Construction,3,09-Aug-13,1308-00742,259888.42,C,Bam Construction Ltd
http://statistics.data.gov.uk/doc/local-authority/00DA,Leeds City Council,Adult Social Care,Social Services Support Services,Supplies and Services,Printing,215,30-Aug-13,1308-00743,2600,R,Banana Kick Ltd
http://statistics.data.gov.uk/doc/local-authority/00DA,Leeds City Council,Adult Social Care,Services For Older People - 65 And Over,Transfer Payments,Personalised Budgets,627,28-Aug-13,1308-00744,601.32,R,REDACTED PERSONAL DATA
http://statistics.data.gov.uk/doc/local-authority/00DA,Leeds City Council,Central & Corporate,Executive Support,Income,Other Income,973,01-Aug-13,1308-00745,3000,R,Barca Leeds
http://statistics.data.gov.uk/doc/local-authority/00DA,Leeds City Council,Childrens Services,Learning Skills & Universal,Third Party Payments,Services Rendered By Voluntary Sector,505,14-Aug-13,1308-00746,6250,R,Barca Leeds
http://statistics.data.gov.uk/doc/local-authority/00DA,Leeds City Council,Environment & Housing,Safer Leeds Drugs Team,Third Party Payments,Services Rendered By Voluntary Sector,505,02-Aug-13,1308-00747,52760.25,R,Barca Leeds
http://statistics.data.gov.uk/doc/local-authority/00DA,West - North West   ,West - North West,Regeneration/Customer Research,Supplies and Services,Grants To Voluntary Organisations,293,22-Aug-13,1308-00748,500,R,Barca Leeds Youth Inc
http://statistics.data.gov.uk/doc/local-authority/00DA,Leeds City Council,Childrens Services,Safeguarding Targeted & Specialist,Employees,Training Costs,71,19-Aug-13,1308-00749,3210,R,Barnados
http://statistics.data.gov.uk/doc/local-authority/00DA,Leeds City Council,Adult Social Care,Services For Adults Under 65 Mental/Dis,Third Party Payments,Payments To Voluntary Organisations,561,20-Aug-13,1308-00750,26063,R,Barnardo Services Ltd
http://statistics.data.gov.uk/doc/local-authority/00DA,Leeds City Council,Childrens Services,Learning Skills & Universal,Third Party Payments,Services Rendered By Voluntary Sector,505,14-Aug-13,1308-00751,40368.25,R,Barnardo Services Ltd
http://statistics.data.gov.uk/doc/local-authority/00DA,Leeds City Council,Childrens Services,Safeguarding Targeted & Specialist,Third Party Payments,Services Rendered By Voluntary Sector,505,20-Aug-13,1308-00752,-28400,R,Barnardo Services Ltd
http://statistics.data.gov.uk/doc/local-authority/00DA,Leeds City Council,Childrens Services,Safeguarding Targeted & Specialist,Third Party Payments,Services Rendered By Voluntary Sector,505,20-Aug-13,1308-00753,28400,R,Barnardo Services Ltd
http://statistics.data.gov.uk/doc/local-authority/00DA,Leeds City Council,Childrens Services,Safeguarding Targeted & Specialist,Third Party Payments,Interagency Adoptions,559,20-Aug-13,1308-00754,750,R,Barnardos
http://statistics.data.gov.uk/doc/local-authority/00DA,Leeds City Council,Childrens Services,Safeguarding Targeted & Specialist,Third Party Payments,Interagency Adoptions,559,08-Aug-13,1308-00755,750,R,Barnardo'S
http://statistics.data.gov.uk/doc/local-authority/00DA,Leeds City Council,Childrens Services,Safeguarding Targeted & Specialist,Third Party Payments,Payments To Voluntary Organisations,561,16-Aug-13,1308-00756,11230.75,R,Barnardos Futures
http://statistics.data.gov.uk/doc/local-authority/00DA,Leeds City Council,Childrens Services,Safeguarding Targeted & Specialist,Third Party Payments,Interagency Adoptions,559,01-Aug-13,1308-00757,20000,R,Barnardos South East
http://statistics.data.gov.uk/doc/local-authority/00DA,Leeds City Council,Central & Corporate,Public Health,Third Party Payments,Public Health Commissioned Services,526,16-Aug-13,1308-00758,5548.25,R,Barnardos Yorkshire
http://statistics.data.gov.uk/doc/local-authority/00DA,Leeds City Council,Childrens Services,Safeguarding Targeted & Specialist,Third Party Payments,Services Rendered By Voluntary Sector,505,08-Aug-13,1308-00759,30833,R,Barnardos Yorkshire
http://statistics.data.gov.uk/doc/local-authority/00DA,Leeds City Council,Childrens Services,Safeguarding Targeted & Specialist,Third Party Payments,Services Rendered By Voluntary Sector,505,09-Aug-13,1308-00760,59362,R,Barnardos Yorkshire
http://statistics.data.gov.uk/doc/local-authority/00DA,Leeds City Council,Childrens Services,Safeguarding Targeted & Specialist,Third Party Payments,Services Rendered By Voluntary Sector,505,06-Aug-13,1308-00761,186540,R,Barnardos Yorkshire
http://statistics.data.gov.uk/doc/local-authority/00DA,Leeds City Council,Childrens Services,Safeguarding Targeted & Specialist,Third Party Payments,Independent Fostering Agencies,509,28-Aug-13,1308-00762,1864.03,R,Barnardos Yorkshire
http://statistics.data.gov.uk/doc/local-authority/00DA,Leeds City Council,Childrens Services,Safeguarding Targeted & Specialist,Third Party Payments,Independent Fostering Agencies,509,28-Aug-13,1308-00763,3728.68,R,Barnardos Yorkshire
http://statistics.data.gov.uk/doc/local-authority/00DA,Leeds City Council,Childrens Services,Safeguarding Targeted & Specialist,Third Party Payments,Independent Fostering Agencies,509,28-Aug-13,1308-00764,3805.87,R,Barnardos Yorkshire
http://statistics.data.gov.uk/doc/local-authority/00DA,Leeds City Council,Childrens Services,Safeguarding Targeted & Specialist,Third Party Payments,Independent Fostering Agencies,509,28-Aug-13,1308-00765,4161.44,R,Barnardos Yorkshire
http://statistics.data.gov.uk/doc/local-authority/00DA,Leeds City Council,Childrens Services,Safeguarding Targeted & Specialist,Third Party Payments,Independent Fostering Agencies,509,28-Aug-13,1308-00766,4240.8,R,Barnardos Yorkshire
http://statistics.data.gov.uk/doc/local-authority/00DA,Leeds City Council,Childrens Services,Safeguarding Targeted & Specialist,Third Party Payments,Independent Fostering Agencies,509,28-Aug-13,1308-00767,4240.8,R,Barnardos Yorkshire
http://statistics.data.gov.uk/doc/local-authority/00DA,Leeds City Council,Central & Corporate,Executive Support,Supplies and Services,Other Hired And Contracted Services,265,19-Aug-13,1308-00768,500,R,Barnsley Metropolitan Borough Council
http://statistics.data.gov.uk/doc/local-authority/00DA,Leeds City Council,Environment & Housing,Parks & Countryside,Supplies and Services,Other Hired And Contracted Services,265,20-Aug-13,1308-00769,3535,R,Barnsley Metropolitan Borough Council
http://statistics.data.gov.uk/doc/local-authority/00DA,Leeds City Council,Environment & Housing,Environmental Health,Supplies and Services,Operational Materials,205,19-Aug-13,1308-00770,2190.11,R,Barrettine Environmental Health
http://statistics.data.gov.uk/doc/local-authority/00DA,Leeds City Council,Adult Social Care,Services For Older People Under 65 P/Dis,Transfer Payments,Personalised Budgets,627,28-Aug-13,1308-00771,661.88,R,REDACTED PERSONAL DATA
http://statistics.data.gov.uk/doc/local-authority/00DA,Leeds City Council,Central & Corporate,Public Health,Supplies and Services,Advertising,211,07-Aug-13,1308-00772,5000,R,Bauer Radio Ltd
http://statistics.data.gov.uk/doc/local-authority/00DA,Leeds City Council,City Development,Employment & Skills,Supplies and Services,Other Hired And Contracted Services,265,07-Aug-13,1308-00773,5836.61,R,Bauer Radio Ltd
http://statistics.data.gov.uk/doc/local-authority/00DA,Leeds City Council,City Development,Planning & Sustainable Development,Supplies and Services,Advertising,211,07-Aug-13,1308-00774,2736.07,R,Bauer Radio Ltd
http://statistics.data.gov.uk/doc/local-authority/00DA,Leeds City Council,Environment & Housing,Streetscene Environmental Services,Supplies and Services,Publication And Promotion,267,27-Aug-13,1308-00775,750,R,Bauer Radio Ltd
http://statistics.data.gov.uk/doc/local-authority/00DA,Leeds City Council,Environment & Housing,Streetscene Environmental Services,Supplies and Services,Publication And Promotion,267,27-Aug-13,1308-00776,3580,R,Bauer Radio Ltd
http://statistics.data.gov.uk/doc/local-authority/00DA,Leeds City Council,City Development,Regeneration Management,Capital,Other Costs,7,21-Aug-13,1308-00777,6330.09,C,Bauman Lyons
http://statistics.data.gov.uk/doc/local-authority/00DA,Leeds City Council,City Development,Economic Development,Supplies and Services,Publication And Promotion,267,21-Aug-13,1308-00778,6169,R,Bay Media Ltd
http://statistics.data.gov.uk/doc/local-authority/00DA,Leeds City Council,Central & Corporate,Commercial Services Trading Services,Transport,Fuel (Non LCC Supplies),321,01-Aug-13,1308-00779,1514.27,R,Bayford Oil
http://statistics.data.gov.uk/doc/local-authority/00DA,Leeds City Council,Central & Corporate,Commercial Services Trading Services,Transport,Fuel (Non LCC Supplies),321,14-Aug-13,1308-00780,1666,R,Bayford Oil
http://statistics.data.gov.uk/doc/local-authority/00DA,Leeds City Council,Central & Corporate,Commercial Services Trading Services,Transport,Fuel (Non LCC Supplies),321,19-Aug-13,1308-00781,1702.5,R,Bayford Oil
http://statistics.data.gov.uk/doc/local-authority/00DA,Leeds City Council,Central & Corporate,Commercial Services Trading Services,Transport,Fuel (Non LCC Supplies),321,05-Aug-13,1308-00782,1919.7,R,Bayford Oil
http://statistics.data.gov.uk/doc/local-authority/00DA,Leeds City Council,Central & Corporate,Commercial Services Trading Services,Transport,Fuel (Non LCC Supplies),321,23-Aug-13,1308-00783,2044.5,R,Bayford Oil
http://statistics.data.gov.uk/doc/local-authority/00DA,Leeds City Council,Central & Corporate,Commercial Services Trading Services,Transport,Fuel (Non LCC Supplies),321,09-Aug-13,1308-00784,11298.39,R,Bayford Oil
http://statistics.data.gov.uk/doc/local-authority/00DA,Leeds City Council,Central & Corporate,Commercial Services Trading Services,Transport,Fuel (Non LCC Supplies),321,30-Aug-13,1308-00785,11316.59,R,Bayford Oil
http://statistics.data.gov.uk/doc/local-authority/00DA,Leeds City Council,Central & Corporate,Commercial Services Trading Services,Transport,Fuel (Non LCC Supplies),321,19-Aug-13,1308-00786,11441,R,Bayford Oil
http://statistics.data.gov.uk/doc/local-authority/00DA,Leeds City Council,Central & Corporate,Commercial Services Trading Services,Transport,Fuel (Non LCC Supplies),321,02-Aug-13,1308-00787,16680,R,Bayford Oil
http://statistics.data.gov.uk/doc/local-authority/00DA,Leeds City Council,Central & Corporate,Commercial Services Trading Services,Transport,Fuel (Non LCC Supplies),321,09-Aug-13,1308-00788,16927.5,R,Bayford Oil
http://statistics.data.gov.uk/doc/local-authority/00DA,Leeds City Council,Central & Corporate,Commercial Services Trading Services,Transport,Fuel (Non LCC Supplies),321,30-Aug-13,1308-00789,16975.5,R,Bayford Oil
http://statistics.data.gov.uk/doc/local-authority/00DA,Leeds City Council,Central & Corporate,Commercial Services Trading Services,Transport,Fuel (Non LCC Supplies),321,19-Aug-13,1308-00790,17146.5,R,Bayford Oil
http://statistics.data.gov.uk/doc/local-authority/00DA,Leeds City Council,Central & Corporate,Commercial Services Trading Services,Transport,Fuel (Non LCC Supplies),321,02-Aug-13,1308-00791,23333.31,R,Bayford Oil
http://statistics.data.gov.uk/doc/local-authority/00DA,Leeds City Council,Central & Corporate,Commercial Services Trading Services,Transport,Fuel (Non LCC Supplies),321,09-Aug-13,1308-00792,24739,R,Bayford Oil
http://statistics.data.gov.uk/doc/local-authority/00DA,Leeds City Council,Central & Corporate,Commercial Services Trading Services,Transport,Fuel (Non LCC Supplies),321,14-Aug-13,1308-00793,24742.45,R,Bayford Oil
http://statistics.data.gov.uk/doc/local-authority/00DA,Leeds City Council,Central & Corporate,Commercial Services Trading Services,Transport,Fuel (Non LCC Supplies),321,23-Aug-13,1308-00794,25071.2,R,Bayford Oil
http://statistics.data.gov.uk/doc/local-authority/00DA,Leeds City Council,Central & Corporate,Commercial Services Trading Services,Transport,Fuel (Non LCC Supplies),321,23-Aug-13,1308-00795,25334.39,R,Bayford Oil
http://statistics.data.gov.uk/doc/local-authority/00DA,Leeds City Council,Central & Corporate,Commercial Services Trading Services,Transport,Fuel (Non LCC Supplies),321,02-Aug-13,1308-00796,39334,R,Bayford Oil
http://statistics.data.gov.uk/doc/local-authority/00DA,Leeds City Council,Central & Corporate,Commercial Services Trading Services,Transport,Fuel (Non LCC Supplies),321,13-Aug-13,1308-00797,39919.75,R,Bayford Oil
http://statistics.data.gov.uk/doc/local-authority/00DA,Leeds City Council,Central & Corporate,Commercial Services Trading Services,Transport,Fuel (Non LCC Supplies),321,23-Aug-13,1308-00798,41025.6,R,Bayford Oil
http://statistics.data.gov.uk/doc/local-authority/00DA,Leeds City Council,Childrens Services,Learning Skills & Universal,Premises,Oil,122,19-Aug-13,1308-00799,2448,R,Bayford Oil
http://statistics.data.gov.uk/doc/local-authority/00DA,Leeds City Council,City Development,Libraries  Arts & Heritage,Premises,Oil,122,06-Aug-13,1308-00800,494.94,R,Bayford Oil
http://statistics.data.gov.uk/doc/local-authority/00DA,Leeds City Council,City Development,Libraries  Arts & Heritage,Premises,Oil,122,06-Aug-13,1308-00801,1119,R,Bayford Oil
http://statistics.data.gov.uk/doc/local-authority/00DA,Leeds City Council,Environment & Housing,Parks & Countryside,Transport,Fuel (Non LCC Supplies),321,30-Aug-13,1308-00802,670.26,R,Bayford Oil
http://statistics.data.gov.uk/doc/local-authority/00DA,Leeds City Council,Environment & Housing,Parks & Countryside,Transport,Fuel (Non LCC Supplies),321,01-Aug-13,1308-00803,1308.6,R,Bayford Oil
http://statistics.data.gov.uk/doc/local-authority/00DA,Leeds City Council,Environment & Housing,Parks & Countryside,Transport,Fuel (Non LCC Supplies),321,16-Aug-13,1308-00804,1366,R,Bayford Oil
http://statistics.data.gov.uk/doc/local-authority/00DA,Leeds City Council,Environment & Housing,Parks & Countryside,Transport,Fuel (Non LCC Supplies),321,23-Aug-13,1308-00805,1367,R,Bayford Oil
http://statistics.data.gov.uk/doc/local-authority/00DA,Leeds City Council,Environment & Housing,Parks & Countryside,Transport,Fuel (Non LCC Supplies),321,06-Aug-13,1308-00806,1956.9,R,Bayford Oil
http://statistics.data.gov.uk/doc/local-authority/00DA,Leeds City Council,Environment & Housing,Parks & Countryside,Transport,Fuel (Non LCC Supplies),321,09-Aug-13,1308-00807,2665.6,R,Bayford Oil
http://statistics.data.gov.uk/doc/local-authority/00DA,Leeds City Council,Environment & Housing,Parks & Countryside,Transport,Fuel (Non LCC Supplies),321,16-Aug-13,1308-00808,2724,R,Bayford Oil
http://statistics.data.gov.uk/doc/local-authority/00DA,Leeds City Council,Environment & Housing,Parks & Countryside,Transport,Fuel (Non LCC Supplies),321,06-Aug-13,1308-00809,4481.6,R,Bayford Oil
http://statistics.data.gov.uk/doc/local-authority/00DA,Leeds City Council,Environment & Housing,Parks & Countryside,Transport,Fuel (Non LCC Supplies),321,28-Aug-13,1308-00810,4586.06,R,Bayford Oil
http://statistics.data.gov.uk/doc/local-authority/00DA,Leeds City Council,Environment & Housing,Parks & Countryside,Transport,Fuel (Non LCC Supplies),321,09-Aug-13,1308-00811,4970.25,R,Bayford Oil
http://statistics.data.gov.uk/doc/local-authority/00DA,Leeds City Council,Environment & Housing,Parks & Countryside,Transport,Fuel (Non LCC Supplies),321,30-Aug-13,1308-00812,17112.83,R,Bayford Oil
http://statistics.data.gov.uk/doc/local-authority/00DA,Leeds City Council,Environment & Housing,Streetscene Environmental Services,Transport,Fuel (Non LCC Supplies),321,30-Aug-13,1308-00813,1084.71,R,Bayford Oil
http://statistics.data.gov.uk/doc/local-authority/00DA,Leeds City Council,Adult Social Care,Services For Older People - 65 And Over,Third Party Payments,Residential Care Dementia,571,29-Aug-13,1308-00814,3923.69,R,Beach Lawns Care Home
http://statistics.data.gov.uk/doc/local-authority/00DA,Leeds City Council,Adult Social Care,Services For Older People - 65 And Over,Transfer Payments,Personalised Budgets,627,28-Aug-13,1308-00815,1680.88,R,REDACTED PERSONAL DATA
http://statistics.data.gov.uk/doc/local-authority/00DA,Leeds City Council,Adult Social Care,Services For Older People - 65 And Over,Transfer Payments,Personalised Budgets,627,28-Aug-13,1308-00816,840,R,REDACTED PERSONAL DATA
http://statistics.data.gov.uk/doc/local-authority/00DA,Leeds City Council,Childrens Services,Learning Skills & Universal  ,Supplies and Services,Office Furniture & Equipment,201,31-Jul-13,1308-00817,586.56,R,Bee Tee Products
http://statistics.data.gov.uk/doc/local-authority/00DA,Leeds City Council,Adult Social Care,Services For Older People - 65 And Over,Third Party Payments,Residential Care Dementia,571,28-Aug-13,1308-00818,998.32,R,Beechmount
http://statistics.data.gov.uk/doc/local-authority/00DA,Leeds City Council as Accountable Body,Social Services Pooled Budgets,Jcs For People With Learning Disabilitie,Supplies and Services,Events,238,09-Aug-13,1308-00819,1500,R,Beeston Action For Families
http://statistics.data.gov.uk/doc/local-authority/00DA,Leeds City Council,Adult Social Care,Services For Older People - 65 And Over,Third Party Payments,Residential,580,28-Aug-13,1308-00820,1314,R,Belgrave Court Residential Care Home
http://statistics.data.gov.uk/doc/local-authority/00DA,Leeds City Council,Central & Corporate,Support And Facilities General Fund,Supplies and Services,Other Hired And Contracted Services,265,30-Aug-13,1308-00821,740,R,Bell Group Uk
http://statistics.data.gov.uk/doc/local-authority/00DA,Leeds City Council,Adult Social Care,Services For Older People - 65 And Over,Third Party Payments,Nursing Home,570,01-Aug-13,1308-00822,1232.32,R,Belle Green Court Care Home
http://statistics.data.gov.uk/doc/local-authority/00DA,Leeds City Council,Central & Corporate,Executive Support,Supplies and Services,'Well Being' Large Grants Projects,230,16-Aug-13,1308-00823,2031.25,R,Belle Isle Tenant Management
http://statistics.data.gov.uk/doc/local-authority/00DA,Leeds City Council,Childrens Services,Safeguarding Targeted & Specialist  ,Supplies and Services,Office Furniture & Equipment,201,26-Jul-13,1308-00824,701.76,R,Bells Domestic Appliance
http://statistics.data.gov.uk/doc/local-authority/00DA,Leeds City Council,Childrens Services,Safeguarding Targeted & Specialist  ,Third Party Payments,Pathway/UASC Grants,556,16-Jul-13,1308-00825,540.6,R,Bells Domestic Appliance
http://statistics.data.gov.uk/doc/local-authority/00DA,Leeds City Council,Childrens Services,Safeguarding Targeted & Specialist  ,Third Party Payments,Pathway/UASC Grants,556,31-Jul-13,1308-00826,918,R,Bells Domestic Appliance
http://statistics.data.gov.uk/doc/local-authority/00DA,Leeds City Council,Adult Social Care,Services For Older People Under 65 P/Dis,Transfer Payments,Personalised Budgets,627,28-Aug-13,1308-00827,1427.2,R,REDACTED PERSONAL DATA
http://statistics.data.gov.uk/doc/local-authority/00DA,Leeds City Council,City Development,Libraries  Arts & Heritage,Supplies and Services,Bought In Professional Services,277,22-Aug-13,1308-00828,1099,R,Ben Hall
http://statistics.data.gov.uk/doc/local-authority/00DA,Leeds City Council,Adult Social Care,Services For Older People Under 65 P/Dis,Transfer Payments,Personalised Budgets,627,28-Aug-13,1308-00829,773.36,R,REDACTED PERSONAL DATA
http://statistics.data.gov.uk/doc/local-authority/00DA,Leeds City Council,Central & Corporate,Information Technology,Supplies and Services,Software - Expenditure,80,23-Aug-13,1308-00830,9030,R,Benchmarq Ltd
http://statistics.data.gov.uk/doc/local-authority/00DA,Leeds City Council as Accountable Body,Social Services Pooled Budgets,Jcs For People With Learning Disabilitie,Third Party Payments,Nursing Home,570,28-Aug-13,1308-00831,3165.44,R,Benedict Nursing Home
http://statistics.data.gov.uk/doc/local-authority/00DA,Leeds City Council,Central & Corporate,Commercial Services Trading Services,Supplies and Services,Other Hired And Contracted Services,265,22-Aug-13,1308-00832,942.78,R,Benfield Ford Leeds (Parts Invs)
http://statistics.data.gov.uk/doc/local-authority/00DA,Leeds City Council,Central & Corporate,Commercial Services Trading Services,Transport,Vehicle Spares,345,07-Aug-13,1308-00833,424.25,R,Benfield Ford Leeds (Parts Invs)
http://statistics.data.gov.uk/doc/local-authority/00DA,Leeds City Council,Central & Corporate,Commercial Services Trading Services,Transport,Vehicle Spares,345,01-Aug-13,1308-00834,455.27,R,Benfield Ford Leeds (Parts Invs)
http://statistics.data.gov.uk/doc/local-authority/00DA,Leeds City Council,Adult Social Care,Services For Older People Under 65 P/Dis,Transfer Payments,Personalised Budgets,627,28-Aug-13,1308-00835,8289.4,R,REDACTED PERSONAL DATA
http://statistics.data.gov.uk/doc/local-authority/00DA,Leeds City Council,Central & Corporate,Executive Support,Supplies and Services,Well Being Small Grants Projects,228,22-Aug-13,1308-00836,500,R,Bentley Court Luncheon Club
http://statistics.data.gov.uk/doc/local-authority/00DA,Leeds City Council,Adult Social Care,Services For Older People - 65 And Over,Third Party Payments,Residential Care Dementia,571,28-Aug-13,1308-00837,15370.7,R,Berkley Court
http://statistics.data.gov.uk/doc/local-authority/00DA,Leeds City Council,Adult Social Care,Services For Older People - 65 And Over,Third Party Payments,Nursing Care Dementia,574,28-Aug-13,1308-00838,946.52,R,Berkley Court
http://statistics.data.gov.uk/doc/local-authority/00DA,Leeds City Council,Adult Social Care,Services For Older People - 65 And Over,Third Party Payments,Residential,580,28-Aug-13,1308-00839,32184.56,R,Berkley Court
http://statistics.data.gov.uk/doc/local-authority/00DA,Leeds City Council,City Development,Asset Management Services,Capital,Construction,3,20-Aug-13,1308-00840,161213.22,C,Bermar Building Company Ltd
http://statistics.data.gov.uk/doc/local-authority/00DA,Leeds City Council,Adult Social Care,Services For Older People - 65 And Over,Transfer Payments,Direct Payments,626,28-Aug-13,1308-00841,524.8,R,REDACTED PERSONAL DATA
http://statistics.data.gov.uk/doc/local-authority/00DA,Leeds City Council as Accountable Body,Social Services Pooled Budgets,Jcs For People With Learning Disabilitie,Third Party Payments,Residential,580,01-Aug-13,1308-00842,482.32,R,REDACTED PERSONAL DATA
http://statistics.data.gov.uk/doc/local-authority/00DA,Leeds City Council as Accountable Body,Social Services Pooled Budgets,Jcs For People With Learning Disabilitie,Third Party Payments,Residential,580,29-Aug-13,1308-00843,482.32,R,REDACTED PERSONAL DATA
http://statistics.data.gov.uk/doc/local-authority/00DA,Leeds City Council,Adult Social Care,Services For Older People - 65 And Over,Third Party Payments,Residential Care Dementia,571,28-Aug-13,1308-00844,1760.92,R,Bethel House
http://statistics.data.gov.uk/doc/local-authority/00DA,Leeds City Council,Central & Corporate,Executive Support,Supplies and Services,'Well Being' Large Grants Projects,230,15-Aug-13,1308-00845,1139,R,Better Bounce Ltd
http://statistics.data.gov.uk/doc/local-authority/00DA,Leeds City Council,Adult Social Care,Services For Older People - 65 And Over,Transfer Payments,Personalised Budgets,627,29-Aug-13,1308-00846,1188,R,REDACTED PERSONAL DATA
http://statistics.data.gov.uk/doc/local-authority/00DA,Leeds City Council,Adult Social Care,Services For Older People - 65 And Over,Transfer Payments,Direct Payments,626,28-Aug-13,1308-00847,435.84,R,REDACTED PERSONAL DATA
http://statistics.data.gov.uk/doc/local-authority/00DA,Leeds City Council,Adult Social Care,Services For Older People - 65 And Over,Transfer Payments,Personalised Budgets,627,28-Aug-13,1308-00848,460.68,R,REDACTED PERSONAL DATA
http://statistics.data.gov.uk/doc/local-authority/00DA,Leeds City Council,Adult Social Care,Services For Older People Under 65 P/Dis,Transfer Payments,Personalised Budgets,627,28-Aug-13,1308-00849,991.4,R,REDACTED PERSONAL DATA
http://statistics.data.gov.uk/doc/local-authority/00DA,Leeds City Council as Accountable Body,Social Services Pooled Budgets,Jcs For People With Learning Disabilitie,Transfer Payments,Personal Budgets,627,28-Aug-13,1308-00850,1856.44,R,REDACTED PERSONAL DATA
http://statistics.data.gov.uk/doc/local-authority/00DA,Leeds City Council,City Development,Libraries  Arts & Heritage,Supplies and Services,Books & Audio-Visual Materials,206,23-Aug-13,1308-00851,1309.86,R,Bibliotheca Ltd
http://statistics.data.gov.uk/doc/local-authority/00DA,Leeds City Council,Central & Corporate,Commercial Services Trading Services,Supplies and Services,Memberships,226,09-Aug-13,1308-00852,5029.35,R,Bics
http://statistics.data.gov.uk/doc/local-authority/00DA,Leeds City Council,Adult Social Care,Services For Adults Under 65 Mental/Dis,Third Party Payments,Payments To Voluntary Organisations,561,02-Aug-13,1308-00853,25000,R,Bid Services
http://statistics.data.gov.uk/doc/local-authority/00DA,Leeds City Council,Adult Social Care,Services For Adults Under 65 Mental/Dis,Third Party Payments,Payments To Voluntary Organisations,561,02-Aug-13,1308-00854,121325.5,R,Bid Services
http://statistics.data.gov.uk/doc/local-authority/00DA,Leeds City Council,Environment & Housing,Streetscene Environmental Services,Supplies and Services,Recycling & Reuse Charges,234,12-Aug-13,1308-00855,1443.29,R,Biffa Waste Services Ltd
http://statistics.data.gov.uk/doc/local-authority/00DA,Leeds City Council,Environment & Housing,Streetscene Environmental Services,Supplies and Services,Recycling & Reuse Charges,234,08-Aug-13,1308-00856,1684.05,R,Biffa Waste Services Ltd
http://statistics.data.gov.uk/doc/local-authority/00DA,Leeds City Council,Environment & Housing,Streetscene Environmental Services,Supplies and Services,Recycling & Reuse Charges,234,16-Aug-13,1308-00857,1715.7,R,Biffa Waste Services Ltd
http://statistics.data.gov.uk/doc/local-authority/00DA,Leeds City Council,Environment & Housing,Streetscene Environmental Services,Supplies and Services,Waste Disposal Charges,236,06-Aug-13,1308-00858,9354.27,R,Biffa Waste Services Ltd
http://statistics.data.gov.uk/doc/local-authority/00DA,Leeds City Council,Environment & Housing,Streetscene Environmental Services,Supplies and Services,Waste Disposal Charges,236,01-Aug-13,1308-00859,9522.13,R,Biffa Waste Services Ltd
http://statistics.data.gov.uk/doc/local-authority/00DA,Leeds City Council,Environment & Housing,Streetscene Environmental Services,Supplies and Services,Waste Disposal Charges,236,23-Aug-13,1308-00860,12463.97,R,Biffa Waste Services Ltd
http://statistics.data.gov.uk/doc/local-authority/00DA,Leeds City Council,Environment & Housing,Streetscene Environmental Services,Supplies and Services,Waste Disposal Charges,236,16-Aug-13,1308-00861,14295.84,R,Biffa Waste Services Ltd
http://statistics.data.gov.uk/doc/local-authority/00DA,Leeds City Council,Environment & Housing,Streetscene Environmental Services,Supplies and Services,Waste Disposal Charges,236,12-Aug-13,1308-00862,22258.07,R,Biffa Waste Services Ltd
http://statistics.data.gov.uk/doc/local-authority/00DA,Leeds City Council,Environment & Housing,Streetscene Environmental Services,Supplies and Services,Waste Disposal Charges,236,08-Aug-13,1308-00863,22655.66,R,Biffa Waste Services Ltd
http://statistics.data.gov.uk/doc/local-authority/00DA,Leeds City Council,Environment & Housing,Streetscene Environmental Services,Supplies and Services,Waste Disposal Charges,236,16-Aug-13,1308-00864,23319.86,R,Biffa Waste Services Ltd
http://statistics.data.gov.uk/doc/local-authority/00DA,Leeds City Council,Environment & Housing,Streetscene Environmental Services,Supplies and Services,Landfill Tax,237,12-Aug-13,1308-00865,113628.82,R,Biffa Waste Services Ltd
http://statistics.data.gov.uk/doc/local-authority/00DA,Leeds City Council,Environment & Housing,Streetscene Environmental Services,Supplies and Services,Landfill Tax,237,08-Aug-13,1308-00866,115565.45,R,Biffa Waste Services Ltd
http://statistics.data.gov.uk/doc/local-authority/00DA,Leeds City Council,Environment & Housing,Streetscene Environmental Services,Supplies and Services,Landfill Tax,237,16-Aug-13,1308-00867,118990.89,R,Biffa Waste Services Ltd
http://statistics.data.gov.uk/doc/local-authority/00DA,Leeds City Council,Adult Social Care,Services For Older People Under 65 P/Dis,Transfer Payments,Direct Payments,626,28-Aug-13,1308-00868,1106.2,R,REDACTED PERSONAL DATA
http://statistics.data.gov.uk/doc/local-authority/00DA,Leeds City Council,Environment & Housing,Streetscene Environmental Services,Supplies and Services,Recycling & Reuse Charges,234,30-Aug-13,1308-00869,6999.54,R,Biowise Ltd
http://statistics.data.gov.uk/doc/local-authority/00DA,Leeds City Council,Environment & Housing,Streetscene Environmental Services,Supplies and Services,Recycling & Reuse Charges,234,02-Aug-13,1308-00870,12337.97,R,Biowise Ltd
http://statistics.data.gov.uk/doc/local-authority/00DA,Leeds City Council,Environment & Housing,Streetscene Environmental Services,Supplies and Services,Recycling & Reuse Charges,234,27-Aug-13,1308-00871,15175.2,R,Biowise Ltd
http://statistics.data.gov.uk/doc/local-authority/00DA,Leeds City Council,Environment & Housing,Streetscene Environmental Services,Supplies and Services,Recycling & Reuse Charges,234,30-Aug-13,1308-00872,16458.06,R,Biowise Ltd
http://statistics.data.gov.uk/doc/local-authority/00DA,Leeds City Council,Environment & Housing,Streetscene Environmental Services,Supplies and Services,Recycling & Reuse Charges,234,28-Aug-13,1308-00873,21628.03,R,Biowise Ltd
http://statistics.data.gov.uk/doc/local-authority/00DA,Leeds City Council,Environment & Housing,Streetscene Environmental Services,Supplies and Services,Recycling & Reuse Charges,234,16-Aug-13,1308-00874,22221.92,R,Biowise Ltd
http://statistics.data.gov.uk/doc/local-authority/00DA,Leeds City Council,City Development,Libraries  Arts & Heritage,Supplies and Services,Art Galleries Total Stores,3,28-Aug-13,1308-00875,757.93,R,Bizoo Limited
